Workbook

Sheet المرتبات
A1: الرقم القومى | B1: نوع المدفوعه | C1: القطاع | D1: الإدارة | E1: رقم الموظف بجهته الأصلية | F1: الاسم | G1: كود البنك | H1: البنك | I1: كود الفرع | J1: الفرع | K1: المرتب | S1: Sheet1
A2: 27101161603433 | B2: 3-مرتب تحويلات بنكية | D2: كفر جعفر ع بنات | E2: 1598 | F2: إبراهيم عبد الحميد احمد بريش | G2: 0003 | H2: البنك الاهلي المصري | I2: 0378 | J2: بسيون | K2: =SUMPRODUCT(SUMIF(INDIRECT("'"&ShtList&"'!a2:a10000"),$A2,INDIRECT("'"&ShtList&"'!k2:k10000"))) -> 2688 | S2: Sheet2
A3: 26704151601231 | B3: 3-مرتب تحويلات بنكية | D3: بسيون ث صناعى | E3: 5896 | F3: أحمد الصاوى أبو اليزيد شواطه | G3: 0003 | H3: البنك الاهلي المصري | I3: 0378 | J3: بسيون | K3: =SUMPRODUCT(SUMIF(INDIRECT("'"&ShtList&"'!a2:a10000"),$A3,INDIRECT("'"&ShtList&"'!k2:k10000"))) -> 2537.6 | P3: Sheet1 | S3: Sheet13
A4: 27303031601473 | B4: 3-مرتب تحويلات بنكية | D4: الديوان | E4: 197 | F4: أحمد عبدة فراج فايد | G4: 0003 | H4: البنك الاهلي المصري | I4: 0378 | J4: بسيون | K4: =SUMPRODUCT(SUMIF(INDIRECT("'"&ShtList&"'!a2:a10000"),$A4,INDIRECT("'"&ShtList&"'!k2:k10000"))) -> 2568.05 | P4: Sheet2 | S4: Sheet14
A5: 26801291601597 | B5: 3-مرتب تحويلات بنكية | D5: عمر بن عبد العزيز ب | E5: 1362 | F5: أحمد محمد طه طه | G5: 0003 | H5: البنك الاهلي المصري | I5: 0378 | J5: بسيون | K5: =SUMPRODUCT(SUMIF(INDIRECT("'"&ShtList&"'!a2:a10000"),$A5,INDIRECT("'"&ShtList&"'!k2:k10000"))) -> 2450 | P5: Sheet3 | S5: Sheet15
A6: 25905091600339 | B6: 3-مرتب تحويلات بنكية | D6: الشهيد ابراهيم صالح ع | E6: 1904 | F6: أحمد محمد عبد العزيز خاطر | G6: 0004 | H6: بنك القاهرة | I6: 4130 | J6: طنطا | K6: =SUMPRODUCT(SUMIF(INDIRECT("'"&ShtList&"'!a2:a10000"),$A6,INDIRECT("'"&ShtList&"'!k2:k10000"))) -> 0 | P6: Sheet4
A7: 26703261603054 | B7: 3-مرتب تحويلات بنكية | D7: عمر بن عبد العزيز ب | E7: 1370 | F7: إسماعيل إبراهيم قاقه | G7: 0005 | H7: بنك الإسكندرية | I7: 3012 | J7: فرع كفرالزيات | K7: =SUMPRODUCT(SUMIF(INDIRECT("'"&ShtList&"'!a2:a10000"),$A7,INDIRECT("'"&ShtList&"'!k2:k10000"))) -> 2536.35 | P7: Sheet5
A8: 26605211601199 | B8: 3-مرتب تحويلات بنكية | D8: عمر بن عبد العزيز ب | E8: 1371 | F8: إسماعيل عبد الله عياد | G8: 1009 | H8: البنك الرئيسي للتنميه والائتمان الزراعى | I8: 0804 | J8: بسيون | K8: =SUMPRODUCT(SUMIF(INDIRECT("'"&ShtList&"'!a2:a10000"),$A8,INDIRECT("'"&ShtList&"'!k2:k10000"))) -> 2828.1
A9: 26701151601959 | B9: 3-مرتب تحويلات بنكية | D9: صالحجر ع بنات | E9: 203 | F9: إسماعيل ناجى فايد | G9: 0003 | H9: البنك الاهلي المصري | I9: 0378 | J9: بسيون | K9: =SUMPRODUCT(SUMIF(INDIRECT("'"&ShtList&"'!a2:a10000"),$A9,INDIRECT("'"&ShtList&"'!k2:k10000"))) -> 0
A10: 27204201600975 | B10: 3-مرتب تحويلات بنكية | D10: كتامة ث تجارية | E10: 1479 | F10: أشرف ابو اليزيد قطب ابو طالب | G10: 0004 | H10: بنك القاهرة | I10: 4130 | J10: طنطا | K10: =SUMPRODUCT(SUMIF(INDIRECT("'"&ShtList&"'!a2:a10000"),$A10,INDIRECT("'"&ShtList&"'!k2:k10000"))) -> 2571.85
A11: 27102131602455 | B11: 3-مرتب تحويلات بنكية | D11: عبد اللطيف فايد بصالحجر ب | E11: 1298 | F11: أشرف عبد ه محمد عسكر | G11: 0003 | H11: البنك الاهلي المصري | I11: 0378 | J11: بسيون | K11: =SUMPRODUCT(SUMIF(INDIRECT("'"&ShtList&"'!a2:a10000"),$A11,INDIRECT("'"&ShtList&"'!k2:k10000"))) -> 2415.4
A12: 27207231601703 | B12: 3-مرتب تحويلات بنكية | D12: مدرسة الجمهورية التجريبية | E12: 6510 | F12: إكرام محمود محمد بدرة | G12: 0098 | H12: بنك مصر | I12: 0216 | J12: طنطا | K12: =SUMPRODUCT(SUMIF(INDIRECT("'"&ShtList&"'!a2:a10000"),$A12,INDIRECT("'"&ShtList&"'!k2:k10000"))) -> 0
A13: 28210311601083 | B13: 3-مرتب تحويلات بنكية | D13: جناج ب الجديدة | E13: 960 | F13: أميرة أحمد عبداللطيف هنو | G13: 1009 | H13: البنك الرئيسي للتنميه والائتمان الزراعى | I13: 0804 | J13: بسيون | K13: =SUMPRODUCT(SUMIF(INDIRECT("'"&ShtList&"'!a2:a10000"),$A13,INDIRECT("'"&ShtList&"'!k2:k10000"))) -> 1584.15
A14: 26710101601574 | B14: 3-مرتب تحويلات بنكية | D14: عبد اللطيف فايد بصالحجر ب | E14: 1297 | F14: أمين أحمد مصطفى عمرو | G14: 0003 | H14: البنك الاهلي المصري | I14: 0378 | J14: بسيون | K14: =SUMPRODUCT(SUMIF(INDIRECT("'"&ShtList&"'!a2:a10000"),$A14,INDIRECT("'"&ShtList&"'!k2:k10000"))) -> 2683.6
A15: 26007151500482 | B15: 3-مرتب تحويلات بنكية | D15: عبد النبى خمخم بسلامون ع مشترك | E15: 1125 | F15: أنوار جمال الدين عبد الرؤوف عتمان | G15: 0003 | H15: البنك الاهلي المصري | I15: 0378 | J15: بسيون | K15: =SUMPRODUCT(SUMIF(INDIRECT("'"&ShtList&"'!a2:a10000"),$A15,INDIRECT("'"&ShtList&"'!k2:k10000"))) -> 2691.1
A16: 26102010201182 | B16: 3-مرتب تحويلات بنكية | D16: محمد حسنى مبارك ب | E16: 1740 | F16: إيمان محمد محمد الدقدوقى | G16: 0004 | H16: بنك القاهرة | I16: 4150 | J16: سوق ناصر | K16: =SUMPRODUCT(SUMIF(INDIRECT("'"&ShtList&"'!a2:a10000"),$A16,INDIRECT("'"&ShtList&"'!k2:k10000"))) -> 0
A17: 27702091601466 | B17: 3-مرتب تحويلات بنكية | D17: الشهيد حسن حجازى ب | E17: 2241 | F17: إيمان مصطفى راغب العسكرى | G17: 0003 | H17: البنك الاهلي المصري | I17: 0378 | J17: بسيون | K17: =SUMPRODUCT(SUMIF(INDIRECT("'"&ShtList&"'!a2:a10000"),$A17,INDIRECT("'"&ShtList&"'!k2:k10000"))) -> 0
A18: 27508091601457 | B18: 3-مرتب تحويلات بنكية | D18: بسيون ث صناعى | E18: 6435 | F18: ابراهيم ابراهيم احمد احمد الملاح | G18: 0003 | H18: البنك الاهلي المصري | I18: 0378 | J18: بسيون | K18: =SUMPRODUCT(SUMIF(INDIRECT("'"&ShtList&"'!a2:a10000"),$A18,INDIRECT("'"&ShtList&"'!k2:k10000"))) -> 1705.3
A19: 26801041600536 | B19: 3-مرتب تحويلات بنكية | D19: قرنشو الفنية | E19: 2188 | F19: ابراهيم احمد ابراهيم وهبه | G19: 0003 | H19: البنك الاهلي المصري | I19: 0378 | J19: بسيون | K19: =SUMPRODUCT(SUMIF(INDIRECT("'"&ShtList&"'!a2:a10000"),$A19,INDIRECT("'"&ShtList&"'!k2:k10000"))) -> 0
A20: 27204081601298 | B20: 3-مرتب تحويلات بنكية | D20: كنيسة شبراطو ب | E20: 247 | F20: ابراهيم احمد عمار | G20: 0003 | H20: البنك الاهلي المصري | I20: 0378 | J20: بسيون | K20: =SUMPRODUCT(SUMIF(INDIRECT("'"&ShtList&"'!a2:a10000"),$A20,INDIRECT("'"&ShtList&"'!k2:k10000"))) -> 2401.3
A21: 27008161600957 | B21: 3-مرتب تحويلات بنكية | D21: بسيون ث صناعى | E21: 5161 | F21: ابراهيم السيد سليمان يونس الديهى | G21: 0003 | H21: البنك الاهلي المصري | I21: 0378 | J21: بسيون | K21: =SUMPRODUCT(SUMIF(INDIRECT("'"&ShtList&"'!a2:a10000"),$A21,INDIRECT("'"&ShtList&"'!k2:k10000"))) -> 2558.25
A22: 27008221600871 | B22: 3-مرتب تحويلات بنكية | D22: كفر جعفر ب ر | E22: 3368 | F22: ابراهيم حافظ محمد رميح | G22: 0004 | H22: بنك القاهرة | I22: 4140 | J22: كفر الزيات | K22: =SUMPRODUCT(SUMIF(INDIRECT("'"&ShtList&"'!a2:a10000"),$A22,INDIRECT("'"&ShtList&"'!k2:k10000"))) -> 2391.1
A23: 26801161601633 | B23: 3-مرتب تحويلات بنكية | D23: ابو حمر ع مشتركة | E23: 6361 | F23: ابراهيم حسين محمد رحيم | G23: 0003 | H23: البنك الاهلي المصري | I23: 0378 | J23: بسيون | K23: =SUMPRODUCT(SUMIF(INDIRECT("'"&ShtList&"'!a2:a10000"),$A23,INDIRECT("'"&ShtList&"'!k2:k10000"))) -> 1898
A24: 26312151601511 | B24: 3-مرتب تحويلات بنكية | D24: محمد رياض كفر الحمام ب | E24: 1779 | F24: ابراهيم سعد محمد زغلول | G24: 0003 | H24: البنك الاهلي المصري | I24: 0378 | J24: بسيون | K24: =SUMPRODUCT(SUMIF(INDIRECT("'"&ShtList&"'!a2:a10000"),$A24,INDIRECT("'"&ShtList&"'!k2:k10000"))) -> 2686.75
A25: 26103051600454 | B25: 3-مرتب تحويلات بنكية | D25: كفر سليمان ب | E25: 4453 | F25: ابراهيم شعبان محمد ابو عرب | G25: 0003 | H25: البنك الاهلي المصري | I25: 0378 | J25: بسيون | K25: =SUMPRODUCT(SUMIF(INDIRECT("'"&ShtList&"'!a2:a10000"),$A25,INDIRECT("'"&ShtList&"'!k2:k10000"))) -> 3569.55
A26: 26305101600975 | B26: 3-مرتب تحويلات بنكية | D26: الثورة ب | E26: 4871 | F26: ابراهيم عبد القادر سعد امبابى | G26: 0003 | H26: البنك الاهلي المصري | I26: 0378 | J26: بسيون | K26: =SUMPRODUCT(SUMIF(INDIRECT("'"&ShtList&"'!a2:a10000"),$A26,INDIRECT("'"&ShtList&"'!k2:k10000"))) -> 2684.6
A27: 26810191600959 | B27: 3-مرتب تحويلات بنكية | D27: قرنشو ع مشتركة | E27: 6015 | F27: ابراهيم عبد المطلب قنديل | G27: 0004 | H27: بنك القاهرة | I27: 4150 | J27: سوق ناصر | K27: =SUMPRODUCT(SUMIF(INDIRECT("'"&ShtList&"'!a2:a10000"),$A27,INDIRECT("'"&ShtList&"'!k2:k10000"))) -> 2578.5
A28: 27503171601316 | B28: 3-مرتب تحويلات بنكية | D28: عيسوىفايد ث | E28: 3351 | F28: ابراهيم عبد الواحد اسماعيل مقلاش | G28: 0003 | H28: البنك الاهلي المصري | I28: 0378 | J28: بسيون | K28: =SUMPRODUCT(SUMIF(INDIRECT("'"&ShtList&"'!a2:a10000"),$A28,INDIRECT("'"&ShtList&"'!k2:k10000"))) -> 2270.5
A29: 27106061601052 | B29: 3-مرتب تحويلات بنكية | D29: ناصر ث بنين | E29: 3851 | F29: ابراهيم على ابراهيم عيد | G29: 0003 | H29: البنك الاهلي المصري | I29: 0378 | J29: بسيون | K29: =SUMPRODUCT(SUMIF(INDIRECT("'"&ShtList&"'!a2:a10000"),$A29,INDIRECT("'"&ShtList&"'!k2:k10000"))) -> 2651.7
A30: 26308191602679 | B30: 3-مرتب تحويلات بنكية | D30: رجائى حتاتة ب | E30: 4254 | F30: ابراهيم محمد عبد الحليم الغايش | G30: 1009 | H30: البنك الرئيسي للتنميه والائتمان الزراعى | I30: 0804 | J30: بسيون | K30: =SUMPRODUCT(SUMIF(INDIRECT("'"&ShtList&"'!a2:a10000"),$A30,INDIRECT("'"&ShtList&"'!k2:k10000"))) -> 2076.95
A31: 27207031601059 | B31: 3-مرتب تحويلات بنكية | D31: قسم بسيون 1 | E31: 2259 | F31: ابراهيم محمد كامل الجندى | G31: 0003 | H31: البنك الاهلي المصري | I31: 0378 | J31: بسيون | K31: =SUMPRODUCT(SUMIF(INDIRECT("'"&ShtList&"'!a2:a10000"),$A31,INDIRECT("'"&ShtList&"'!k2:k10000"))) -> 2339.4
A32: 26012221600572 | B32: 3-مرتب تحويلات بنكية | D32: الديوان | E32: 2045 | F32: ابراهيم محمدابراهيم نصر | G32: 0003 | H32: البنك الاهلي المصري | I32: 0378 | J32: بسيون | K32: =SUMPRODUCT(SUMIF(INDIRECT("'"&ShtList&"'!a2:a10000"),$A32,INDIRECT("'"&ShtList&"'!k2:k10000"))) -> 0
A33: 26908191601092 | B33: 3-مرتب تحويلات بنكية | D33: كفر جعفر ب ر | E33: 3369 | F33: ابراهيم مصطفى عبد الرحمن على | G33: 1009 | H33: البنك الرئيسي للتنميه والائتمان الزراعى | I33: 0804 | J33: بسيون | K33: =SUMPRODUCT(SUMIF(INDIRECT("'"&ShtList&"'!a2:a10000"),$A33,INDIRECT("'"&ShtList&"'!k2:k10000"))) -> 2280.1
A34: 26112021600378 | B34: 3-مرتب تحويلات بنكية | D34: الحداد ع ت ا | E34: 6445 | F34: ابرهيم على بيومى بعيبر | G34: 0003 | H34: البنك الاهلي المصري | I34: 0378 | J34: بسيون | K34: =SUMPRODUCT(SUMIF(INDIRECT("'"&ShtList&"'!a2:a10000"),$A34,INDIRECT("'"&ShtList&"'!k2:k10000"))) -> 3275.15
A35: 28401011619592 | B35: 3-مرتب تحويلات بنكية | D35: الديوان | E35: 2515 | F35: ابوزيد محمد ابو زيد محمد ملوة | G35: 0003 | H35: البنك الاهلي المصري | I35: 0378 | J35: بسيون | K35: =SUMPRODUCT(SUMIF(INDIRECT("'"&ShtList&"'!a2:a10000"),$A35,INDIRECT("'"&ShtList&"'!k2:k10000"))) -> 1180.35
A36: 26011191600347 | B36: 3-مرتب تحويلات بنكية | D36: الثورة ب | E36: 4860 | F36: احسان عبد المجيد محمد الحصرى | G36: 0003 | H36: البنك الاهلي المصري | I36: 0378 | J36: بسيون | K36: =SUMPRODUCT(SUMIF(INDIRECT("'"&ShtList&"'!a2:a10000"),$A36,INDIRECT("'"&ShtList&"'!k2:k10000"))) -> 4152.7
A37: 27701021604739 | B37: 3-مرتب تحويلات بنكية | D37: طه حسين بالفرستق ب | E37: 4232 | F37: احمد اسماعيل احمد زلط | G37: 0004 | H37: بنك القاهرة | I37: 4140 | J37: كفر الزيات | K37: =SUMPRODUCT(SUMIF(INDIRECT("'"&ShtList&"'!a2:a10000"),$A37,INDIRECT("'"&ShtList&"'!k2:k10000"))) -> 1255.95
A38: 25912031601979 | B38: 3-مرتب تحويلات بنكية | D38: الديوان | E38: 6462 | F38: احمد حسين محمد الحشاش | G38: 0003 | H38: البنك الاهلي المصري | I38: 0378 | J38: بسيون | K38: =SUMPRODUCT(SUMIF(INDIRECT("'"&ShtList&"'!a2:a10000"),$A38,INDIRECT("'"&ShtList&"'!k2:k10000"))) -> 2900.9
A39: 27304241601171 | B39: 3-مرتب تحويلات بنكية | D39: قرنشو ع مشتركة | E39: 6444 | F39: احمد ربيع احمد احمد البقرى | G39: 0003 | H39: البنك الاهلي المصري | I39: 0378 | J39: بسيون | K39: =SUMPRODUCT(SUMIF(INDIRECT("'"&ShtList&"'!a2:a10000"),$A39,INDIRECT("'"&ShtList&"'!k2:k10000"))) -> 2302.55
A40: 26804061601279 | B40: 3-مرتب تحويلات بنكية | D40: الثورة ب | E40: 4885 | F40: احمد ربيع احمد محمد عبد الدايم | G40: 0003 | H40: البنك الاهلي المصري | I40: 0378 | J40: بسيون | K40: =SUMPRODUCT(SUMIF(INDIRECT("'"&ShtList&"'!a2:a10000"),$A40,INDIRECT("'"&ShtList&"'!k2:k10000"))) -> 2648.6
A41: 26610031601437 | B41: 3-مرتب تحويلات بنكية | D41: جناج ب الجديدة | E41: 521 | F41: احمد رزق مبروك السوداني | G41: 0003 | H41: البنك الاهلي المصري | I41: 0378 | J41: بسيون | K41: =SUMPRODUCT(SUMIF(INDIRECT("'"&ShtList&"'!a2:a10000"),$A41,INDIRECT("'"&ShtList&"'!k2:k10000"))) -> 2618.15
A42: 26604121601797 | B42: 3-مرتب تحويلات بنكية | D42: الديوان | E42: 11 | F42: احمد رمضا ن احمد الحداد | G42: 1009 | H42: البنك الرئيسي للتنميه والائتمان الزراعى | I42: 0804 | J42: بسيون | K42: =SUMPRODUCT(SUMIF(INDIRECT("'"&ShtList&"'!a2:a10000"),$A42,INDIRECT("'"&ShtList&"'!k2:k10000"))) -> 1886.2
A43: 26810301601115 | B43: 3-مرتب تحويلات بنكية | D43: بسيون ث صناعى | E43: 3725 | F43: احمد رمضان عبد السلام فلوص | G43: 0003 | H43: البنك الاهلي المصري | I43: 0378 | J43: بسيون | K43: =SUMPRODUCT(SUMIF(INDIRECT("'"&ShtList&"'!a2:a10000"),$A43,INDIRECT("'"&ShtList&"'!k2:k10000"))) -> 2899.85
A44: 27109222800076 | B44: 3-مرتب تحويلات بنكية | D44: خالد ابن الوليد ع | E44: 5869 | F44: احمد سمير عبد الحافظ محمد | G44: 0038 | H44: بنك التعمير و الاسكان | I44: 0031 | J44: كفر الشيخ | K44: =SUMPRODUCT(SUMIF(INDIRECT("'"&ShtList&"'!a2:a10000"),$A44,INDIRECT("'"&ShtList&"'!k2:k10000"))) -> 1486.85
A45: 27411031601039 | B45: 3-مرتب تحويلات بنكية | D45: شبراتنا ت ا ع | E45: 5993 | F45: احمد عبد الحليم محمد سمك | G45: 0003 | H45: البنك الاهلي المصري | I45: 0378 | J45: بسيون | K45: =SUMPRODUCT(SUMIF(INDIRECT("'"&ShtList&"'!a2:a10000"),$A45,INDIRECT("'"&ShtList&"'!k2:k10000"))) -> 2135
A46: 26207171600776 | B46: 3-مرتب تحويلات بنكية | D46: جناج ب الجديدة | E46: 524 | F46: احمد عبد الحميد صالح الفخرانى | G46: 0003 | H46: البنك الاهلي المصري | I46: 0378 | J46: بسيون | K46: =SUMPRODUCT(SUMIF(INDIRECT("'"&ShtList&"'!a2:a10000"),$A46,INDIRECT("'"&ShtList&"'!k2:k10000"))) -> 2428.95
A47: 25901041601495 | B47: 3-مرتب تحويلات بنكية | D47: بسيون ث بنات | E47: 5583 | F47: احمد عبد العاطى احمد شهاب الدين | G47: 0003 | H47: البنك الاهلي المصري | I47: 0378 | J47: بسيون | K47: =SUMPRODUCT(SUMIF(INDIRECT("'"&ShtList&"'!a2:a10000"),$A47,INDIRECT("'"&ShtList&"'!k2:k10000"))) -> 0
A48: 26403121602054 | B48: 3-مرتب تحويلات بنكية | D48: الامام الشافعى بقرنشو ر | E48: 5794 | F48: احمد عبد اللطيف احمد ابو الخير | G48: 0003 | H48: البنك الاهلي المصري | I48: 0378 | J48: بسيون | K48: =SUMPRODUCT(SUMIF(INDIRECT("'"&ShtList&"'!a2:a10000"),$A48,INDIRECT("'"&ShtList&"'!k2:k10000"))) -> 1837.8
A49: 26604091601274 | B49: 3-مرتب تحويلات بنكية | D49: بار الحمام ب | E49: 2168 | F49: احمد عبد اللطيف احمد الأنصارى | G49: 0003 | H49: البنك الاهلي المصري | I49: 0378 | J49: بسيون | K49: =SUMPRODUCT(SUMIF(INDIRECT("'"&ShtList&"'!a2:a10000"),$A49,INDIRECT("'"&ShtList&"'!k2:k10000"))) -> 0
A50: 26711071603093 | B50: 3-مرتب تحويلات بنكية | D50: قرنشو الفنية | E50: 2186 | F50: احمد عبد المجيد ابو حطب | G50: 0003 | H50: البنك الاهلي المصري | I50: 0378 | J50: بسيون | K50: =SUMPRODUCT(SUMIF(INDIRECT("'"&ShtList&"'!a2:a10000"),$A50,INDIRECT("'"&ShtList&"'!k2:k10000"))) -> 2894.5
A51: 26505301600553 | B51: 3-مرتب تحويلات بنكية | D51: بسيون ث صناعى | E51: 5230 | F51: احمد عبد المجيد احمد دغيم | G51: 0004 | H51: بنك القاهرة | I51: 4140 | J51: كفر الزيات | K51: =SUMPRODUCT(SUMIF(INDIRECT("'"&ShtList&"'!a2:a10000"),$A51,INDIRECT("'"&ShtList&"'!k2:k10000"))) -> 0
A52: 28001011611119 | B52: 3-مرتب تحويلات بنكية | D52: بسيون ث صناعى | E52: 5013 | F52: احمد عبد المقصود محمد بسيونى الجعيفى | G52: 0003 | H52: البنك الاهلي المصري | I52: 0378 | J52: بسيون | K52: =SUMPRODUCT(SUMIF(INDIRECT("'"&ShtList&"'!a2:a10000"),$A52,INDIRECT("'"&ShtList&"'!k2:k10000"))) -> 1702.3
A53: 26404021601138 | B53: 3-مرتب تحويلات بنكية | D53: منشاة اليعقوبية ت ا ب | E53: 2610 | F53: احمد عبد الوهاب فريد ابو حمر | G53: 0003 | H53: البنك الاهلي المصري | I53: 0378 | J53: بسيون | K53: =SUMPRODUCT(SUMIF(INDIRECT("'"&ShtList&"'!a2:a10000"),$A53,INDIRECT("'"&ShtList&"'!k2:k10000"))) -> 1882.25
A54: 27712011603035 | B54: 3-مرتب تحويلات بنكية | D54: عيسوىفايد ع | E54: 3337 | F54: احمد على عبد القادر الاعمى | G54: 1009 | H54: البنك الرئيسي للتنميه والائتمان الزراعى | I54: 0804 | J54: بسيون | K54: =SUMPRODUCT(SUMIF(INDIRECT("'"&ShtList&"'!a2:a10000"),$A54,INDIRECT("'"&ShtList&"'!k2:k10000"))) -> 1497.2
A55: 26104201600314 | B55: 3-مرتب تحويلات بنكية | D55: كتامة ث مشتركة | E55: 5501 | F55: احمد على على ابو طالب | G55: 0003 | H55: البنك الاهلي المصري | I55: 0378 | J55: بسيون | K55: =SUMPRODUCT(SUMIF(INDIRECT("'"&ShtList&"'!a2:a10000"),$A55,INDIRECT("'"&ShtList&"'!k2:k10000"))) -> 2747.95
A56: 26105051601518 | B56: 3-مرتب تحويلات بنكية | D56: رجائى حتاتة ب | E56: 4251 | F56: احمد متولى بسيونى عبد الوهاب | G56: 0003 | H56: البنك الاهلي المصري | I56: 0378 | J56: بسيون | K56: =SUMPRODUCT(SUMIF(INDIRECT("'"&ShtList&"'!a2:a10000"),$A56,INDIRECT("'"&ShtList&"'!k2:k10000"))) -> 3592.6
A57: 26506301600592 | B57: 3-مرتب تحويلات بنكية | D57: عزبة رزق ب | E57: 3935 | F57: احمد محمد شحاته غلاب | G57: 0004 | H57: بنك القاهرة | I57: 4130 | J57: طنطا | K57: =SUMPRODUCT(SUMIF(INDIRECT("'"&ShtList&"'!a2:a10000"),$A57,INDIRECT("'"&ShtList&"'!k2:k10000"))) -> 2225.95
A58: 28408011604271 | B58: 3-مرتب تحويلات بنكية | D58: بسيون ث بنات | E58: 5657 | F58: احمد محمد عبد الفتاح زيادة | G58: 0004 | H58: بنك القاهرة | I58: 4370 | J58: السادات | K58: =SUMPRODUCT(SUMIF(INDIRECT("'"&ShtList&"'!a2:a10000"),$A58,INDIRECT("'"&ShtList&"'!k2:k10000"))) -> 0
A59: 26002061600354 | B59: 3-مرتب تحويلات بنكية | D59: الديوان | E59: 661 | F59: احمد محمد فتح الله فايد | G59: 0004 | H59: بنك القاهرة | I59: 4140 | J59: كفر الزيات | K59: =SUMPRODUCT(SUMIF(INDIRECT("'"&ShtList&"'!a2:a10000"),$A59,INDIRECT("'"&ShtList&"'!k2:k10000"))) -> 0
A60: 27209151600539 | B60: 3-مرتب تحويلات بنكية | D60: مصطفى كامل بكفر نصير ب | E60: 1861 | F60: احمد يوسف احمد | G60: 0003 | H60: البنك الاهلي المصري | I60: 0378 | J60: بسيون | K60: =SUMPRODUCT(SUMIF(INDIRECT("'"&ShtList&"'!a2:a10000"),$A60,INDIRECT("'"&ShtList&"'!k2:k10000"))) -> 2442
A61: 26203201600797 | B61: 3-مرتب تحويلات بنكية | D61: الديوان | E61: 6032 | F61: احمدعبد الرحمن الجزار | G61: 0003 | H61: البنك الاهلي المصري | I61: 0378 | J61: بسيون | K61: =SUMPRODUCT(SUMIF(INDIRECT("'"&ShtList&"'!a2:a10000"),$A61,INDIRECT("'"&ShtList&"'!k2:k10000"))) -> 0
A62: 28107011602546 | B62: 3-مرتب تحويلات بنكية | D62: صلاح سالم ب | E62: 4962 | F62: اسماء ابراهيم حسين عيد | G62: 0038 | H62: بنك التعمير و الاسكان | I62: 0031 | J62: كفر الشيخ | K62: =SUMPRODUCT(SUMIF(INDIRECT("'"&ShtList&"'!a2:a10000"),$A62,INDIRECT("'"&ShtList&"'!k2:k10000"))) -> 1134
A63: 28903031600583 | B63: 3-مرتب تحويلات بنكية | D63: مصطفى قاسم ت ا | E63: 6310 | F63: اسماء حسانين عبدالمطلب | G63: 0038 | H63: بنك التعمير و الاسكان | I63: 0031 | J63: كفر الشيخ | K63: =SUMPRODUCT(SUMIF(INDIRECT("'"&ShtList&"'!a2:a10000"),$A63,INDIRECT("'"&ShtList&"'!k2:k10000"))) -> 0
A64: 28606211602326 | B64: 3-مرتب تحويلات بنكية | D64: كفر سليمان ب | E64: 1644 | F64: اسماء عبد اللطيف طه ابو طالب | G64: 0003 | H64: البنك الاهلي المصري | I64: 0378 | J64: بسيون | K64: =SUMPRODUCT(SUMIF(INDIRECT("'"&ShtList&"'!a2:a10000"),$A64,INDIRECT("'"&ShtList&"'!k2:k10000"))) -> 1466.95
A65: 25909221600331 | B65: 3-مرتب تحويلات بنكية | D65: عيسوىفايد ث | E65: 1433 | F65: اسماعيل ابراهيم البشة | G65: 0003 | H65: البنك الاهلي المصري | I65: 0378 | J65: بسيون | K65: =SUMPRODUCT(SUMIF(INDIRECT("'"&ShtList&"'!a2:a10000"),$A65,INDIRECT("'"&ShtList&"'!k2:k10000"))) -> 2500.6
A66: 26404241600914 | B66: 3-مرتب تحويلات بنكية | D66: مصطفى قاسم ت ا ع | E66: 863 | F66: اسماعيل حسين حسين الكردى | G66: 0004 | H66: بنك القاهرة | I66: 4130 | J66: طنطا | K66: =SUMPRODUCT(SUMIF(INDIRECT("'"&ShtList&"'!a2:a10000"),$A66,INDIRECT("'"&ShtList&"'!k2:k10000"))) -> 2454.8
A67: 26401271601959 | B67: 3-مرتب تحويلات بنكية | D67: الديوان | E67: 4979 | F67: اسماعيل رضوان رضوان محمد شنيشن | G67: 0098 | H67: بنك مصر | I67: 0257 | J67: بسيون | K67: =SUMPRODUCT(SUMIF(INDIRECT("'"&ShtList&"'!a2:a10000"),$A67,INDIRECT("'"&ShtList&"'!k2:k10000"))) -> 0
A68: 26102081500237 | B68: 3-مرتب تحويلات بنكية | D68: بسيون ث بنات | E68: 5585 | F68: اسماعيل طه قطب ابو على | G68: 1009 | H68: البنك الرئيسي للتنميه والائتمان الزراعى | I68: 0804 | J68: بسيون | K68: =SUMPRODUCT(SUMIF(INDIRECT("'"&ShtList&"'!a2:a10000"),$A68,INDIRECT("'"&ShtList&"'!k2:k10000"))) -> 2568.6
A69: 26008211601379 | B69: 3-مرتب تحويلات بنكية | D69: كفر نصير ع | E69: 1669 | F69: اسماعيل فتوح اسماعيل شعير | G69: 0098 | H69: بنك مصر | I69: 0257 | J69: بسيون | K69: =SUMPRODUCT(SUMIF(INDIRECT("'"&ShtList&"'!a2:a10000"),$A69,INDIRECT("'"&ShtList&"'!k2:k10000"))) -> 0
A70: 26808221601373 | B70: 3-مرتب تحويلات بنكية | D70: الكمال ب بقرنشو | E70: 748 | F70: اسماعيل محمد عبدالله الأقرع | G70: 0003 | H70: البنك الاهلي المصري | I70: 0378 | J70: بسيون | K70: =SUMPRODUCT(SUMIF(INDIRECT("'"&ShtList&"'!a2:a10000"),$A70,INDIRECT("'"&ShtList&"'!k2:k10000"))) -> 2487.5
A71: 27003201600929 | B71: 3-مرتب تحويلات بنكية | D71: الحداد ع ت ا | E71: 507 | F71: اسمهان على بعيبر | G71: 0003 | H71: البنك الاهلي المصري | I71: 0378 | J71: بسيون | K71: =SUMPRODUCT(SUMIF(INDIRECT("'"&ShtList&"'!a2:a10000"),$A71,INDIRECT("'"&ShtList&"'!k2:k10000"))) -> 2663.35
A72: 27302271601458 | B72: 3-مرتب تحويلات بنكية | D72: بسيون ث صناعى | E72: 5108 | F72: اشرف اسماعيل محمود محمد الدش | G72: 0005 | H72: بنك الإسكندرية | I72: 3009 | J72: فرع شبين الكوم | K72: =SUMPRODUCT(SUMIF(INDIRECT("'"&ShtList&"'!a2:a10000"),$A72,INDIRECT("'"&ShtList&"'!k2:k10000"))) -> 1884.5
A73: 27309291601378 | B73: 3-مرتب تحويلات بنكية | D73: خليفة عيسى بالفرستق ب | E73: 2827 | F73: اشرف السيد اسماعيل السيد | G73: 1009 | H73: البنك الرئيسي للتنميه والائتمان الزراعى | I73: 0804 | J73: بسيون | K73: =SUMPRODUCT(SUMIF(INDIRECT("'"&ShtList&"'!a2:a10000"),$A73,INDIRECT("'"&ShtList&"'!k2:k10000"))) -> 1255.75
A74: 27210091500759 | B74: 3-مرتب تحويلات بنكية | D74: جناج ب الجديدة | E74: 528 | F74: اشرف عبد المقصود جبرئيل الدسوقى | G74: 0003 | H74: البنك الاهلي المصري | I74: 0378 | J74: بسيون | K74: =SUMPRODUCT(SUMIF(INDIRECT("'"&ShtList&"'!a2:a10000"),$A74,INDIRECT("'"&ShtList&"'!k2:k10000"))) -> 2431.6
A75: 27502081601931 | B75: 3-مرتب تحويلات بنكية | D75: الشهيد حسن حجازى ب | E75: 6622 | F75: اشرف فاروق مرشدى مرجونه | G75: 0003 | H75: البنك الاهلي المصري | I75: 0378 | J75: بسيون | K75: =SUMPRODUCT(SUMIF(INDIRECT("'"&ShtList&"'!a2:a10000"),$A75,INDIRECT("'"&ShtList&"'!k2:k10000"))) -> 0
A76: 28401111601771 | B76: 3-مرتب تحويلات بنكية | D76: صفية الصناعية بنات | E76: 4507 | F76: اشرف محمد عبد الله الوجاب | G76: 0003 | H76: البنك الاهلي المصري | I76: 0378 | J76: بسيون | K76: =SUMPRODUCT(SUMIF(INDIRECT("'"&ShtList&"'!a2:a10000"),$A76,INDIRECT("'"&ShtList&"'!k2:k10000"))) -> 1171.6
A77: 26309031602261 | B77: 3-مرتب تحويلات بنكية | D77: نهضة مصر بابو حمر ب | E77: 6374 | F77: افراج مصطفى عبد المنعم الدقاق | G77: 0098 | H77: بنك مصر | I77: 0257 | J77: بسيون | K77: =SUMPRODUCT(SUMIF(INDIRECT("'"&ShtList&"'!a2:a10000"),$A77,INDIRECT("'"&ShtList&"'!k2:k10000"))) -> 0
A78: 27311011602301 | B78: 3-مرتب تحويلات بنكية | D78: التحرير ب | E78: 5454 | F78: اكرام سعد الدين بسيونى الدخاخنى | G78: 0098 | H78: بنك مصر | I78: 0257 | J78: بسيون | K78: =SUMPRODUCT(SUMIF(INDIRECT("'"&ShtList&"'!a2:a10000"),$A78,INDIRECT("'"&ShtList&"'!k2:k10000"))) -> 0
A79: 26409271600953 | B79: 3-مرتب تحويلات بنكية | D79: عبد النبى خمخم بسلامون ب | E79: 6455 | F79: البدرى على محمد ابوزيد | G79: 0003 | H79: البنك الاهلي المصري | I79: 0378 | J79: بسيون | K79: =SUMPRODUCT(SUMIF(INDIRECT("'"&ShtList&"'!a2:a10000"),$A79,INDIRECT("'"&ShtList&"'!k2:k10000"))) -> 1924.5
A80: 26811061601135 | B80: 3-مرتب تحويلات بنكية | D80: كتامة ث مشتركة | E80: 5500 | F80: السباعى مصطفى السباعى الجندى | G80: 0003 | H80: البنك الاهلي المصري | I80: 0378 | J80: بسيون | K80: =SUMPRODUCT(SUMIF(INDIRECT("'"&ShtList&"'!a2:a10000"),$A80,INDIRECT("'"&ShtList&"'!k2:k10000"))) -> 2968.25
A81: 28401011522173 | B81: 3-مرتب تحويلات بنكية | D81: جناج ب الجديدة | E81: 6019 | F81: السعيد السعيد عامر | G81: 0003 | H81: البنك الاهلي المصري | I81: 0378 | J81: بسيون | K81: =SUMPRODUCT(SUMIF(INDIRECT("'"&ShtList&"'!a2:a10000"),$A81,INDIRECT("'"&ShtList&"'!k2:k10000"))) -> 1470.15
A82: 26402201601311 | B82: 3-مرتب تحويلات بنكية | D82: الديوان | E82: 5362 | F82: السيد ابراهيم احمد الملاح | G82: 0003 | H82: البنك الاهلي المصري | I82: 0378 | J82: بسيون | K82: =SUMPRODUCT(SUMIF(INDIRECT("'"&ShtList&"'!a2:a10000"),$A82,INDIRECT("'"&ShtList&"'!k2:k10000"))) -> 2392.5
A83: 26409221601193 | B83: 3-مرتب تحويلات بنكية | D83: كفر الدوار ب | E83: 4562 | F83: السيد احمد السيد النحراوى | G83: 0003 | H83: البنك الاهلي المصري | I83: 0378 | J83: بسيون | K83: =SUMPRODUCT(SUMIF(INDIRECT("'"&ShtList&"'!a2:a10000"),$A83,INDIRECT("'"&ShtList&"'!k2:k10000"))) -> 2807.2
A84: 26112011602291 | B84: 3-مرتب تحويلات بنكية | D84: خالد ابن الوليد ت ا ب | E84: 3658 | F84: السيد احمد حتاتة | G84: 0003 | H84: البنك الاهلي المصري | I84: 0378 | J84: بسيون | K84: =SUMPRODUCT(SUMIF(INDIRECT("'"&ShtList&"'!a2:a10000"),$A84,INDIRECT("'"&ShtList&"'!k2:k10000"))) -> 2346.4
A85: 26412091601456 | B85: 3-مرتب تحويلات بنكية | D85: كفر جعفر ع مهنى | E85: 3483 | F85: السيد احمد متولى الخيوطى | G85: 1009 | H85: البنك الرئيسي للتنميه والائتمان الزراعى | I85: 0804 | J85: بسيون | K85: =SUMPRODUCT(SUMIF(INDIRECT("'"&ShtList&"'!a2:a10000"),$A85,INDIRECT("'"&ShtList&"'!k2:k10000"))) -> 2093.65
A86: 26805101600978 | B86: 3-مرتب تحويلات بنكية | D86: صالحجر ب جديدة | E86: 4012 | F86: السيد اسماعيل السيد زغلول | G86: 0003 | H86: البنك الاهلي المصري | I86: 0378 | J86: بسيون | K86: =SUMPRODUCT(SUMIF(INDIRECT("'"&ShtList&"'!a2:a10000"),$A86,INDIRECT("'"&ShtList&"'!k2:k10000"))) -> 2499.2
A87: 27910211601556 | B87: 3-مرتب تحويلات بنكية | D87: عوض العيسوى ب | E87: 2260 | F87: السيد رمضان اسماعيل غباشى | G87: 0098 | H87: بنك مصر | I87: 0257 | J87: بسيون | K87: =SUMPRODUCT(SUMIF(INDIRECT("'"&ShtList&"'!a2:a10000"),$A87,INDIRECT("'"&ShtList&"'!k2:k10000"))) -> 0
A88: 25905111601736 | B88: 3-مرتب تحويلات بنكية | D88: الشهيد عبد المنعم رياض بكتامة | E88: 4434 | F88: السيد عبد العظيم احمد السعودى | G88: 0098 | H88: بنك مصر | I88: 0216 | J88: طنطا | K88: =SUMPRODUCT(SUMIF(INDIRECT("'"&ShtList&"'!a2:a10000"),$A88,INDIRECT("'"&ShtList&"'!k2:k10000"))) -> 0
A89: 26511271601096 | B89: 3-مرتب تحويلات بنكية | D89: صفية الصناعية بنات | E89: 5061 | F89: السيد عبد المنعم عبد السلام النحراوى | G89: 0003 | H89: البنك الاهلي المصري | I89: 0378 | J89: بسيون | K89: =SUMPRODUCT(SUMIF(INDIRECT("'"&ShtList&"'!a2:a10000"),$A89,INDIRECT("'"&ShtList&"'!k2:k10000"))) -> 3463.5
A90: 26503301601212 | B90: 3-مرتب تحويلات بنكية | D90: عيسوىفايد ع | E90: 3348 | F90: السيد عبد النبى عبد المجيد مقلاش | G90: 0003 | H90: البنك الاهلي المصري | I90: 0378 | J90: بسيون | K90: =SUMPRODUCT(SUMIF(INDIRECT("'"&ShtList&"'!a2:a10000"),$A90,INDIRECT("'"&ShtList&"'!k2:k10000"))) -> 3261.55
A91: 28210031601851 | B91: 3-مرتب تحويلات بنكية | D91: السادات تجارية | E91: 5279 | F91: السيد محمد اسماعيل حسين زلط | G91: 0003 | H91: البنك الاهلي المصري | I91: 0378 | J91: بسيون | K91: =SUMPRODUCT(SUMIF(INDIRECT("'"&ShtList&"'!a2:a10000"),$A91,INDIRECT("'"&ShtList&"'!k2:k10000"))) -> 1547.5
A92: 26406131601934 | B92: 3-مرتب تحويلات بنكية | D92: الديوان | E92: 6265 | F92: السيد محمد محمد بربش | G92: 0003 | H92: البنك الاهلي المصري | I92: 0378 | J92: بسيون | K92: =SUMPRODUCT(SUMIF(INDIRECT("'"&ShtList&"'!a2:a10000"),$A92,INDIRECT("'"&ShtList&"'!k2:k10000"))) -> 0
A93: 26011031602157 | B93: 3-مرتب تحويلات بنكية | D93: الديوان | E93: 5357 | F93: السيد مساعد على ملا | G93: 0098 | H93: بنك مصر | I93: 0257 | J93: بسيون | K93: =SUMPRODUCT(SUMIF(INDIRECT("'"&ShtList&"'!a2:a10000"),$A93,INDIRECT("'"&ShtList&"'!k2:k10000"))) -> 0
A94: 27510141600273 | B94: 3-مرتب تحويلات بنكية | D94: الديوان | E94: 6488 | F94: السيد يحيى عوض احمد على | G94: 0003 | H94: البنك الاهلي المصري | I94: 0378 | J94: بسيون | K94: =SUMPRODUCT(SUMIF(INDIRECT("'"&ShtList&"'!a2:a10000"),$A94,INDIRECT("'"&ShtList&"'!k2:k10000"))) -> 0
A95: 26105111600311 | B95: 3-مرتب تحويلات بنكية | D95: جناج ب الجديدة | E95: 523 | F95: الشافعي راغب محمود البربري | G95: 0003 | H95: البنك الاهلي المصري | I95: 0378 | J95: بسيون | K95: =SUMPRODUCT(SUMIF(INDIRECT("'"&ShtList&"'!a2:a10000"),$A95,INDIRECT("'"&ShtList&"'!k2:k10000"))) -> 2893.65
A96: 26306231600817 | B96: 3-مرتب تحويلات بنكية | D96: كفر سالم ت ا ب | E96: 2946 | F96: الشحات السيد خطاب خطاب | G96: 0003 | H96: البنك الاهلي المصري | I96: 0378 | J96: بسيون | K96: =SUMPRODUCT(SUMIF(INDIRECT("'"&ShtList&"'!a2:a10000"),$A96,INDIRECT("'"&ShtList&"'!k2:k10000"))) -> 2300.8
A97: 26611051600972 | B97: 3-مرتب تحويلات بنكية | D97: مصطفى كامل بكفر نصير ب | E97: 1862 | F97: الشوادفي محمد راغب عبدالبر | G97: 0098 | H97: بنك مصر | I97: 0257 | J97: بسيون | K97: =SUMPRODUCT(SUMIF(INDIRECT("'"&ShtList&"'!a2:a10000"),$A97,INDIRECT("'"&ShtList&"'!k2:k10000"))) -> 0
A98: 26404261601054 | B98: 3-مرتب تحويلات بنكية | D98: بسيون ث صناعى | E98: 4277 | F98: الصاوى شعبان الصاوى ابورواش | G98: 1009 | H98: البنك الرئيسي للتنميه والائتمان الزراعى | I98: 0804 | J98: بسيون | K98: =SUMPRODUCT(SUMIF(INDIRECT("'"&ShtList&"'!a2:a10000"),$A98,INDIRECT("'"&ShtList&"'!k2:k10000"))) -> 0
A99: 26907271600279 | B99: 3-مرتب تحويلات بنكية | D99: السادات تجارية | E99: 4630 | F99: الهامى محمد فتوح سليم | G99: 0038 | H99: بنك التعمير و الاسكان | I99: 0031 | J99: كفر الشيخ | K99: =SUMPRODUCT(SUMIF(INDIRECT("'"&ShtList&"'!a2:a10000"),$A99,INDIRECT("'"&ShtList&"'!k2:k10000"))) -> 0
A100: 27104101601899 | B100: 3-مرتب تحويلات بنكية | D100: شبراتنا ت ا | E100: 6367 | F100: الوردانى سعد محمد الوردانى | G100: 1009 | H100: البنك الرئيسي للتنميه والائتمان الزراعى | I100: 0804 | J100: بسيون | K100: =SUMPRODUCT(SUMIF(INDIRECT("'"&ShtList&"'!a2:a10000"),$A100,INDIRECT("'"&ShtList&"'!k2:k10000"))) -> 2412.65
A101: 27003131500808 | B101: 3-مرتب تحويلات بنكية | D101: رجائى حتاتة ب | E101: 6199 | F101: امل انور محمود عبد ربه | G101: 0003 | H101: البنك الاهلي المصري | I101: 0378 | J101: بسيون | K101: =SUMPRODUCT(SUMIF(INDIRECT("'"&ShtList&"'!a2:a10000"),$A101,INDIRECT("'"&ShtList&"'!k2:k10000"))) -> 2456.3
A102: 26804071601242 | B102: 3-مرتب تحويلات بنكية | D102: الثورة ب | E102: 4850 | F102: اميمة محمد سيد احمد عبد البر | G102: 0003 | H102: البنك الاهلي المصري | I102: 0378 | J102: بسيون | K102: =SUMPRODUCT(SUMIF(INDIRECT("'"&ShtList&"'!a2:a10000"),$A102,INDIRECT("'"&ShtList&"'!k2:k10000"))) -> 2544.1
A103: 26912271601643 | B103: 3-مرتب تحويلات بنكية | D103: صلاح سالم ب | E103: 4748 | F103: اميمة محمود محمد جاد الله رجب | G103: 0003 | H103: البنك الاهلي المصري | I103: 0378 | J103: بسيون | K103: =SUMPRODUCT(SUMIF(INDIRECT("'"&ShtList&"'!a2:a10000"),$A103,INDIRECT("'"&ShtList&"'!k2:k10000"))) -> 2526.25
A104: 26311041601241 | B104: 3-مرتب تحويلات بنكية | D104: السادات تجارية | E104: 4641 | F104: امينة بد المنعم محمود سليمان | G104: 0003 | H104: البنك الاهلي المصري | I104: 0378 | J104: بسيون | K104: =SUMPRODUCT(SUMIF(INDIRECT("'"&ShtList&"'!a2:a10000"),$A104,INDIRECT("'"&ShtList&"'!k2:k10000"))) -> 2674
A105: 26309021600724 | B105: 3-مرتب تحويلات بنكية | D105: الديوان | E105: 6432 | F105: امينه صلاح كيلانى كيلانى | G105: 0003 | H105: البنك الاهلي المصري | I105: 0378 | J105: بسيون | K105: =SUMPRODUCT(SUMIF(INDIRECT("'"&ShtList&"'!a2:a10000"),$A105,INDIRECT("'"&ShtList&"'!k2:k10000"))) -> 2774.05
A106: 26408071600626 | B106: 3-مرتب تحويلات بنكية | D106: قسم بسيون 2 | E106: 6734 | F106: امينه قطب احمد البريه | G106: 0003 | H106: البنك الاهلي المصري | I106: 0378 | J106: بسيون | K106: =SUMPRODUCT(SUMIF(INDIRECT("'"&ShtList&"'!a2:a10000"),$A106,INDIRECT("'"&ShtList&"'!k2:k10000"))) -> 0
A107: 26112091600383 | B107: 3-مرتب تحويلات بنكية | D107: كفر سليمان ب | E107: 5808 | F107: امينه محمد ابراهيم السيسى | G107: 0003 | H107: البنك الاهلي المصري | I107: 0378 | J107: بسيون | K107: =SUMPRODUCT(SUMIF(INDIRECT("'"&ShtList&"'!a2:a10000"),$A107,INDIRECT("'"&ShtList&"'!k2:k10000"))) -> 2566.2
A108: 27410051601209 | B108: 3-مرتب تحويلات بنكية | D108: الفرستق ع مشتركة | E108: 6456 | F108: انتصاراحمد السيد عبد القادر | G108: 0003 | H108: البنك الاهلي المصري | I108: 0378 | J108: بسيون | K108: =SUMPRODUCT(SUMIF(INDIRECT("'"&ShtList&"'!a2:a10000"),$A108,INDIRECT("'"&ShtList&"'!k2:k10000"))) -> 0
A109: 27403061601154 | B109: 3-مرتب تحويلات بنكية | D109: كنيسة شبراطو ع | E109: 1699 | F109: انور عبدالقوى رحيم جادالله | G109: 1009 | H109: البنك الرئيسي للتنميه والائتمان الزراعى | I109: 0804 | J109: بسيون | K109: =SUMPRODUCT(SUMIF(INDIRECT("'"&ShtList&"'!a2:a10000"),$A109,INDIRECT("'"&ShtList&"'!k2:k10000"))) -> 1444.4
A110: 27110071600892 | B110: 3-مرتب تحويلات بنكية | D110: كتامة ث تجارية | E110: 5288 | F110: انور محمد احمد ابو يوسف | G110: 0003 | H110: البنك الاهلي المصري | I110: 0378 | J110: بسيون | K110: =SUMPRODUCT(SUMIF(INDIRECT("'"&ShtList&"'!a2:a10000"),$A110,INDIRECT("'"&ShtList&"'!k2:k10000"))) -> 2641.55
A111: 26711081601218 | B111: 3-مرتب تحويلات بنكية | D111: صلاح حتاتة ع | E111: 1243 | F111: انور محمود محمد احمد طه | G111: 0003 | H111: البنك الاهلي المصري | I111: 0378 | J111: بسيون | K111: =SUMPRODUCT(SUMIF(INDIRECT("'"&ShtList&"'!a2:a10000"),$A111,INDIRECT("'"&ShtList&"'!k2:k10000"))) -> 2615.95
A112: 28910231602242 | B112: 3-مرتب تحويلات بنكية | D112: حلمى انيس ت ا | E112: 5918 | F112: اية ابراهيم عبد الدايم | G112: 0003 | H112: البنك الاهلي المصري | I112: 0380 | J112: المحلة الكبرى | K112: =SUMPRODUCT(SUMIF(INDIRECT("'"&ShtList&"'!a2:a10000"),$A112,INDIRECT("'"&ShtList&"'!k2:k10000"))) -> 0
A113: 27601041602541 | B113: 3-مرتب تحويلات بنكية | D113: ناصر ث بنين | E113: 3803 | F113: ايماان بسيونى احمد عوض | G113: 0003 | H113: البنك الاهلي المصري | I113: 0378 | J113: بسيون | K113: =SUMPRODUCT(SUMIF(INDIRECT("'"&ShtList&"'!a2:a10000"),$A113,INDIRECT("'"&ShtList&"'!k2:k10000"))) -> 1909.9
A114: 27201101600529 | B114: 3-مرتب تحويلات بنكية | D114: الديوان | E114: 2102 | F114: ايمان ابراهيم محمد الدهبى | G114: 0098 | H114: بنك مصر | I114: 0257 | J114: بسيون | K114: =SUMPRODUCT(SUMIF(INDIRECT("'"&ShtList&"'!a2:a10000"),$A114,INDIRECT("'"&ShtList&"'!k2:k10000"))) -> 0
A115: 28410301600983 | B115: 3-مرتب تحويلات بنكية | D115: صلاح سالم ب | E115: 829 | F115: ايمان عبد المعطى حشاد | G115: 0003 | H115: البنك الاهلي المصري | I115: 0378 | J115: بسيون | K115: =SUMPRODUCT(SUMIF(INDIRECT("'"&ShtList&"'!a2:a10000"),$A115,INDIRECT("'"&ShtList&"'!k2:k10000"))) -> 1561.55
A116: 26401281600047 | B116: 3-مرتب تحويلات بنكية | D116: بسيون ث صناعى | E116: 5022 | F116: ايمان فهمى رضوان يونس | G116: 0003 | H116: البنك الاهلي المصري | I116: 0378 | J116: بسيون | K116: =SUMPRODUCT(SUMIF(INDIRECT("'"&ShtList&"'!a2:a10000"),$A116,INDIRECT("'"&ShtList&"'!k2:k10000"))) -> 3917.45
A117: 27907111601302 | B117: 3-مرتب تحويلات بنكية | D117: رجائى حتاتة ب | E117: 5672 | F117: ايمان ماهر عبد الرحيم عطا | G117: 0003 | H117: البنك الاهلي المصري | I117: 0378 | J117: بسيون | K117: =SUMPRODUCT(SUMIF(INDIRECT("'"&ShtList&"'!a2:a10000"),$A117,INDIRECT("'"&ShtList&"'!k2:k10000"))) -> 0
A118: 27404090201544 | B118: 3-مرتب تحويلات بنكية | D118: الفرستق ع مشتركة | E118: 945 | F118: ايمان محروس السيد ايوب | G118: 0003 | H118: البنك الاهلي المصري | I118: 0378 | J118: بسيون | K118: =SUMPRODUCT(SUMIF(INDIRECT("'"&ShtList&"'!a2:a10000"),$A118,INDIRECT("'"&ShtList&"'!k2:k10000"))) -> 0
A119: 26310031600984 | B119: 3-مرتب تحويلات بنكية | D119: بسيون ع بنات | E119: 885 | F119: ايمان محمد حلمى محمد وفا | G119: 0003 | H119: البنك الاهلي المصري | I119: 0378 | J119: بسيون | K119: =SUMPRODUCT(SUMIF(INDIRECT("'"&ShtList&"'!a2:a10000"),$A119,INDIRECT("'"&ShtList&"'!k2:k10000"))) -> 2629.45
A120: 28303121601727 | B120: 3-مرتب تحويلات بنكية | D120: عزبة رزق ب | E120: 3949 | F120: ايمان نصحى ابو اليزيد محمد المغينى | G120: 0038 | H120: بنك التعمير و الاسكان | I120: 0031 | J120: كفر الشيخ | K120: =SUMPRODUCT(SUMIF(INDIRECT("'"&ShtList&"'!a2:a10000"),$A120,INDIRECT("'"&ShtList&"'!k2:k10000"))) -> 1463.8
A121: 26805151601479 | B121: 3-مرتب تحويلات بنكية | D121: ميت شريف ث | E121: 3848 | F121: ايمن انصارى محمد السخاوى | G121: 0003 | H121: البنك الاهلي المصري | I121: 0378 | J121: بسيون | K121: =SUMPRODUCT(SUMIF(INDIRECT("'"&ShtList&"'!a2:a10000"),$A121,INDIRECT("'"&ShtList&"'!k2:k10000"))) -> 2853.55
A122: 26409191601118 | B122: 3-مرتب تحويلات بنكية | D122: نجريج ب ت ا | E122: 3218 | F122: ايمن بسيونى محمد عثمان | G122: 0098 | H122: بنك مصر | I122: 0257 | J122: بسيون | K122: =SUMPRODUCT(SUMIF(INDIRECT("'"&ShtList&"'!a2:a10000"),$A122,INDIRECT("'"&ShtList&"'!k2:k10000"))) -> 0
A123: 27112271601993 | B123: 3-مرتب تحويلات بنكية | D123: الديوان | E123: 3137 | F123: ايمن محمد عبد الرسول احمد فايد | G123: 0098 | H123: بنك مصر | I123: 0257 | J123: بسيون | K123: =SUMPRODUCT(SUMIF(INDIRECT("'"&ShtList&"'!a2:a10000"),$A123,INDIRECT("'"&ShtList&"'!k2:k10000"))) -> 0
A124: 27508011601061 | B124: 3-مرتب تحويلات بنكية | D124: على بن ابى طالب المهنى ع | E124: 2368 | F124: ايناس عزت توفيق بدوى | G124: 0098 | H124: بنك مصر | I124: 0257 | J124: بسيون | K124: =SUMPRODUCT(SUMIF(INDIRECT("'"&ShtList&"'!a2:a10000"),$A124,INDIRECT("'"&ShtList&"'!k2:k10000"))) -> 0
A125: 28709051602565 | B125: 3-مرتب تحويلات بنكية | D125: الامام الشافعى بقرنشو ب | E125: 6383 | F125: ايناس محمد زكى جبر | G125: 0003 | H125: البنك الاهلي المصري | I125: 0378 | J125: بسيون | K125: =SUMPRODUCT(SUMIF(INDIRECT("'"&ShtList&"'!a2:a10000"),$A125,INDIRECT("'"&ShtList&"'!k2:k10000"))) -> 1561.7
A126: 28112071601119 | B126: 3-مرتب تحويلات بنكية | D126: خالد ابن الوليد ت ا ب | E126: 6378 | F126: ايهاب محمود على الضو | G126: 0003 | H126: البنك الاهلي المصري | I126: 0378 | J126: بسيون | K126: =SUMPRODUCT(SUMIF(INDIRECT("'"&ShtList&"'!a2:a10000"),$A126,INDIRECT("'"&ShtList&"'!k2:k10000"))) -> 1472.3
A127: 27205100101095 | B127: 3-مرتب تحويلات بنكية | D127: كفر جعفر ب ر | E127: 6540 | F127: ايهاب نصر عبدالنبى | G127: 0004 | H127: بنك القاهرة | I127: 2010 | J127: سيزوستريس | K127: =SUMPRODUCT(SUMIF(INDIRECT("'"&ShtList&"'!a2:a10000"),$A127,INDIRECT("'"&ShtList&"'!k2:k10000"))) -> 0
A128: 26406031600884 | B128: 3-مرتب تحويلات بنكية | D128: قسم بسيون 2 | E128: 6725 | F128: بثينه عبد الرءوف محمد داود | G128: 1009 | H128: البنك الرئيسي للتنميه والائتمان الزراعى | I128: 0804 | J128: بسيون | K128: =SUMPRODUCT(SUMIF(INDIRECT("'"&ShtList&"'!a2:a10000"),$A128,INDIRECT("'"&ShtList&"'!k2:k10000"))) -> 0
A129: 26304031600691 | B129: 3-مرتب تحويلات بنكية | D129: كتامة ث تجارية | E129: 1483 | F129: بدر عبد القوى عبدالحميد حميده | G129: 0003 | H129: البنك الاهلي المصري | I129: 0378 | J129: بسيون | K129: =SUMPRODUCT(SUMIF(INDIRECT("'"&ShtList&"'!a2:a10000"),$A129,INDIRECT("'"&ShtList&"'!k2:k10000"))) -> 2069.1
A130: 26212121603565 | B130: 3-مرتب تحويلات بنكية | D130: قسم بسيون 2 | E130: 6772 | F130: بديعه مصطفى عبد الحليم المراسى | G130: 0003 | H130: البنك الاهلي المصري | I130: 0378 | J130: بسيون | K130: =SUMPRODUCT(SUMIF(INDIRECT("'"&ShtList&"'!a2:a10000"),$A130,INDIRECT("'"&ShtList&"'!k2:k10000"))) -> 0
A131: 27904171600993 | B131: 3-مرتب تحويلات بنكية | D131: بسيون ث صناعى | E131: 5226 | F131: بسيونى عبد المجيد بسيونى حسنين | G131: 0003 | H131: البنك الاهلي المصري | I131: 0378 | J131: بسيون | K131: =SUMPRODUCT(SUMIF(INDIRECT("'"&ShtList&"'!a2:a10000"),$A131,INDIRECT("'"&ShtList&"'!k2:k10000"))) -> 0
A132: 26311291600593 | B132: 3-مرتب تحويلات بنكية | D132: الشهيد ابراهيم صالح ع | E132: 1992 | F132: بسيونى محمد السعدنى | G132: 1009 | H132: البنك الرئيسي للتنميه والائتمان الزراعى | I132: 0804 | J132: بسيون | K132: =SUMPRODUCT(SUMIF(INDIRECT("'"&ShtList&"'!a2:a10000"),$A132,INDIRECT("'"&ShtList&"'!k2:k10000"))) -> 1865
A133: 27512011502108 | B133: 3-مرتب تحويلات بنكية | D133: كفر الدوار ب | E133: 529 | F133: بسيونية محمد احمد الحبشى | G133: 0003 | H133: البنك الاهلي المصري | I133: 0378 | J133: بسيون | K133: =SUMPRODUCT(SUMIF(INDIRECT("'"&ShtList&"'!a2:a10000"),$A133,INDIRECT("'"&ShtList&"'!k2:k10000"))) -> 2417.05
A134: 27503011602634 | B134: 3-مرتب تحويلات بنكية | D134: صلاح حتاتة ع | E134: 6446 | F134: تامررجب شلبى الاشقر | G134: 0003 | H134: البنك الاهلي المصري | I134: 0435 | J134: قطور | K134: =SUMPRODUCT(SUMIF(INDIRECT("'"&ShtList&"'!a2:a10000"),$A134,INDIRECT("'"&ShtList&"'!k2:k10000"))) -> 1890.05
A135: 26105291601655 | B135: 3-مرتب تحويلات بنكية | D135: كفر سالم ر | E135: 3237 | F135: تكال على عبد اللطيف ماضى | G135: 0003 | H135: البنك الاهلي المصري | I135: 0378 | J135: بسيون | K135: =SUMPRODUCT(SUMIF(INDIRECT("'"&ShtList&"'!a2:a10000"),$A135,INDIRECT("'"&ShtList&"'!k2:k10000"))) -> 2568
A136: 26408021602148 | B136: 3-مرتب تحويلات بنكية | D136: الحداد ع ت ا | E136: 516 | F136: ثناء عبدالمنعم صقر | G136: 0003 | H136: البنك الاهلي المصري | I136: 0378 | J136: بسيون | K136: =SUMPRODUCT(SUMIF(INDIRECT("'"&ShtList&"'!a2:a10000"),$A136,INDIRECT("'"&ShtList&"'!k2:k10000"))) -> 2332.15
A137: 28709031601805 | B137: 3-مرتب تحويلات بنكية | D137: محمد حسنى مبارك ب | E137: 5738 | F137: ثناء على محمد صالح | G137: 0003 | H137: البنك الاهلي المصري | I137: 0378 | J137: بسيون | K137: =SUMPRODUCT(SUMIF(INDIRECT("'"&ShtList&"'!a2:a10000"),$A137,INDIRECT("'"&ShtList&"'!k2:k10000"))) -> 0
A138: 26011271602138 | B138: 3-مرتب تحويلات بنكية | D138: عبد النبى خمخم بسلامون ع مشترك | E138: 1102 | F138: جابر السيد مبروك عوض | G138: 0003 | H138: البنك الاهلي المصري | I138: 0378 | J138: بسيون | K138: =SUMPRODUCT(SUMIF(INDIRECT("'"&ShtList&"'!a2:a10000"),$A138,INDIRECT("'"&ShtList&"'!k2:k10000"))) -> 2935.95
A139: 27010191601235 | B139: 3-مرتب تحويلات بنكية | D139: بسيون ث صناعى | E139: 6119 | F139: جابر حامد حامد الاشعل | G139: 0003 | H139: البنك الاهلي المصري | I139: 0378 | J139: بسيون | K139: =SUMPRODUCT(SUMIF(INDIRECT("'"&ShtList&"'!a2:a10000"),$A139,INDIRECT("'"&ShtList&"'!k2:k10000"))) -> 2428.05
A140: 27209031601531 | B140: 3-مرتب تحويلات بنكية | D140: بسيون ث صناعى | E140: 6449 | F140: جابرجمعه احمدمصطفى العبد | G140: 0003 | H140: البنك الاهلي المصري | I140: 0378 | J140: بسيون | K140: =SUMPRODUCT(SUMIF(INDIRECT("'"&ShtList&"'!a2:a10000"),$A140,INDIRECT("'"&ShtList&"'!k2:k10000"))) -> 1176.15
A141: 26302241600712 | B141: 3-مرتب تحويلات بنكية | D141: عبد النبى خمخم بسلامون ر | E141: 146 | F141: جبر السيد مبروك عوض | G141: 0003 | H141: البنك الاهلي المصري | I141: 0378 | J141: بسيون | K141: =SUMPRODUCT(SUMIF(INDIRECT("'"&ShtList&"'!a2:a10000"),$A141,INDIRECT("'"&ShtList&"'!k2:k10000"))) -> 2101.95
A142: 25911041601555 | B142: 3-مرتب تحويلات بنكية | D142: عزبة ناشد ب | E142: 1355 | F142: جلال عبد العاطى حميدة | G142: 0098 | H142: بنك مصر | I142: 0257 | J142: بسيون | K142: =SUMPRODUCT(SUMIF(INDIRECT("'"&ShtList&"'!a2:a10000"),$A142,INDIRECT("'"&ShtList&"'!k2:k10000"))) -> 0
A143: 26312101601731 | B143: 3-مرتب تحويلات بنكية | D143: بسيون ث صناعى | E143: 5017 | F143: جلال عبد المعطى حسن الحداد | G143: 0003 | H143: البنك الاهلي المصري | I143: 0378 | J143: بسيون | K143: =SUMPRODUCT(SUMIF(INDIRECT("'"&ShtList&"'!a2:a10000"),$A143,INDIRECT("'"&ShtList&"'!k2:k10000"))) -> 0
A144: 26101181601999 | B144: 3-مرتب تحويلات بنكية | D144: الديوان | E144: 4978 | F144: جمال الدين نصر شعبان الطويل | G144: 0098 | H144: بنك مصر | I144: 0257 | J144: بسيون | K144: =SUMPRODUCT(SUMIF(INDIRECT("'"&ShtList&"'!a2:a10000"),$A144,INDIRECT("'"&ShtList&"'!k2:k10000"))) -> 0
A145: 26312211601698 | B145: 3-مرتب تحويلات بنكية | D145: السادات تجارية | E145: 4649 | F145: جمال السيد بسيونى عيد | G145: 0003 | H145: البنك الاهلي المصري | I145: 0378 | J145: بسيون | K145: =SUMPRODUCT(SUMIF(INDIRECT("'"&ShtList&"'!a2:a10000"),$A145,INDIRECT("'"&ShtList&"'!k2:k10000"))) -> 2057.5
A146: 26706121601174 | B146: 3-مرتب تحويلات بنكية | D146: بسيون ث صناعى | E146: 6170 | F146: جمال السيد محمد ابو المجد | G146: 0003 | H146: البنك الاهلي المصري | I146: 0378 | J146: بسيون | K146: =SUMPRODUCT(SUMIF(INDIRECT("'"&ShtList&"'!a2:a10000"),$A146,INDIRECT("'"&ShtList&"'!k2:k10000"))) -> 2995.4
A147: 26212171603477 | B147: 3-مرتب تحويلات بنكية | D147: صالحجر ع بنات | E147: 191 | F147: جمال حسن غانم | G147: 0003 | H147: البنك الاهلي المصري | I147: 0378 | J147: بسيون | K147: =SUMPRODUCT(SUMIF(INDIRECT("'"&ShtList&"'!a2:a10000"),$A147,INDIRECT("'"&ShtList&"'!k2:k10000"))) -> 3427.1
A148: 26910271601713 | B148: 3-مرتب تحويلات بنكية | D148: ابو حمر ت ا ب | E148: 6008 | F148: جمال رضوان عبد العزيز الصعيدى | G148: 0098 | H148: بنك مصر | I148: 0257 | J148: بسيون | K148: =SUMPRODUCT(SUMIF(INDIRECT("'"&ShtList&"'!a2:a10000"),$A148,INDIRECT("'"&ShtList&"'!k2:k10000"))) -> 0
A149: 26311251601074 | B149: 3-مرتب تحويلات بنكية | D149: كفر نصير ع | E149: 1667 | F149: جمال على مرسى ابراهيم | G149: 1009 | H149: البنك الرئيسي للتنميه والائتمان الزراعى | I149: 0804 | J149: بسيون | K149: =SUMPRODUCT(SUMIF(INDIRECT("'"&ShtList&"'!a2:a10000"),$A149,INDIRECT("'"&ShtList&"'!k2:k10000"))) -> 0
A150: 26511251801196 | B150: 3-مرتب تحويلات بنكية | D150: الديوان | E150: 4071 | F150: جمال محمد خليل محمد | G150: 0003 | H150: البنك الاهلي المصري | I150: 0378 | J150: بسيون | K150: =SUMPRODUCT(SUMIF(INDIRECT("'"&ShtList&"'!a2:a10000"),$A150,INDIRECT("'"&ShtList&"'!k2:k10000"))) -> 2080.95
A151: 26207231601556 | B151: 3-مرتب تحويلات بنكية | D151: الشهيد جمال شتا ع | E151: 611 | F151: جمال محمد عبده ابو شتيه | G151: 0003 | H151: البنك الاهلي المصري | I151: 0378 | J151: بسيون | K151: =SUMPRODUCT(SUMIF(INDIRECT("'"&ShtList&"'!a2:a10000"),$A151,INDIRECT("'"&ShtList&"'!k2:k10000"))) -> 2556.35
A152: 26403191600849 | B152: 3-مرتب تحويلات بنكية | D152: خليفة عيسى بالفرستق ب | E152: 639 | F152: جمالات محمد الحفناوى | G152: 0003 | H152: البنك الاهلي المصري | I152: 0378 | J152: بسيون | K152: =SUMPRODUCT(SUMIF(INDIRECT("'"&ShtList&"'!a2:a10000"),$A152,INDIRECT("'"&ShtList&"'!k2:k10000"))) -> 2132.25
A153: 26803041601012 | B153: 3-مرتب تحويلات بنكية | D153: كتامة ث مشتركة | E153: 1541 | F153: جمعة محمد الجمل | G153: 0003 | H153: البنك الاهلي المصري | I153: 0378 | J153: بسيون | K153: =SUMPRODUCT(SUMIF(INDIRECT("'"&ShtList&"'!a2:a10000"),$A153,INDIRECT("'"&ShtList&"'!k2:k10000"))) -> 3117.25
A154: 26508211600952 | B154: 3-مرتب تحويلات بنكية | D154: الشهيد حسن حجازى ب | E154: 6422 | F154: جمعه حسن رجب الصياد | G154: 0098 | H154: بنك مصر | I154: 0257 | J154: بسيون | K154: =SUMPRODUCT(SUMIF(INDIRECT("'"&ShtList&"'!a2:a10000"),$A154,INDIRECT("'"&ShtList&"'!k2:k10000"))) -> 0
A155: 26311251600892 | B155: 3-مرتب تحويلات بنكية | D155: ابو حمر ت ا ب | E155: 5991 | F155: جمعه حسين مصطفى الشامى | G155: 0003 | H155: البنك الاهلي المصري | I155: 0378 | J155: بسيون | K155: =SUMPRODUCT(SUMIF(INDIRECT("'"&ShtList&"'!a2:a10000"),$A155,INDIRECT("'"&ShtList&"'!k2:k10000"))) -> 0
A156: 26205261600659 | B156: 3-مرتب تحويلات بنكية | D156: كفر سالم ت ا ب | E156: 2941 | F156: جمعه عبد البسيط السلهوبى | G156: 0004 | H156: بنك القاهرة | I156: 4130 | J156: طنطا | K156: =SUMPRODUCT(SUMIF(INDIRECT("'"&ShtList&"'!a2:a10000"),$A156,INDIRECT("'"&ShtList&"'!k2:k10000"))) -> 3447.25
A157: 26410071600965 | B157: 3-مرتب تحويلات بنكية | D157: ابو حمر ع ت ا | E157: 413 | F157: جملات ابوالعنين محمود عيد | G157: 1009 | H157: البنك الرئيسي للتنميه والائتمان الزراعى | I157: 0804 | J157: بسيون | K157: =SUMPRODUCT(SUMIF(INDIRECT("'"&ShtList&"'!a2:a10000"),$A157,INDIRECT("'"&ShtList&"'!k2:k10000"))) -> 2138.7
A158: 27106121601138 | B158: 3-مرتب تحويلات بنكية | D158: عزبة ناشد ب | E158: 1343 | F158: جميل كامل عبد السلام | G158: 0003 | H158: البنك الاهلي المصري | I158: 0378 | J158: بسيون | K158: =SUMPRODUCT(SUMIF(INDIRECT("'"&ShtList&"'!a2:a10000"),$A158,INDIRECT("'"&ShtList&"'!k2:k10000"))) -> 1836.75
A159: 26310191601103 | B159: 3-مرتب تحويلات بنكية | D159: صلاح سالم ب | E159: 4701 | F159: جميلة عبد الحميد محمد الصعيدى | G159: 0098 | H159: بنك مصر | I159: 0257 | J159: بسيون | K159: =SUMPRODUCT(SUMIF(INDIRECT("'"&ShtList&"'!a2:a10000"),$A159,INDIRECT("'"&ShtList&"'!k2:k10000"))) -> 0
A160: 27508191600202 | B160: 3-مرتب تحويلات بنكية | D160: بسيون ع بنات | E160: 891 | F160: جيرمين حسنى محمود البدرى | G160: 0003 | H160: البنك الاهلي المصري | I160: 0379 | J160: المعتصم بطنطا | K160: =SUMPRODUCT(SUMIF(INDIRECT("'"&ShtList&"'!a2:a10000"),$A160,INDIRECT("'"&ShtList&"'!k2:k10000"))) -> 2467.55
A161: 26602181600363 | B161: 3-مرتب تحويلات بنكية | D161: بسيون ث بنات | E161: 5558 | F161: جيهان بدوى كامل بدوى | G161: 0003 | H161: البنك الاهلي المصري | I161: 0378 | J161: بسيون | K161: =SUMPRODUCT(SUMIF(INDIRECT("'"&ShtList&"'!a2:a10000"),$A161,INDIRECT("'"&ShtList&"'!k2:k10000"))) -> 3274.6
A162: 27508041601243 | B162: 3-مرتب تحويلات بنكية | D162: كفر جعفر ب ر | E162: 3375 | F162: جيهان نبيل احمد السلماوى | G162: 0003 | H162: البنك الاهلي المصري | I162: 0378 | J162: بسيون | K162: =SUMPRODUCT(SUMIF(INDIRECT("'"&ShtList&"'!a2:a10000"),$A162,INDIRECT("'"&ShtList&"'!k2:k10000"))) -> 2250.55
A163: 26811021600713 | B163: 3-مرتب تحويلات بنكية | D163: مشال ب | E163: 2051 | F163: حاتم بدير محمد العدوى | G163: 0003 | H163: البنك الاهلي المصري | I163: 0378 | J163: بسيون | K163: =SUMPRODUCT(SUMIF(INDIRECT("'"&ShtList&"'!a2:a10000"),$A163,INDIRECT("'"&ShtList&"'!k2:k10000"))) -> 2538.65
A164: 27901021604371 | B164: 3-مرتب تحويلات بنكية | D164: بسيون ث صناعى | E164: 6642 | F164: حاتم صلاح اسماعيل زيادة | G164: 0003 | H164: البنك الاهلي المصري | I164: 0378 | J164: بسيون | K164: =SUMPRODUCT(SUMIF(INDIRECT("'"&ShtList&"'!a2:a10000"),$A164,INDIRECT("'"&ShtList&"'!k2:k10000"))) -> 1413.8
A165: 26006291600219 | B165: 3-مرتب تحويلات بنكية | D165: جناج ب الجديدة | E165: 2883 | F165: حامد محمد الفقى | G165: 0003 | H165: البنك الاهلي المصري | I165: 0378 | J165: بسيون | K165: =SUMPRODUCT(SUMIF(INDIRECT("'"&ShtList&"'!a2:a10000"),$A165,INDIRECT("'"&ShtList&"'!k2:k10000"))) -> 3777.45
A166: 26901181602932 | B166: 3-مرتب تحويلات بنكية | D166: الثورة ب | E166: 3850 | F166: حجبر مصطفى احمد مصطفى الحريرى | G166: 0003 | H166: البنك الاهلي المصري | I166: 0378 | J166: بسيون | K166: =SUMPRODUCT(SUMIF(INDIRECT("'"&ShtList&"'!a2:a10000"),$A166,INDIRECT("'"&ShtList&"'!k2:k10000"))) -> 1459.65
A167: 27406021601398 | B167: 3-مرتب تحويلات بنكية | D167: جناج ع مشتركة | E167: 6453 | F167: حسام الدين على على السمدونى | G167: 0003 | H167: البنك الاهلي المصري | I167: 0378 | J167: بسيون | K167: =SUMPRODUCT(SUMIF(INDIRECT("'"&ShtList&"'!a2:a10000"),$A167,INDIRECT("'"&ShtList&"'!k2:k10000"))) -> 2174.45
A168: 28111281601271 | B168: 3-مرتب تحويلات بنكية | D168: صلاح سالم ب | E168: 6454 | F168: حسام محمد محمود الحصرى | G168: 0003 | H168: البنك الاهلي المصري | I168: 0378 | J168: بسيون | K168: =SUMPRODUCT(SUMIF(INDIRECT("'"&ShtList&"'!a2:a10000"),$A168,INDIRECT("'"&ShtList&"'!k2:k10000"))) -> 1460.7
A169: 27905171600035 | B169: 3-مرتب تحويلات بنكية | D169: كتامة ب مشتركة | E169: 2281 | F169: حسانين عبد العزيز حسانين سلامة | G169: 0003 | H169: البنك الاهلي المصري | I169: 0378 | J169: بسيون | K169: =SUMPRODUCT(SUMIF(INDIRECT("'"&ShtList&"'!a2:a10000"),$A169,INDIRECT("'"&ShtList&"'!k2:k10000"))) -> 1882.95
A170: 26804251601194 | B170: 3-مرتب تحويلات بنكية | D170: عبد النبى خمخم بسلامون ر | E170: 139 | F170: حسن احمد احمد باشا | G170: 0003 | H170: البنك الاهلي المصري | I170: 0378 | J170: بسيون | K170: =SUMPRODUCT(SUMIF(INDIRECT("'"&ShtList&"'!a2:a10000"),$A170,INDIRECT("'"&ShtList&"'!k2:k10000"))) -> 2050.85
A171: 26007111600093 | B171: 3-مرتب تحويلات بنكية | D171: الديوان | E171: 4956 | F171: حسن السيد السيد عشرة | G171: 0098 | H171: بنك مصر | I171: 0257 | J171: بسيون | K171: =SUMPRODUCT(SUMIF(INDIRECT("'"&ShtList&"'!a2:a10000"),$A171,INDIRECT("'"&ShtList&"'!k2:k10000"))) -> 3365.3
A172: 26303061600851 | B172: 3-مرتب تحويلات بنكية | D172: حافظ الدرينى ر | E172: 2586 | F172: حسن بسيونى حسن ابو طاحون | G172: 0098 | H172: بنك مصر | I172: 0257 | J172: بسيون | K172: =SUMPRODUCT(SUMIF(INDIRECT("'"&ShtList&"'!a2:a10000"),$A172,INDIRECT("'"&ShtList&"'!k2:k10000"))) -> 0
A173: 26009201600435 | B173: 3-مرتب تحويلات بنكية | D173: عيسوىفايد ث | E173: 3100 | F173: حسن محمد عبد الحى الحجار | G173: 0003 | H173: البنك الاهلي المصري | I173: 0378 | J173: بسيون | K173: =SUMPRODUCT(SUMIF(INDIRECT("'"&ShtList&"'!a2:a10000"),$A173,INDIRECT("'"&ShtList&"'!k2:k10000"))) -> 1902.5
A174: 27810051600995 | B174: 3-مرتب تحويلات بنكية | D174: محمد كامل الجندى كفر عسكر ب | E174: 743 | F174: حسن محمد عبد الرؤف الكردى | G174: 0038 | H174: بنك التعمير و الاسكان | I174: 0048 | J174: الهرم | K174: =SUMPRODUCT(SUMIF(INDIRECT("'"&ShtList&"'!a2:a10000"),$A174,INDIRECT("'"&ShtList&"'!k2:k10000"))) -> 0
A175: 26309241601799 | B175: 3-مرتب تحويلات بنكية | D175: الشهيد حسن حجازى ب | E175: 2252 | F175: حسن محمد محمد حجازى | G175: 0003 | H175: البنك الاهلي المصري | I175: 0378 | J175: بسيون | K175: =SUMPRODUCT(SUMIF(INDIRECT("'"&ShtList&"'!a2:a10000"),$A175,INDIRECT("'"&ShtList&"'!k2:k10000"))) -> 0
A176: 26212281603839 | B176: 3-مرتب تحويلات بنكية | D176: قرنشو الفنية | E176: 2200 | F176: حسن محمود عبد الرحمن ابو الخير | G176: 0003 | H176: البنك الاهلي المصري | I176: 0378 | J176: بسيون | K176: =SUMPRODUCT(SUMIF(INDIRECT("'"&ShtList&"'!a2:a10000"),$A176,INDIRECT("'"&ShtList&"'!k2:k10000"))) -> 2826.1
A177: 26802101601614 | B177: 3-مرتب تحويلات بنكية | D177: حصة ابار ع مشتركة | E177: 4551 | F177: حسونه حسين على الفقى | G177: 0003 | H177: البنك الاهلي المصري | I177: 0378 | J177: بسيون | K177: =SUMPRODUCT(SUMIF(INDIRECT("'"&ShtList&"'!a2:a10000"),$A177,INDIRECT("'"&ShtList&"'!k2:k10000"))) -> 2651.15
A178: 26410301600919 | B178: 3-مرتب تحويلات بنكية | D178: الديوان | E178: 6030 | F178: حسين سعيد مكرم | G178: 0003 | H178: البنك الاهلي المصري | I178: 0378 | J178: بسيون | K178: =SUMPRODUCT(SUMIF(INDIRECT("'"&ShtList&"'!a2:a10000"),$A178,INDIRECT("'"&ShtList&"'!k2:k10000"))) -> 2046.75
A179: 26011251602573 | B179: 3-مرتب تحويلات بنكية | D179: كتامة ث مشتركة | E179: 6536 | F179: حسين مصطفي ابراهيم الكردي | G179: 0004 | H179: بنك القاهرة | I179: 4150 | J179: سوق ناصر | K179: =SUMPRODUCT(SUMIF(INDIRECT("'"&ShtList&"'!a2:a10000"),$A179,INDIRECT("'"&ShtList&"'!k2:k10000"))) -> 2912.55
A180: 26006301600379 | B180: 3-مرتب تحويلات بنكية | D180: كفر سالم ر | E180: 3244 | F180: حسينى احمد محمود الحسينى سالم | G180: 0003 | H180: البنك الاهلي المصري | I180: 0378 | J180: بسيون | K180: =SUMPRODUCT(SUMIF(INDIRECT("'"&ShtList&"'!a2:a10000"),$A180,INDIRECT("'"&ShtList&"'!k2:k10000"))) -> 2507.35
A181: 26711131600978 | B181: 3-مرتب تحويلات بنكية | D181: عمر بن عبد العزيز ب | E181: 1367 | F181: حلمى أحمد عزام | G181: 0004 | H181: بنك القاهرة | I181: 4140 | J181: كفر الزيات | K181: =SUMPRODUCT(SUMIF(INDIRECT("'"&ShtList&"'!a2:a10000"),$A181,INDIRECT("'"&ShtList&"'!k2:k10000"))) -> 0
A182: 27001221601473 | B182: 3-مرتب تحويلات بنكية | D182: بسيون ث صناعى | E182: 5247 | F182: حلمى عبد الوهاب احمد الجارية | G182: 0003 | H182: البنك الاهلي المصري | I182: 0378 | J182: بسيون | K182: =SUMPRODUCT(SUMIF(INDIRECT("'"&ShtList&"'!a2:a10000"),$A182,INDIRECT("'"&ShtList&"'!k2:k10000"))) -> 0
A183: 26402091600691 | B183: 3-مرتب تحويلات بنكية | D183: كنيسة شبراطو ع | E183: 3138 | F183: حماد عبد الله حماد الشريف | G183: 1009 | H183: البنك الرئيسي للتنميه والائتمان الزراعى | I183: 0804 | J183: بسيون | K183: =SUMPRODUCT(SUMIF(INDIRECT("'"&ShtList&"'!a2:a10000"),$A183,INDIRECT("'"&ShtList&"'!k2:k10000"))) -> 2565.25
A184: 27003070202213 | B184: 3-مرتب تحويلات بنكية | D184: صالحجر ب جديدة | E184: 4009 | F184: حمدى السيد عبد الفتاح السيد | G184: 0004 | H184: بنك القاهرة | I184: 4140 | J184: كفر الزيات | K184: =SUMPRODUCT(SUMIF(INDIRECT("'"&ShtList&"'!a2:a10000"),$A184,INDIRECT("'"&ShtList&"'!k2:k10000"))) -> 2472.2
A185: 26811091600869 | B185: 3-مرتب تحويلات بنكية | D185: محمد كامل الجندى كفر عسكر ب | E185: 723 | F185: حمدية أحمد عبد الهادى شتا | G185: 0098 | H185: بنك مصر | I185: 0257 | J185: بسيون | K185: =SUMPRODUCT(SUMIF(INDIRECT("'"&ShtList&"'!a2:a10000"),$A185,INDIRECT("'"&ShtList&"'!k2:k10000"))) -> 0
A186: 27801241601573 | B186: 3-مرتب تحويلات بنكية | D186: مصطفى كامل بكفر نصير ب | E186: 1868 | F186: حمزة جلال علي ابو حمزة | G186: 0003 | H186: البنك الاهلي المصري | I186: 0378 | J186: بسيون | K186: =SUMPRODUCT(SUMIF(INDIRECT("'"&ShtList&"'!a2:a10000"),$A186,INDIRECT("'"&ShtList&"'!k2:k10000"))) -> 1604.3
A187: 26010011602758 | B187: 3-مرتب تحويلات بنكية | D187: قسم بسيون 1 | E187: 5326 | F187: حنا سعد صليب عبد الملاك | G187: 0005 | H187: بنك الإسكندرية | I187: 3003 | J187: فرع طنطــــا | K187: =SUMPRODUCT(SUMIF(INDIRECT("'"&ShtList&"'!a2:a10000"),$A187,INDIRECT("'"&ShtList&"'!k2:k10000"))) -> 0
A188: 26803111600728 | B188: 3-مرتب تحويلات بنكية | D188: مدرسة الجمهورية التجريبية | E188: 6404 | F188: حنان السيد حامد الخياط | G188: 0098 | H188: بنك مصر | I188: 0257 | J188: بسيون | K188: =SUMPRODUCT(SUMIF(INDIRECT("'"&ShtList&"'!a2:a10000"),$A188,INDIRECT("'"&ShtList&"'!k2:k10000"))) -> 0
A189: 26708291600906 | B189: 3-مرتب تحويلات بنكية | D189: كفر الدوار ب | E189: 1566 | F189: حنان زكريا عبد اللطيف السمدونى | G189: 0004 | H189: بنك القاهرة | I189: 4150 | J189: سوق ناصر | K189: =SUMPRODUCT(SUMIF(INDIRECT("'"&ShtList&"'!a2:a10000"),$A189,INDIRECT("'"&ShtList&"'!k2:k10000"))) -> 2455.7
A190: 27111271601644 | B190: 3-مرتب تحويلات بنكية | D190: مشال ب | E190: 1812 | F190: حنان عبد الحميد محمد البرلسى | G190: 0003 | H190: البنك الاهلي المصري | I190: 0378 | J190: بسيون | K190: =SUMPRODUCT(SUMIF(INDIRECT("'"&ShtList&"'!a2:a10000"),$A190,INDIRECT("'"&ShtList&"'!k2:k10000"))) -> 2598.7
A191: 27208231500229 | B191: 3-مرتب تحويلات بنكية | D191: كفر الدوار ب | E191: 1560 | F191: حنان محمد إبراهيم أباظه | G191: 0098 | H191: بنك مصر | I191: 0257 | J191: بسيون | K191: =SUMPRODUCT(SUMIF(INDIRECT("'"&ShtList&"'!a2:a10000"),$A191,INDIRECT("'"&ShtList&"'!k2:k10000"))) -> 0
A192: 27612051601715 | B192: 3-مرتب تحويلات بنكية | D192: بسيون ث صناعى | E192: 501 | F192: خالد احمد فؤاد النحراوى | G192: 0098 | H192: بنك مصر | I192: 0257 | J192: بسيون | K192: =SUMPRODUCT(SUMIF(INDIRECT("'"&ShtList&"'!a2:a10000"),$A192,INDIRECT("'"&ShtList&"'!k2:k10000"))) -> 0
A193: 26510061900272 | B193: 3-مرتب تحويلات بنكية | D193: عيسوىفايد ث | E193: 1418 | F193: خالد الأباصيرى الحجار | G193: 0003 | H193: البنك الاهلي المصري | I193: 0378 | J193: بسيون | K193: =SUMPRODUCT(SUMIF(INDIRECT("'"&ShtList&"'!a2:a10000"),$A193,INDIRECT("'"&ShtList&"'!k2:k10000"))) -> 0
A194: 26609151600932 | B194: 3-مرتب تحويلات بنكية | D194: المستشار احمد عصمت ع | E194: 2426 | F194: خالد جمال الاحول | G194: 0003 | H194: البنك الاهلي المصري | I194: 0378 | J194: بسيون | K194: =SUMPRODUCT(SUMIF(INDIRECT("'"&ShtList&"'!a2:a10000"),$A194,INDIRECT("'"&ShtList&"'!k2:k10000"))) -> 0
A195: 27301031602931 | B195: 3-مرتب تحويلات بنكية | D195: الشهيد عبد المنعم رياض بكتامة | E195: 4440 | F195: خالد حمدى عيد محمد ابو عوض | G195: 0098 | H195: بنك مصر | I195: 0257 | J195: بسيون | K195: =SUMPRODUCT(SUMIF(INDIRECT("'"&ShtList&"'!a2:a10000"),$A195,INDIRECT("'"&ShtList&"'!k2:k10000"))) -> 0
A196: 26207231601394 | B196: 3-مرتب تحويلات بنكية | D196: السادات تجارية | E196: 5282 | F196: خالد عاطف حسين الشافعى | G196: 0098 | H196: بنك مصر | I196: 0257 | J196: بسيون | K196: =SUMPRODUCT(SUMIF(INDIRECT("'"&ShtList&"'!a2:a10000"),$A196,INDIRECT("'"&ShtList&"'!k2:k10000"))) -> 0
A197: 26710161600895 | B197: 3-مرتب تحويلات بنكية | D197: السادات تجارية | E197: 2461 | F197: خالد عطية عطوان الطوخى | G197: 0003 | H197: البنك الاهلي المصري | I197: 0378 | J197: بسيون | K197: =SUMPRODUCT(SUMIF(INDIRECT("'"&ShtList&"'!a2:a10000"),$A197,INDIRECT("'"&ShtList&"'!k2:k10000"))) -> 2725.35
A198: 26705131601516 | B198: 3-مرتب تحويلات بنكية | D198: بسيون ث بنات | E198: 5612 | F198: خالد على رمضان على | G198: 0003 | H198: البنك الاهلي المصري | I198: 0378 | J198: بسيون | K198: =SUMPRODUCT(SUMIF(INDIRECT("'"&ShtList&"'!a2:a10000"),$A198,INDIRECT("'"&ShtList&"'!k2:k10000"))) -> 2918.4
A199: 26505311601752 | B199: 3-مرتب تحويلات بنكية | D199: الشهيد جمال شتا ب | E199: 583 | F199: خيرى عبد الجليل يوسف ابو عامر | G199: 0003 | H199: البنك الاهلي المصري | I199: 0378 | J199: بسيون | K199: =SUMPRODUCT(SUMIF(INDIRECT("'"&ShtList&"'!a2:a10000"),$A199,INDIRECT("'"&ShtList&"'!k2:k10000"))) -> 2280.95
A200: 25909221601494 | B200: 3-مرتب تحويلات بنكية | D200: كتامة ب الجديدة | E200: 1461 | F200: خيري محمد احمد داود | G200: 0004 | H200: بنك القاهرة | I200: 4140 | J200: كفر الزيات | K200: =SUMPRODUCT(SUMIF(INDIRECT("'"&ShtList&"'!a2:a10000"),$A200,INDIRECT("'"&ShtList&"'!k2:k10000"))) -> 1824.45
... 8051 more rows

Sheet Sheet1
A1: الرقم القومى | B1: نوع المدفوعه | C1: القطاع | D1: الإدارة | E1: رقم الموظف بجهته الأصلية | F1: الاسم | G1: كود البنك | H1: البنك | I1: كود الفرع | J1: الفرع | K1: المرتب
A2: 27111281601219 | B2: 3-مرتب تحويلات بنكية | E2: 6538 | F2: رشاد احمد على محمد | G2: 3 | H2: البنك الاهلي المصري | I2: 378 | J2: بسيون | K2: 0
A3: 26403121602054 | B3: 3-مرتب تحويلات بنكية | E3: 5794 | F3: احمد عبد اللطيف احمد ابو الخير | G3: 3 | H3: البنك الاهلي المصري | I3: 378 | J3: بسيون | K3: 0
A4: 26303311600118 | B4: 3-مرتب تحويلات بنكية | D4: الديوان | E4: 5813 | F4: شريف محمود العوضى محمد | G4: 1009 | H4: البنك الرئيسي للتنميه والائتمان الزراعى | I4: 804 | J4: بسيون | K4: 0
A5: 28203011604904 | B5: 3-مرتب تحويلات بنكية | D5: الديوان | E5: 5844 | F5: نجوى ابراهيم احمد مختار الديهى | G5: 98 | H5: بنك مصر | I5: 257 | J5: بسيون | K5: 0
A6: 26111081600281 | B6: 3-مرتب تحويلات بنكية | D6: الديوان | E6: 5854 | F6: فتيحه احمد يوسف بحيرى | G6: 3 | H6: البنك الاهلي المصري | I6: 378 | J6: بسيون | K6: 0
A7: 26309281600892 | B7: 3-مرتب تحويلات بنكية | D7: الديوان | E7: 5999 | F7: عبد العزيز عبد العزيز حسنين | G7: 4 | H7: بنك القاهرة | I7: 4140 | J7: كفر الزيات | K7: 0
A8: 26212211603165 | B8: 3-مرتب تحويلات بنكية | D8: الديوان | E8: 5683 | F8: ليلى عبد النبى حسين زيان | G8: 3 | H8: البنك الاهلي المصري | I8: 378 | J8: بسيون | K8: 0
A9: 28501231601974 | B9: 3-مرتب تحويلات بنكية | D9: الديوان | E9: 5700 | F9: عبد الرحمن عبد الفتاح عبد الرحمن بدر | G9: 3 | H9: البنك الاهلي المصري | I9: 378 | J9: بسيون | K9: 0
A10: 26410301600919 | B10: 3-مرتب تحويلات بنكية | D10: الديوان | E10: 6030 | F10: حسين سعيد مكرم | G10: 3 | H10: البنك الاهلي المصري | I10: 378 | J10: بسيون | K10: 0
A11: 25902241601577 | B11: 3-مرتب تحويلات بنكية | D11: الديوان | E11: 6461 | F11: فتحى توفيق عبد السلام حميده | G11: 3 | H11: البنك الاهلي المصري | I11: 378 | J11: بسيون | K11: 0
A12: 25912031601979 | B12: 3-مرتب تحويلات بنكية | D12: الديوان | E12: 6462 | F12: احمد حسين محمد الحشاش | G12: 3 | H12: البنك الاهلي المصري | I12: 378 | J12: بسيون | K12: 0
A13: 26309021600724 | B13: 3-مرتب تحويلات بنكية | D13: الديوان | E13: 6432 | F13: امينه صلاح كيلانى كيلانى | G13: 3 | H13: البنك الاهلي المصري | I13: 378 | J13: بسيون | K13: 0
A14: 26712141601197 | B14: 3-مرتب تحويلات بنكية | D14: الديوان | E14: 6433 | F14: عصام مجاهد حسن الجاريه | G14: 3 | H14: البنك الاهلي المصري | I14: 378 | J14: بسيون | K14: 0
A15: 26005121602075 | B15: 3-مرتب تحويلات بنكية | D15: الديوان | E15: 6426 | F15: مبروك بسيونى البرلسى | G15: 98 | H15: بنك مصر | I15: 257 | J15: بسيون | K15: 0
A16: 26302271600911 | B16: 3-مرتب تحويلات بنكية | D16: الديوان | E16: 6427 | F16: عبد السلام عقاد النحراوى | G16: 98 | H16: بنك مصر | I16: 257 | J16: بسيون | K16: 0
A17: 26212031602586 | B17: 3-مرتب تحويلات بنكية | D17: الديوان | E17: 6429 | F17: ماجده عبد النبى محمد زعزوع | G17: 3 | H17: البنك الاهلي المصري | I17: 378 | J17: بسيون | K17: 0
A18: 26112271602392 | B18: 3-مرتب تحويلات بنكية | D18: الديوان | E18: 6425 | F18: نصر حلمى حسين جادو | G18: 98 | H18: بنك مصر | I18: 257 | J18: بسيون | K18: 0
A19: 26012031602196 | B19: 3-مرتب تحويلات بنكية | D19: الديوان | E19: 6497 | F19: محمد حافظ على ابو النور | G19: 4 | H19: بنك القاهرة | I19: 4140 | J19: كفر الزيات | K19: 0
A20: 27303031601473 | B20: 3-مرتب تحويلات بنكية | D20: الديوان | E20: 197 | F20: أحمد عبدة فراج فايد | G20: 3 | H20: البنك الاهلي المصري | I20: 378 | J20: بسيون | K20: 0
A21: 26203241601397 | B21: 3-مرتب تحويلات بنكية | D21: الديوان | E21: 111 | F21: محمد سعيد محمد الشيشينى | G21: 3 | H21: البنك الاهلي المصري | I21: 378 | J21: بسيون
A22: 26212291604531 | B22: 3-مرتب تحويلات بنكية | D22: الديوان | E22: 101 | F22: ما هر محمد محمد الا عرج | G22: 1009 | H22: البنك الرئيسي للتنميه والائتمان الزراعى | I22: 804 | J22: بسيون
A23: 26102051601993 | B23: 3-مرتب تحويلات بنكية | D23: الديوان | E23: 104 | F23: محسن محمود محمد ز رير | G23: 98 | H23: بنك مصر | I23: 257 | J23: بسيون
A24: 26408311600416 | B24: 3-مرتب تحويلات بنكية | D24: الديوان | E24: 82 | F24: عصام عبد العزيز عبد الحميد زيان | G24: 98 | H24: بنك مصر | I24: 257 | J24: بسيون
A25: 25905151601631 | B25: 3-مرتب تحويلات بنكية | D25: الديوان | E25: 87 | F25: على طه على ابراهيم نعويش | G25: 3 | H25: البنك الاهلي المصري | I25: 378 | J25: بسيون
A26: 26205021600996 | B26: 3-مرتب تحويلات بنكية | D26: الديوان | E26: 76 | F26: عبد المحسن الشاملى احمد متولى عتما ن | G26: 3 | H26: البنك الاهلي المصري | I26: 378 | J26: بسيون
A27: 26107151601518 | B27: 3-مرتب تحويلات بنكية | D27: الديوان | E27: 81 | F27: عرندس بدر اباهيم البنبى | G27: 3 | H27: البنك الاهلي المصري | I27: 378 | J27: بسيون
A28: 26506281600833 | B28: 3-مرتب تحويلات بنكية | D28: الديوان | E28: 68 | F28: عا شور محمد عبد الغفار العربي | G28: 3 | H28: البنك الاهلي المصري | I28: 378 | J28: بسيون
A29: 26104161601509 | B29: 3-مرتب تحويلات بنكية | D29: الديوان | E29: 60 | F29: سميره على محمد العفتة | G29: 98 | H29: بنك مصر | I29: 257 | J29: بسيون
A30: 26809111601099 | B30: 3-مرتب تحويلات بنكية | D30: الديوان | E30: 43 | F30: را ضى اسما عيل ابرا هيم الحدا د | G30: 3 | H30: البنك الاهلي المصري | I30: 378 | J30: بسيون
A31: 26604121601797 | B31: 3-مرتب تحويلات بنكية | D31: الديوان | E31: 11 | F31: احمد رمضا ن احمد الحداد | G31: 1009 | H31: البنك الرئيسي للتنميه والائتمان الزراعى | I31: 804 | J31: بسيون
A32: 26312091603039 | B32: 3-مرتب تحويلات بنكية | D32: الديوان | E32: 118 | F32: محمود فتحى احمد زرير | G32: 3 | H32: البنك الاهلي المصري | I32: 378 | J32: بسيون
A33: 27111071601241 | B33: 3-مرتب تحويلات بنكية | D33: الديوان | E33: 1603 | F33: صبحيه محمد محمود زمزم | G33: 98 | H33: بنك مصر | I33: 257 | J33: بسيون
A34: 26808011601435 | B34: 3-مرتب تحويلات بنكية | D34: الديوان | E34: 1543 | F34: ياسر عبد الفتاح الجمل | G34: 1009 | H34: البنك الرئيسي للتنميه والائتمان الزراعى | I34: 804 | J34: بسيون
A35: 27801261601537 | B35: 3-مرتب تحويلات بنكية | D35: الديوان | E35: 1436 | F35: عصام الدين اسماعيل عزام | G35: 98 | H35: بنك مصر | I35: 257 | J35: بسيون
A36: 26201261500489 | B36: 3-مرتب تحويلات بنكية | D36: الديوان | E36: 1005 | F36: ناديه مصطفي مصطفي عمر | G36: 98 | H36: بنك مصر | I36: 257 | J36: بسيون
A37: 27201101600529 | B37: 3-مرتب تحويلات بنكية | D37: الديوان | E37: 2102 | F37: ايمان ابراهيم محمد الدهبى | G37: 98 | H37: بنك مصر | I37: 257 | J37: بسيون
A38: 26004211601438 | B38: 3-مرتب تحويلات بنكية | D38: الديوان | E38: 6792 | F38: مجدى عاطف حسين الشافعى | G38: 3 | H38: البنك الاهلي المصري | I38: 395 | J38: قلين
A39: 28401011619592 | B39: 3-مرتب تحويلات بنكية | D39: الديوان | E39: 2515 | F39: ابوزيد محمد ابو زيد محمد ملوة | G39: 3 | H39: البنك الاهلي المصري | I39: 378 | J39: بسيون
A40: 28204171601711 | B40: 3-مرتب تحويلات بنكية | D40: الديوان | E40: 2693 | F40: زينهم ابراهيم محمد ابراهيم ابو طه | G40: 98 | H40: بنك مصر | I40: 257 | J40: بسيون
A41: 27911201602089 | B41: 3-مرتب تحويلات بنكية | D41: الديوان | E41: 2692 | F41: منى السيد ابراهيم عثمان | G41: 98 | H41: بنك مصر | I41: 257 | J41: بسيون
A42: 27609141602191 | B42: 3-مرتب تحويلات بنكية | D42: الديوان | E42: 2854 | F42: منشاوى عبد الرازق سيد الديهى | G42: 4 | H42: بنك القاهرة | I42: 4140 | J42: كفر الزيات
A43: 27112271601993 | B43: 3-مرتب تحويلات بنكية | D43: الديوان | E43: 3137 | F43: ايمن محمد عبد الرسول احمد فايد | G43: 98 | H43: بنك مصر | I43: 257 | J43: بسيون
A44: 27003121601134 | B44: 3-مرتب تحويلات بنكية | D44: الديوان | E44: 4606 | F44: صلاح اسماعيل محمد جعباص | G44: 98 | H44: بنك مصر | I44: 257 | J44: بسيون
A45: 26701131600794 | B45: 3-مرتب تحويلات بنكية | D45: الديوان | E45: 4587 | F45: محمداسماعيل مصطفى السمين | G45: 3 | H45: البنك الاهلي المصري | I45: 378 | J45: بسيون
A46: 26605161601338 | B46: 3-مرتب تحويلات بنكية | D46: الديوان | E46: 5465 | F46: صبحى عبد الله اسماعيل الحناوى | G46: 1009 | H46: البنك الرئيسي للتنميه والائتمان الزراعى | I46: 804 | J46: بسيون
A47: 26503061602909 | B47: 3-مرتب تحويلات بنكية | D47: الديوان | E47: 5371 | F47: رضا محمد محمد رزق | G47: 98 | H47: بنك مصر | I47: 257 | J47: بسيون
A48: 26402201601311 | B48: 3-مرتب تحويلات بنكية | D48: الديوان | E48: 5362 | F48: السيد ابراهيم احمد الملاح | G48: 3 | H48: البنك الاهلي المصري | I48: 378 | J48: بسيون
A49: 26911181601516 | B49: 3-مرتب تحويلات بنكية | D49: الديوان | E49: 5364 | F49: عاصم رشوان عبد المجيد ابراهيم الجمسى | G49: 1009 | H49: البنك الرئيسي للتنميه والائتمان الزراعى | I49: 804 | J49: بسيون
A50: 26011031602157 | B50: 3-مرتب تحويلات بنكية | D50: الديوان | E50: 5357 | F50: السيد مساعد على ملا | G50: 98 | H50: بنك مصر | I50: 257 | J50: بسيون
A51: 26511291601602 | B51: 3-مرتب تحويلات بنكية | D51: الديوان | E51: 5345 | F51: صحر اسماعيل عبد الرؤف خلف | G51: 1009 | H51: البنك الرئيسي للتنميه والائتمان الزراعى | I51: 804 | J51: بسيون
A52: 28506161601043 | B52: 3-مرتب تحويلات بنكية | D52: الديوان | E52: 5340 | F52: هبه ذكى حامد خلف الله | G52: 1009 | H52: البنك الرئيسي للتنميه والائتمان الزراعى | I52: 804 | J52: بسيون
A53: 26511271601088 | B53: 3-مرتب تحويلات بنكية | D53: الديوان | E53: 6659 | F53: مبروكة محمد محمد السلسلي | G53: 3 | H53: البنك الاهلي المصري | I53: 385 | J53: كفر الزيات
A54: 26101181601999 | B54: 3-مرتب تحويلات بنكية | D54: الديوان | E54: 4978 | F54: جمال الدين نصر شعبان الطويل | G54: 98 | H54: بنك مصر | I54: 257 | J54: بسيون
A55: 26401271601959 | B55: 3-مرتب تحويلات بنكية | D55: الديوان | E55: 4979 | F55: اسماعيل رضوان رضوان محمد شنيشن | G55: 98 | H55: بنك مصر | I55: 257 | J55: بسيون
A56: 26009191500291 | B56: 3-مرتب تحويلات بنكية | D56: الديوان | E56: 4981 | F56: على محمد محروس القصاص | G56: 98 | H56: بنك مصر | I56: 257 | J56: بسيون
A57: 26102081500211 | B57: 3-مرتب تحويلات بنكية | D57: الديوان | E57: 4973 | F57: عبد السلام ابراهيم محمد الفقى | G57: 3 | H57: البنك الاهلي المصري | I57: 378 | J57: بسيون
A58: 26304291600856 | B58: 3-مرتب تحويلات بنكية | D58: الديوان | E58: 4092 | F58: فتحى عبد المجيد موسى دياب | G58: 3 | H58: البنك الاهلي المصري | I58: 378 | J58: بسيون
A59: 26303211601745 | B59: 3-مرتب تحويلات بنكية | D59: الديوان | E59: 4085 | F59: هدى سعد اسماعيل عبد الله | G59: 98 | H59: بنك مصر | I59: 257 | J59: بسيون
A60: 26511251801196 | B60: 3-مرتب تحويلات بنكية | D60: الديوان | E60: 4071 | F60: جمال محمد خليل محمد | G60: 3 | H60: البنك الاهلي المصري | I60: 378 | J60: بسيون
A61: 26006081600216 | B61: 3-مرتب تحويلات بنكية | D61: الديوان | E61: 4072 | F61: رافت يوسف حسن الشرنوبى | G61: 3 | H61: البنك الاهلي المصري | I61: 378 | J61: بسيون
A62: 26408041601032 | B62: 3-مرتب تحويلات بنكية | D62: الديوان | E62: 4076 | F62: نجاح حمادة عبد الهادى الجزار | G62: 98 | H62: بنك مصر | I62: 257 | J62: بسيون
A63: 26209101600755 | B63: 3-مرتب تحويلات بنكية | D63: الديوان | E63: 4064 | F63: عصام فتحى احمد زرير | G63: 98 | H63: بنك مصر | I63: 257 | J63: بسيون
A64: 26102010201182 | B64: 3-مرتب تحويلات بنكية | D64: محمد حسنى مبارك ب | E64: 1740 | F64: إيمان محمد محمد الدقدوقى | G64: 4 | H64: بنك القاهرة | I64: 4150 | J64: سوق ناصر
A65: 26209081600915 | B65: 3-مرتب تحويلات بنكية | D65: محمد حسنى مبارك ب | E65: 1742 | F65: محمد محمود مصطفى عمر | G65: 5 | H65: بنك الإسكندرية | I65: 3012 | J65: فرع كفرالزيات
A66: 26902191601191 | B66: 3-مرتب تحويلات بنكية | D66: محمد حسنى مبارك ب | E66: 1768 | F66: عرفه فتحى العيسوى | G66: 3 | H66: البنك الاهلي المصري | I66: 378 | J66: بسيون
A67: 27701011611991 | B67: 3-مرتب تحويلات بنكية | D67: محمد حسنى مبارك ب | E67: 1764 | F67: عرفة شعبان الشرقاوى | G67: 3 | H67: البنك الاهلي المصري | I67: 378 | J67: بسيون
A68: 28412081601722 | B68: 3-مرتب تحويلات بنكية | D68: محمد حسنى مبارك ب | E68: 5728 | F68: مها محمد راشد عزام | G68: 38 | H68: بنك التعمير و الاسكان | I68: 31 | J68: كفر الشيخ
A69: 28709031601805 | B69: 3-مرتب تحويلات بنكية | D69: محمد حسنى مبارك ب | E69: 5738 | F69: ثناء على محمد صالح | G69: 3 | H69: البنك الاهلي المصري | I69: 378 | J69: بسيون
A70: 28203201602894 | B70: 3-مرتب تحويلات بنكية | D70: محمد حسنى مبارك ب | E70: 5736 | F70: مدحت فوزى عبد الحميد الشازلى | G70: 98 | H70: بنك مصر | I70: 257 | J70: بسيون
A71: 27104101601899 | B71: 3-مرتب تحويلات بنكية | D71: شبراتنا ت ا | E71: 6367 | F71: الوردانى سعد محمد الوردانى | G71: 1009 | H71: البنك الرئيسي للتنميه والائتمان الزراعى | I71: 804 | J71: بسيون
A72: 27203131601034 | B72: 3-مرتب تحويلات بنكية | D72: شبراتنا ت ا | E72: 6096 | F72: زايد رمزى شعبان راشد | G72: 5 | H72: بنك الإسكندرية | I72: 3012 | J72: فرع كفرالزيات
A73: 27309011601572 | B73: 3-مرتب تحويلات بنكية | D73: شبراتنا ت ا | E73: 6399 | F73: هشام طه عبد الرؤف الدقدوقى | G73: 98 | H73: بنك مصر | I73: 257 | J73: بسيون
A74: 28001031603538 | B74: 3-مرتب تحويلات بنكية | D74: شبراتنا ت ا | E74: 6440 | F74: رامى محمد على شعيشع البرلسى | G74: 98 | H74: بنك مصر | I74: 257 | J74: بسيون
A75: 27112311601096 | B75: 3-مرتب تحويلات بنكية | D75: شبراتنا ت ا | E75: 6451 | F75: رمضان السيداحمد هيبه حموده | G75: 3 | H75: البنك الاهلي المصري | I75: 378 | J75: بسيون
A76: 28304111601636 | B76: 3-مرتب تحويلات بنكية | D76: شبراتنا ت ا | E76: 6452 | F76: علاء محمد عبدالمجيد هواش | G76: 3 | H76: البنك الاهلي المصري | I76: 378 | J76: بسيون
A77: 27411031601039 | B77: 3-مرتب تحويلات بنكية | D77: شبراتنا ت ا ع | E77: 5993 | F77: احمد عبد الحليم محمد سمك | G77: 3 | H77: البنك الاهلي المصري | I77: 378 | J77: بسيون
A78: 26011231602054 | B78: 3-مرتب تحويلات بنكية | D78: شبراتنا ت ا ع | E78: 1147 | F78: عبد المجيد لطفى عرابى الشاذلى | G78: 98 | H78: بنك مصر | I78: 257 | J78: بسيون
A79: 27706221600934 | B79: 3-مرتب تحويلات بنكية | D79: شبراتنا ت ا ع | E79: 1140 | F79: عبد المجيد السباعى محمد الجناينى | G79: 3 | H79: البنك الاهلي المصري | I79: 378 | J79: بسيون
A80: 27411161601294 | B80: 3-مرتب تحويلات بنكية | D80: شبراتنا ت ا ع | E80: 1136 | F80: عصام لطفى عرابى الشاذلى | G80: 3 | H80: البنك الاهلي المصري | I80: 378 | J80: بسيون
A81: 29006201601891 | B81: 3-مرتب تحويلات بنكية | D81: شبراتنا ت ا ع | E81: 4291 | F81: رمضان محمد ابراهيم عبد العزيز | G81: 98 | H81: بنك مصر | I81: 257 | J81: بسيون
A82: 27212131601181 | B82: 3-مرتب تحويلات بنكية | D82: شبراتنا ت ا ع | E82: 3559 | F82: هاله عبد الله محمد العجان | G82: 5 | H82: بنك الإسكندرية | I82: 3012 | J82: فرع كفرالزيات
A83: 26005251600341 | B83: 3-مرتب تحويلات بنكية | D83: كفر سالم ر | E83: 3250 | F83: شوقية محمود عطوان النفيلى | G83: 3 | H83: البنك الاهلي المصري | I83: 378 | J83: بسيون
A84: 26008170102567 | B84: 3-مرتب تحويلات بنكية | D84: كفر سالم ر | E84: 3243 | F84: سامية محمود احمد مهدى | G84: 3 | H84: البنك الاهلي المصري | I84: 378 | J84: بسيون
A85: 26006301600379 | B85: 3-مرتب تحويلات بنكية | D85: كفر سالم ر | E85: 3244 | F85: حسينى احمد محمود الحسينى سالم | G85: 3 | H85: البنك الاهلي المصري | I85: 378 | J85: بسيون
A86: 26105291601655 | B86: 3-مرتب تحويلات بنكية | D86: كفر سالم ر | E86: 3237 | F86: تكال على عبد اللطيف ماضى | G86: 3 | H86: البنك الاهلي المصري | I86: 378 | J86: بسيون
A87: 28111111601323 | B87: 3-مرتب تحويلات بنكية | D87: كفر سالم ت ا ب | E87: 2934 | F87: همت مصطفى عبد المجيد العسال | G87: 38 | H87: بنك التعمير و الاسكان | I87: 31 | J87: كفر الشيخ
A88: 27203281601857 | B88: 3-مرتب تحويلات بنكية | D88: كفر سالم ت ا ب | E88: 2943 | F88: محمد صبرى ابراهيم جعباص | G88: 98 | H88: بنك مصر | I88: 257 | J88: بسيون
A89: 26104031600292 | B89: 3-مرتب تحويلات بنكية | D89: كفر سالم ت ا ب | E89: 2945 | F89: محمد ابراهيم محمد ابو عامر | G89: 3 | H89: البنك الاهلي المصري | I89: 378 | J89: بسيون
A90: 26306231600817 | B90: 3-مرتب تحويلات بنكية | D90: كفر سالم ت ا ب | E90: 2946 | F90: الشحات السيد خطاب خطاب | G90: 3 | H90: البنك الاهلي المصري | I90: 378 | J90: بسيون
A91: 26205261600659 | B91: 3-مرتب تحويلات بنكية | D91: كفر سالم ت ا ب | E91: 2941 | F91: جمعه عبد البسيط السلهوبى | G91: 4 | H91: بنك القاهرة | I91: 4130 | J91: طنطا
A92: 26811091600869 | B92: 3-مرتب تحويلات بنكية | D92: محمد كامل الجندى كفر عسكر ب | E92: 723 | F92: حمدية أحمد عبد الهادى شتا | G92: 98 | H92: بنك مصر | I92: 257 | J92: بسيون
A93: 27810051600995 | B93: 3-مرتب تحويلات بنكية | D93: محمد كامل الجندى كفر عسكر ب | E93: 743 | F93: حسن محمد عبد الرؤف الكردى | G93: 1009 | H93: البنك الرئيسي للتنميه والائتمان الزراعى | I93: 804 | J93: بسيون
A94: 28211201601823 | B94: 3-مرتب تحويلات بنكية | D94: محمد كامل الجندى كفر عسكر ب | E94: 554 | F94: سهير رمضان فايد | G94: 3 | H94: البنك الاهلي المصري | I94: 378 | J94: بسيون
A95: 26809031601136 | B95: 3-مرتب تحويلات بنكية | D95: محمد كامل الجندى كفر عسكر ب | E95: 185 | F95: عبدالحليم عبدالغفار الشرقاوى | G95: 3 | H95: البنك الاهلي المصري | I95: 378 | J95: بسيون
A96: 28903031600583 | B96: 3-مرتب تحويلات بنكية | D96: مصطفى قاسم ت ا | E96: 6310 | F96: اسماء حسانين عبدالمطلب | G96: 38 | H96: بنك التعمير و الاسكان | I96: 31 | J96: كفر الشيخ
A97: 26404241600914 | B97: 3-مرتب تحويلات بنكية | D97: مصطفى قاسم ت ا ع | E97: 863 | F97: اسماعيل حسين حسين الكردى | G97: 4 | H97: بنك القاهرة | I97: 4130 | J97: طنطا
A98: 28301091602445 | B98: 3-مرتب تحويلات بنكية | D98: عبد النبى خمخم بسلامون ر | E98: 176 | F98: ولاء فؤاد ناجى ابوسيف | G98: 38 | H98: بنك التعمير و الاسكان | I98: 31 | J98: كفر الشيخ
A99: 28402131601448 | B99: 3-مرتب تحويلات بنكية | D99: عبد النبى خمخم بسلامون ر | E99: 171 | F99: هبه رشدى عبده رزق الله عوض | G99: 3 | H99: البنك الاهلي المصري | I99: 378 | J99: بسيون
A100: 26804251601194 | B100: 3-مرتب تحويلات بنكية | D100: عبد النبى خمخم بسلامون ر | E100: 139 | F100: حسن احمد احمد باشا | G100: 3 | H100: البنك الاهلي المصري | I100: 378 | J100: بسيون
A101: 26302241600712 | B101: 3-مرتب تحويلات بنكية | D101: عبد النبى خمخم بسلامون ر | E101: 146 | F101: جبر السيد مبروك عوض | G101: 3 | H101: البنك الاهلي المصري | I101: 378 | J101: بسيون
A102: 26409271600953 | B102: 3-مرتب تحويلات بنكية | D102: عبد النبى خمخم بسلامون ب | E102: 6455 | F102: البدرى على محمد ابوزيد | G102: 3 | H102: البنك الاهلي المصري | I102: 378 | J102: بسيون
A103: 26011271602138 | B103: 3-مرتب تحويلات بنكية | D103: عبد النبى خمخم بسلامون ع مشترك | E103: 1102 | F103: جابر السيد مبروك عوض | G103: 3 | H103: البنك الاهلي المصري | I103: 378 | J103: بسيون
A104: 26401021601597 | B104: 3-مرتب تحويلات بنكية | D104: عبد النبى خمخم بسلامون ع مشترك | E104: 1124 | F104: عبد المنعم سعد مصطفى الجندى | G104: 98 | H104: بنك مصر | I104: 257 | J104: بسيون
A105: 26007151500482 | B105: 3-مرتب تحويلات بنكية | D105: عبد النبى خمخم بسلامون ع مشترك | E105: 1125 | F105: أنوار جمال الدين عبد الرؤوف عتمان | G105: 3 | H105: البنك الاهلي المصري | I105: 378 | J105: بسيون
A106: 26903291601136 | B106: 3-مرتب تحويلات بنكية | D106: عبد النبى خمخم بسلامون ع مشترك | E106: 2942 | F106: عبد الحميد السعيد الطحان | G106: 3 | H106: البنك الاهلي المصري | I106: 378 | J106: بسيون
A107: 27401261604554 | B107: 3-مرتب تحويلات بنكية | D107: عبد النبى خمخم بسلامون ع مشترك | E107: 3917 | F107: رافت محمد سالم احمد السقا | G107: 98 | H107: بنك مصر | I107: 257 | J107: بسيون
A108: 27601011608936 | B108: 3-مرتب تحويلات بنكية | D108: عبد النبى خمخم بسلامون ع مشترك | E108: 3921 | F108: عبد العزيز محمد محمد عبد العزيز | G108: 3 | H108: البنك الاهلي المصري | I108: 378 | J108: بسيون
A109: 26308231500645 | B109: 3-مرتب تحويلات بنكية | D109: عبد النبى خمخم بسلامون ع مشترك | E109: 3914 | F109: مديحة على على شلبى | G109: 98 | H109: بنك مصر | I109: 257 | J109: بسيون
A110: 26806131600979 | B110: 3-مرتب تحويلات بنكية | D110: كتامة ث مشتركة | E110: 5521 | F110: عبد الناصر محمد السيد نصر | G110: 1009 | H110: البنك الرئيسي للتنميه والائتمان الزراعى | I110: 804 | J110: بسيون
A111: 27304051602316 | B111: 3-مرتب تحويلات بنكية | D111: كتامة ث مشتركة | E111: 5516 | F111: محمد حسن السيد رحيم | G111: 3 | H111: البنك الاهلي المصري | I111: 378 | J111: بسيون
A112: 26303261601622 | B112: 3-مرتب تحويلات بنكية | D112: كتامة ث مشتركة | E112: 5510 | F112: نجلاء محمود عبد العال ابو حبسه | G112: 3 | H112: البنك الاهلي المصري | I112: 378 | J112: بسيون
A113: 26811061601135 | B113: 3-مرتب تحويلات بنكية | D113: كتامة ث مشتركة | E113: 5500 | F113: السباعى مصطفى السباعى الجندى | G113: 3 | H113: البنك الاهلي المصري | I113: 378 | J113: بسيون
A114: 26104201600314 | B114: 3-مرتب تحويلات بنكية | D114: كتامة ث مشتركة | E114: 5501 | F114: احمد على على ابو طالب | G114: 3 | H114: البنك الاهلي المصري | I114: 378 | J114: بسيون
A115: 26505191600919 | B115: 3-مرتب تحويلات بنكية | D115: كتامة ث مشتركة | E115: 1346 | F115: فتحى حسام الدين | G115: 4 | H115: بنك القاهرة | I115: 4140 | J115: كفر الزيات
A116: 26403121601031 | B116: 3-مرتب تحويلات بنكية | D116: كتامة ث مشتركة | E116: 1540 | F116: مجدى السعيد ربيع | G116: 4 | H116: بنك القاهرة | I116: 4140 | J116: كفر الزيات
A117: 26803041601012 | B117: 3-مرتب تحويلات بنكية | D117: كتامة ث مشتركة | E117: 1541 | F117: جمعة محمد الجمل | G117: 3 | H117: البنك الاهلي المصري | I117: 378 | J117: بسيون
A118: 26011251602573 | B118: 3-مرتب تحويلات بنكية | D118: كتامة ث مشتركة | E118: 6536 | F118: حسين مصطفي ابراهيم الكردي | G118: 4 | H118: بنك القاهرة | I118: 4150 | J118: سوق ناصر
A119: 26108171601677 | B119: 3-مرتب تحويلات بنكية | D119: كتامة ث مشتركة | E119: 6450 | F119: محمد قطب محمد ابوسالم | G119: 3 | H119: البنك الاهلي المصري | I119: 378 | J119: بسيون
A120: 27204201600975 | B120: 3-مرتب تحويلات بنكية | D120: كتامة ث تجارية | E120: 1479 | F120: أشرف ابو اليزيد قطب ابو طالب | G120: 4 | H120: بنك القاهرة | I120: 4130 | J120: طنطا
A121: 26903171601175 | B121: 3-مرتب تحويلات بنكية | D121: كتامة ث تجارية | E121: 1504 | F121: مصباح ابراهيم مساعد زين الدين | G121: 3 | H121: البنك الاهلي المصري | I121: 378 | J121: بسيون
A122: 26505261600911 | B122: 3-مرتب تحويلات بنكية | D122: كتامة ث تجارية | E122: 1505 | F122: مصطفى صباح شاهين صباح | G122: 98 | H122: بنك مصر | I122: 257 | J122: بسيون
A123: 26302241600631 | B123: 3-مرتب تحويلات بنكية | D123: كتامة ث تجارية | E123: 1506 | F123: مصطفى على محمد عامر | G123: 3 | H123: البنك الاهلي المصري | I123: 378 | J123: بسيون
A124: 26009101600331 | B124: 3-مرتب تحويلات بنكية | D124: كتامة ث تجارية | E124: 1497 | F124: فوزى حامد محمد نجم | G124: 4 | H124: بنك القاهرة | I124: 4130 | J124: طنطا
A125: 26306071600319 | B125: 3-مرتب تحويلات بنكية | D125: كتامة ث تجارية | E125: 1490 | F125: عبد القادر محمد محمود الكردى | G125: 3 | H125: البنك الاهلي المصري | I125: 378 | J125: بسيون
A126: 26304031600691 | B126: 3-مرتب تحويلات بنكية | D126: كتامة ث تجارية | E126: 1483 | F126: بدر عبد القوى عبدالحميد حميده | G126: 3 | H126: البنك الاهلي المصري | I126: 378 | J126: بسيون
A127: 27110071600892 | B127: 3-مرتب تحويلات بنكية | D127: كتامة ث تجارية | E127: 5288 | F127: انور محمد احمد ابو يوسف | G127: 3 | H127: البنك الاهلي المصري | I127: 378 | J127: بسيون
A128: 27808211601077 | B128: 3-مرتب تحويلات بنكية | D128: كتامة ع بنات | E128: 6413 | F128: عماد محمد عبد الفتاح ابو صيره | G128: 98 | H128: بنك مصر | I128: 257 | J128: بسيون
A129: 26403221500836 | B129: 3-مرتب تحويلات بنكية | D129: كتامة ع بنات | E129: 6160 | F129: عبد الفتاح امين محمود عسل | G129: 1009 | H129: البنك الرئيسي للتنميه والائتمان الزراعى | I129: 804 | J129: بسيون
A130: 26111071601735 | B130: 3-مرتب تحويلات بنكية | D130: كتامة ع بنات | E130: 6221 | F130: عبد الفتاح محمد النجار | G130: 98 | H130: بنك مصر | I130: 257 | J130: بسيون
A131: 28307071600258 | B131: 3-مرتب تحويلات بنكية | D131: كتامة ع بنات | E131: 6409 | F131: وليد مسعد سيد احمد فرحات | G131: 98 | H131: بنك مصر | I131: 257 | J131: بسيون
A132: 28105211600413 | B132: 3-مرتب تحويلات بنكية | D132: كتامة ع بنات | E132: 6815 | F132: مسعد بسيونى صقر موسى | G132: 4 | H132: بنك القاهرة | I132: 4150 | J132: سوق ناصر
A133: 27301031602931 | B133: 3-مرتب تحويلات بنكية | D133: الشهيد عبد المنعم رياض بكتامة | E133: 4440 | F133: خالد حمدى عيد محمد ابو عوض | G133: 98 | H133: بنك مصر | I133: 257 | J133: بسيون
A134: 25905111601736 | B134: 3-مرتب تحويلات بنكية | D134: الشهيد عبد المنعم رياض بكتامة | E134: 4434 | F134: السيد عبد العظيم احمد السعودى | G134: 98 | H134: بنك مصر | I134: 216 | J134: طنطا
A135: 27301031603074 | B135: 3-مرتب تحويلات بنكية | D135: الشهيد عبد المنعم رياض بكتامة | E135: 4437 | F135: محمد محمد راغب الصردى | G135: 98 | H135: بنك مصر | I135: 257 | J135: بسيون
A136: 27906301600918 | B136: 3-مرتب تحويلات بنكية | D136: الشهيد عبد المنعم رياض بكتامة | E136: 4448 | F136: وائل على محمد سليم | G136: 3 | H136: البنك الاهلي المصري | I136: 378 | J136: بسيون
A137: 26706261601212 | B137: 3-مرتب تحويلات بنكية | D137: كتامة ب مشتركة | E137: 4311 | F137: ربيع محمود على حسن شكم | G137: 1009 | H137: البنك الرئيسي للتنميه والائتمان الزراعى | I137: 804 | J137: بسيون
A138: 27411161601367 | B138: 3-مرتب تحويلات بنكية | D138: كتامة ب مشتركة | E138: 2294 | F138: هالة إبراهيم محمد أبو شعيشع | G138: 3 | H138: البنك الاهلي المصري | I138: 378 | J138: بسيون
A139: 27905171600035 | B139: 3-مرتب تحويلات بنكية | D139: كتامة ب مشتركة | E139: 2281 | F139: حسانين عبد العزيز حسانين سلامة | G139: 3 | H139: البنك الاهلي المصري | I139: 378 | J139: بسيون
A140: 26312271601115 | B140: 3-مرتب تحويلات بنكية | D140: كتامة ب مشتركة | E140: 2282 | F140: رجب فتحي رجب الشيخ | G140: 98 | H140: بنك مصر | I140: 257 | J140: بسيون
A141: 28207041601123 | B141: 3-مرتب تحويلات بنكية | D141: كتامة ب الجديدة | E141: 1474 | F141: مروه اسماعيل الديب | G141: 3 | H141: البنك الاهلي المصري | I141: 378 | J141: بسيون
A142: 25909221601494 | B142: 3-مرتب تحويلات بنكية | D142: كتامة ب الجديدة | E142: 1461 | F142: خيري محمد احمد داود | G142: 4 | H142: بنك القاهرة | I142: 4140 | J142: كفر الزيات
A143: 26305111600833 | B143: 3-مرتب تحويلات بنكية | D143: كتامة ب الجديدة | E143: 1458 | F143: محمد احمد العدوي العدوي | G143: 4 | H143: بنك القاهرة | I143: 4140 | J143: كفر الزيات
A144: 26904011601558 | B144: 3-مرتب تحويلات بنكية | D144: كتامة ب الجديدة | E144: 1446 | F144: سالم محمد حسن البهوتي | G144: 4 | H144: بنك القاهرة | I144: 4140 | J144: كفر الزيات
A145: 26110311600328 | B145: 3-مرتب تحويلات بنكية | D145: عزبة عاشور ف 1 | E145: 5778 | F145: صفاء محمود فوزى على ايوب | G145: 1009 | H145: البنك الرئيسي للتنميه والائتمان الزراعى | I145: 804 | J145: بسيون
A146: 25811291601904 | B146: 3-مرتب تحويلات بنكية | D146: كتامة ب ف 1 | E146: 5779 | F146: مرفت عبد الرحمن محمد زيد | G146: 3 | H146: البنك الاهلي المصري | I146: 378 | J146: بسيون
A147: 27907021601389 | B147: 3-مرتب تحويلات بنكية | D147: شفا ع | E147: 2038 | F147: سلوى حسين على الطايش | G147: 3 | H147: البنك الاهلي المصري | I147: 378 | J147: بسيون
A148: 26307101600609 | B148: 3-مرتب تحويلات بنكية | D148: شفا ع | E148: 2034 | F148: لوزه قنديل عبده فنديل | G148: 3 | H148: البنك الاهلي المصري | I148: 378 | J148: بسيون
A149: 26609211601119 | B149: 3-مرتب تحويلات بنكية | D149: شفا ب | E149: 1166 | F149: عبداللطيف محمد حامد الشامى | G149: 1009 | H149: البنك الرئيسي للتنميه والائتمان الزراعى | I149: 804 | J149: بسيون
A150: 26111111600206 | B150: 3-مرتب تحويلات بنكية | D150: شفا ب | E150: 1188 | F150: نعيمه محمد ابراهيم عيد | G150: 4 | H150: بنك القاهرة | I150: 4130 | J150: طنطا
A151: 26911011601651 | B151: 3-مرتب تحويلات بنكية | D151: عزبة ناشد ب | E151: 2028 | F151: محمد شعبان محمد نصر الدين | G151: 1009 | H151: البنك الرئيسي للتنميه والائتمان الزراعى | I151: 804 | J151: بسيون
A152: 25907291601332 | B152: 3-مرتب تحويلات بنكية | D152: عزبة ناشد ب | E152: 1341 | F152: قطب يوسف الصهرجتى | G152: 4 | H152: بنك القاهرة | I152: 4140 | J152: كفر الزيات
A153: 25911041601555 | B153: 3-مرتب تحويلات بنكية | D153: عزبة ناشد ب | E153: 1355 | F153: جلال عبد العاطى حميدة | G153: 98 | H153: بنك مصر | I153: 257 | J153: بسيون
A154: 27106121601138 | B154: 3-مرتب تحويلات بنكية | D154: عزبة ناشد ب | E154: 1343 | F154: جميل كامل عبد السلام | G154: 3 | H154: البنك الاهلي المصري | I154: 378 | J154: بسيون
A155: 27901011613551 | B155: 3-مرتب تحويلات بنكية | D155: عزبة ناشد ب | E155: 1825 | F155: ماهر عبد الحميد محمد عطيه | G155: 4 | H155: بنك القاهرة | I155: 4130 | J155: طنطا
A156: 27708201601813 | B156: 3-مرتب تحويلات بنكية | D156: مصطفى كامل بكفر نصير ب | E156: 1863 | F156: سعد عبدالله عامر | G156: 3 | H156: البنك الاهلي المصري | I156: 378 | J156: بسيون
A157: 27801241601573 | B157: 3-مرتب تحويلات بنكية | D157: مصطفى كامل بكفر نصير ب | E157: 1868 | F157: حمزة جلال علي ابو حمزة | G157: 3 | H157: البنك الاهلي المصري | I157: 378 | J157: بسيون
A158: 27209151600539 | B158: 3-مرتب تحويلات بنكية | D158: مصطفى كامل بكفر نصير ب | E158: 1861 | F158: احمد يوسف احمد | G158: 3 | H158: البنك الاهلي المصري | I158: 378 | J158: بسيون
A159: 26611051600972 | B159: 3-مرتب تحويلات بنكية | D159: مصطفى كامل بكفر نصير ب | E159: 1862 | F159: الشوادفي محمد راغب عبدالبر | G159: 98 | H159: بنك مصر | I159: 257 | J159: بسيون
A160: 28108111601632 | B160: 3-مرتب تحويلات بنكية | D160: مصطفى كامل بكفر نصير ب | E160: 1856 | F160: رجائي سعيد مكرم | G160: 98 | H160: بنك مصر | I160: 257 | J160: بسيون
A161: 25902181600193 | B161: 3-مرتب تحويلات بنكية | D161: مصطفى كامل بكفر نصير ب | E161: 1670 | F161: سعيد عبد الفتاح عبد الله مكرم | G161: 98 | H161: بنك مصر | I161: 257 | J161: بسيون
A162: 27708081601041 | B162: 3-مرتب تحويلات بنكية | D162: مصطفى كامل بكفر نصير ب | E162: 3155 | F162: نادية محمد على البنا | G162: 3 | H162: البنك الاهلي المصري | I162: 378 | J162: بسيون
A163: 26110271600371 | B163: 3-مرتب تحويلات بنكية | D163: مصطفى كامل بكفر نصير ب | E163: 3141 | F163: شعبان صبحى شعبان حسين | G163: 3 | H163: البنك الاهلي المصري | I163: 378 | J163: بسيون
A164: 25910011603158 | B164: 3-مرتب تحويلات بنكية | D164: كفر نصير ع | E164: 1666 | F164: على محمد يوسف الصلحاوى | G164: 98 | H164: بنك مصر | I164: 257 | J164: بسيون
A165: 26311251601074 | B165: 3-مرتب تحويلات بنكية | D165: كفر نصير ع | E165: 1667 | F165: جمال على مرسى ابراهيم | G165: 1009 | H165: البنك الرئيسي للتنميه والائتمان الزراعى | I165: 804 | J165: بسيون
A166: 26008211601379 | B166: 3-مرتب تحويلات بنكية | D166: كفر نصير ع | E166: 1669 | F166: اسماعيل فتوح اسماعيل شعير | G166: 98 | H166: بنك مصر | I166: 257 | J166: بسيون
A167: 27809221600725 | B167: 3-مرتب تحويلات بنكية | D167: كفر نصير ع | E167: 6009 | F167: سامية عبد العاطى شبل | G167: 98 | H167: بنك مصر | I167: 257 | J167: بسيون
A168: 28710291601092 | B168: 3-مرتب تحويلات بنكية | D168: كفر نصير ع | E168: 6012 | F168: عبد الموجود محمد عبد القادر الغنام | G168: 98 | H168: بنك مصر | I168: 257 | J168: بسيون
A169: 27201011607494 | B169: 3-مرتب تحويلات بنكية | D169: كفر نصير ع | E169: 6610 | F169: محمود محمود موسي موسي شتا | G169: 4 | H169: بنك القاهرة | I169: 4130 | J169: طنطا
A170: 26311161601091 | B170: 3-مرتب تحويلات بنكية | D170: كفر نصير ع | E170: 6448 | F170: ياسرطه الشناوى العدوى | G170: 3 | H170: البنك الاهلي المصري | I170: 378 | J170: بسيون
A171: 26111181600297 | B171: 3-مرتب تحويلات بنكية | D171: ابو حمر ع ت ا | E171: 6020 | F171: على عبد الله سلامه | G171: 3 | H171: البنك الاهلي المصري | I171: 378 | J171: بسيون
A172: 27109061600934 | B172: 3-مرتب تحويلات بنكية | D172: ابو حمر ع ت ا | E172: 5995 | F172: محمد ابراهيم يوسف خفاجه | G172: 3 | H172: البنك الاهلي المصري | I172: 378 | J172: بسيون
A173: 26008031600293 | B173: 3-مرتب تحويلات بنكية | D173: ابو حمر ع ت ا | E173: 416 | F173: جمعه عبد الله بدران طوبار | G173: 4 | H173: بنك القاهرة | I173: 4150 | J173: سوق ناصر
A174: 26701281601519 | B174: 3-مرتب تحويلات بنكية | D174: ابو حمر ع ت ا | E174: 420 | F174: مصطفى محمود هنداوى النجار | G174: 3 | H174: البنك الاهلي المصري | I174: 378 | J174: بسيون
A175: 26410071600965 | B175: 3-مرتب تحويلات بنكية | D175: ابو حمر ع ت ا | E175: 413 | F175: جملات ابوالعنين محمود عيد | G175: 1009 | H175: البنك الرئيسي للتنميه والائتمان الزراعى | I175: 804 | J175: بسيون
A176: 27701301601077 | B176: 3-مرتب تحويلات بنكية | D176: ابو حمر ع ت ا | E176: 4358 | F176: محمد محفوظ عبد العزيزسليمان | G176: 38 | H176: بنك التعمير و الاسكان | I176: 31 | J176: كفر الشيخ
A177: 26402151601013 | B177: 3-مرتب تحويلات بنكية | D177: ابو حمر ت ا ب | E177: 418 | F177: عماد الدين محمد رمضان شاهين | G177: 98 | H177: بنك مصر | I177: 257 | J177: بسيون
A178: 28107101600909 | B178: 3-مرتب تحويلات بنكية | D178: ابو حمر ت ا ب | E178: 2795 | F178: ليلى محمد محمد بهيدى | G178: 3 | H178: البنك الاهلي المصري | I178: 378 | J178: بسيون
A179: 26910271601713 | B179: 3-مرتب تحويلات بنكية | D179: ابو حمر ت ا ب | E179: 6008 | F179: جمال رضوان عبد العزيز الصعيدى | G179: 98 | H179: بنك مصر | I179: 257 | J179: بسيون
A180: 26311251600892 | B180: 3-مرتب تحويلات بنكية | D180: ابو حمر ت ا ب | E180: 5991 | F180: جمعه حسين مصطفى الشامى | G180: 3 | H180: البنك الاهلي المصري | I180: 378 | J180: بسيون
A181: 26411191600949 | B181: 3-مرتب تحويلات بنكية | D181: ابو حمر ت ا ب | E181: 6202 | F181: نجوى محمد عبد العزيز خاطر | G181: 3 | H181: البنك الاهلي المصري | I181: 378 | J181: بسيون
A182: 26309031602261 | B182: 3-مرتب تحويلات بنكية | D182: نهضة مصر بابو حمر ب | E182: 6374 | F182: افراج مصطفى عبد المنعم الدقاق | G182: 98 | H182: بنك مصر | I182: 257 | J182: بسيون
A183: 26801071602479 | B183: 3-مرتب تحويلات بنكية | D183: نهضة مصر بابو حمر ب | E183: 2004 | F183: قطب عبد المنعم سالم | G183: 3 | H183: البنك الاهلي المصري | I183: 378 | J183: بسيون
A184: 26201101603818 | B184: 3-مرتب تحويلات بنكية | D184: الشهيد فخرى بابو حمر ب | E184: 703 | F184: مرزوق عبدالله بيومى الفخرانى | G184: 98 | H184: بنك مصر | I184: 257 | J184: بسيون
A185: 26208281601031 | B185: 3-مرتب تحويلات بنكية | D185: الشهيد فخرى بابو حمر ب | E185: 704 | F185: صبحى محمود عطية عيد | G185: 98 | H185: بنك مصر | I185: 257 | J185: بسيون
A186: 26403011602687 | B186: 3-مرتب تحويلات بنكية | D186: الشهيد فخرى بابو حمر ب | E186: 705 | F186: منال محمود ابراهيم ابوحمر | G186: 3 | H186: البنك الاهلي المصري | I186: 378 | J186: بسيون
A187: 26406021600771 | B187: 3-مرتب تحويلات بنكية | D187: الشهيد فخرى بابو حمر ب | E187: 691 | F187: محمدعبدالرحيم حسان شعلة | G187: 3 | H187: البنك الاهلي المصري | I187: 378 | J187: بسيون
A188: 26603241601182 | B188: 3-مرتب تحويلات بنكية | D188: الشهيد فخرى بابو حمر ب | E188: 693 | F188: فايزةمحمود محمد بندق | G188: 4 | H188: بنك القاهرة | I188: 4130 | J188: طنطا
A189: 26201151603665 | B189: 3-مرتب تحويلات بنكية | D189: الشهيد فخرى بابو حمر ب | E189: 689 | F189: مبروكة عبدالفتاح عبدالمعطى الحجار | G189: 98 | H189: بنك مصر | I189: 257 | J189: بسيون
A190: 26401131602106 | B190: 3-مرتب تحويلات بنكية | D190: الشهيد فخرى بابو حمر ب | E190: 4373 | F190: نجية احمد احمد ابو شوشه | G190: 98 | H190: بنك مصر | I190: 257 | J190: بسيون
A191: 27606101601291 | B191: 3-مرتب تحويلات بنكية | D191: المستقبل الزاهر بابو حمر ب | E191: 2682 | F191: عطية عبد الرحمن عطية عيد | G191: 98 | H191: بنك مصر | I191: 257 | J191: بسيون
A192: 26307121600532 | B192: 3-مرتب تحويلات بنكية | D192: المستقبل الزاهر بابو حمر ب | E192: 2674 | F192: صالح مصطفى ناصف | G192: 1009 | H192: البنك الرئيسي للتنميه والائتمان الزراعى | I192: 804 | J192: بسيون
A193: 27011181601233 | B193: 3-مرتب تحويلات بنكية | D193: المستقبل الزاهر بابو حمر ب | E193: 2000 | F193: عيد عبدالعزيز الجبالى | G193: 3 | H193: البنك الاهلي المصري | I193: 378 | J193: بسيون
A194: 26109261600196 | B194: 3-مرتب تحويلات بنكية | D194: منشاة اليعقوبية ر | E194: 2018 | F194: عبد الرازق عبد الودود الهباب | G194: 3 | H194: البنك الاهلي المصري | I194: 378 | J194: بسيون
A195: 26204291600908 | B195: 3-مرتب تحويلات بنكية | D195: منشاة اليعقوبية ت ا ب | E195: 2636 | F195: ندرات احمد اسماعيل المرادنى | G195: 4 | H195: بنك القاهرة | I195: 4130 | J195: طنطا
A196: 26404021601138 | B196: 3-مرتب تحويلات بنكية | D196: منشاة اليعقوبية ت ا ب | E196: 2610 | F196: احمد عبد الوهاب فريد ابو حمر | G196: 3 | H196: البنك الاهلي المصري | I196: 378 | J196: بسيون
A197: 27301061602269 | B197: 3-مرتب تحويلات بنكية | D197: منشاة اليعقوبية ت ا ب | E197: 2605 | F197: نادية رجب مصطفى مرسى مطر | G197: 3 | H197: البنك الاهلي المصري | I197: 378 | J197: بسيون
A198: 26212221601179 | B198: 3-مرتب تحويلات بنكية | D198: كنيسة شبراطو ع | E198: 1694 | F198: رشاد محمد محمد الطويل | G198: 4 | H198: بنك القاهرة | I198: 4130 | J198: طنطا
A199: 26205051600745 | B199: 3-مرتب تحويلات بنكية | D199: كنيسة شبراطو ع | E199: 6041 | F199: سناء موسى اندراوس | G199: 1009 | H199: البنك الرئيسي للتنميه والائتمان الزراعى | I199: 804 | J199: بسيون
A200: 26210201600939 | B200: 3-مرتب تحويلات بنكية | D200: كنيسة شبراطو ب | E200: 258 | F200: عاطف حامد الحفناوى الالفى | G200: 3 | H200: البنك الاهلي المصري | I200: 378 | J200: بسيون
... 532 more rows

Sheet Sheet2
A1: الرقم القومى | B1: نوع المدفوعه | C1: القطاع | D1: الإدارة | E1: رقم الموظف بجهته الأصلية | F1: الاسم | G1: كود البنك | H1: البنك | I1: كود الفرع | J1: الفرع | K1: المرتب
A2: 27508091601457 | B2: 3-مرتب تحويلات بنكية | D2: بسيون ث صناعى | E2: 6435 | F2: ابراهيم ابراهيم احمد احمد الملاح | G2: 0003 | H2: البنك الاهلي المصري | I2: 0378 | J2: بسيون
A3: 26801041600536 | B3: 3-مرتب تحويلات بنكية | D3: قرنشو الفنية | E3: 2188 | F3: ابراهيم احمد ابراهيم وهبه | G3: 0003 | H3: البنك الاهلي المصري | I3: 0378 | J3: بسيون
A4: 27204081601298 | B4: 3-مرتب تحويلات بنكية | D4: كنيسة شبراطو ب | E4: 247 | F4: ابراهيم احمد عمار | G4: 0003 | H4: البنك الاهلي المصري | I4: 0378 | J4: بسيون | K4: 2401.3
A5: 27008161600957 | B5: 3-مرتب تحويلات بنكية | D5: بسيون ث صناعى | E5: 5161 | F5: ابراهيم السيد سليمان يونس الديهى | G5: 0003 | H5: البنك الاهلي المصري | I5: 0378 | J5: بسيون
A6: 27008221600871 | B6: 3-مرتب تحويلات بنكية | D6: كفر جعفر ب ر | E6: 3368 | F6: ابراهيم حافظ محمد رميح | G6: 0004 | H6: بنك القاهرة | I6: 4140 | J6: كفر الزيات
A7: 26801161601633 | B7: 3-مرتب تحويلات بنكية | D7: ابو حمر ع مشتركة | E7: 6361 | F7: ابراهيم حسين محمد رحيم | G7: 0003 | H7: البنك الاهلي المصري | I7: 0378 | J7: بسيون
A8: 26312151601511 | B8: 3-مرتب تحويلات بنكية | D8: محمد رياض كفر الحمام ب | E8: 1779 | F8: ابراهيم سعد محمد زغلول | G8: 0003 | H8: البنك الاهلي المصري | I8: 0378 | J8: بسيون
A9: 26103051600454 | B9: 3-مرتب تحويلات بنكية | D9: كفر سليمان ب | E9: 4453 | F9: ابراهيم شعبان محمد ابو عرب | G9: 0003 | H9: البنك الاهلي المصري | I9: 0378 | J9: بسيون
A10: 26305101600975 | B10: 3-مرتب تحويلات بنكية | D10: الثورة ب | E10: 4871 | F10: ابراهيم عبد القادر سعد امبابى | G10: 0003 | H10: البنك الاهلي المصري | I10: 0378 | J10: بسيون | K10: 2684.6
A11: 26810191600959 | B11: 3-مرتب تحويلات بنكية | D11: قرنشو ع مشتركة | E11: 6015 | F11: ابراهيم عبد المطلب قنديل | G11: 0004 | H11: بنك القاهرة | I11: 4150 | J11: سوق ناصر
A12: 27503171601316 | B12: 3-مرتب تحويلات بنكية | D12: عيسوىفايد ث | E12: 3351 | F12: ابراهيم عبد الواحد اسماعيل مقلاش | G12: 0003 | H12: البنك الاهلي المصري | I12: 0378 | J12: بسيون
A13: 27106061601052 | B13: 3-مرتب تحويلات بنكية | D13: ناصر ث بنين | E13: 3851 | F13: ابراهيم على ابراهيم عيد | G13: 0003 | H13: البنك الاهلي المصري | I13: 0378 | J13: بسيون
A14: 26101021600473 | B14: 3-مرتب تحويلات بنكية | D14: وحدة قرانشو ب | E14: 4478 | F14: ابراهيم مبروك بركة | G14: 0004 | H14: بنك القاهرة | I14: 4150 | J14: سوق ناصر
A15: 26308191602679 | B15: 3-مرتب تحويلات بنكية | D15: رجائى حتاتة ب | E15: 4254 | F15: ابراهيم محمد عبد الحليم الغايش | G15: 1009 | H15: البنك الرئيسي للتنميه والائتمان الزراعى | I15: 0804 | J15: بسيون | K15: 2076.95
A16: 27207031601059 | B16: 3-مرتب تحويلات بنكية | D16: قسم بسيون 1 | E16: 2259 | F16: ابراهيم محمد كامل الجندى | G16: 0003 | H16: البنك الاهلي المصري | I16: 0378 | J16: بسيون
A17: 26908191601092 | B17: 3-مرتب تحويلات بنكية | D17: كفر جعفر ب ر | E17: 3369 | F17: ابراهيم مصطفى عبد الرحمن على | G17: 1009 | H17: البنك الرئيسي للتنميه والائتمان الزراعى | I17: 0804 | J17: بسيون
A18: 26112021600378 | B18: 3-مرتب تحويلات بنكية | D18: الحداد ع ت ا | E18: 6445 | F18: ابرهيم على بيومى بعيبر | G18: 0003 | H18: البنك الاهلي المصري | I18: 0378 | J18: بسيون
A19: 28401011619592 | B19: 3-مرتب تحويلات بنكية | D19: الديوان | E19: 2515 | F19: ابوزيد محمد ابو زيد محمد ملوة | G19: 0003 | H19: البنك الاهلي المصري | I19: 0378 | J19: بسيون
A20: 26011191600347 | B20: 3-مرتب تحويلات بنكية | D20: الثورة ب | E20: 4860 | F20: احسان عبد المجيد محمد الحصرى | G20: 0003 | H20: البنك الاهلي المصري | I20: 0378 | J20: بسيون | K20: 4152.7
A21: 27701021604739 | B21: 3-مرتب تحويلات بنكية | D21: طه حسين بالفرستق ب | E21: 4232 | F21: احمد اسماعيل احمد زلط | G21: 0004 | H21: بنك القاهرة | I21: 4140 | J21: كفر الزيات
A22: 25912031601979 | B22: 3-مرتب تحويلات بنكية | D22: الديوان | E22: 6462 | F22: احمد حسين محمد الحشاش | G22: 0003 | H22: البنك الاهلي المصري | I22: 0378 | J22: بسيون
A23: 27304241601171 | B23: 3-مرتب تحويلات بنكية | D23: قرنشو ع مشتركة | E23: 6444 | F23: احمد ربيع احمد احمد البقرى | G23: 0003 | H23: البنك الاهلي المصري | I23: 0378 | J23: بسيون
A24: 26804061601279 | B24: 3-مرتب تحويلات بنكية | D24: الثورة ب | E24: 4885 | F24: احمد ربيع احمد محمد عبد الدايم | G24: 0003 | H24: البنك الاهلي المصري | I24: 0378 | J24: بسيون | K24: 2648.6
A25: 26610031601437 | B25: 3-مرتب تحويلات بنكية | D25: جناج ب الجديدة | E25: 521 | F25: احمد رزق مبروك السوداني | G25: 0003 | H25: البنك الاهلي المصري | I25: 0378 | J25: بسيون
A26: 26604121601797 | B26: 3-مرتب تحويلات بنكية | D26: الديوان | E26: 11 | F26: احمد رمضا ن احمد الحداد | G26: 1009 | H26: البنك الرئيسي للتنميه والائتمان الزراعى | I26: 0804 | J26: بسيون
A27: 26810301601115 | B27: 3-مرتب تحويلات بنكية | D27: بسيون ث صناعى | E27: 3725 | F27: احمد رمضان عبد السلام فلوص | G27: 0003 | H27: البنك الاهلي المصري | I27: 0378 | J27: بسيون
A28: 27109222800076 | B28: 3-مرتب تحويلات بنكية | D28: خالد ابن الوليد ع | E28: 5869 | F28: احمد سمير عبد الحافظ محمد | G28: 0038 | H28: بنك التعمير و الاسكان | I28: 0031 | J28: كفر الشيخ
A29: 27411031601039 | B29: 3-مرتب تحويلات بنكية | D29: شبراتنا ت ا ع | E29: 5993 | F29: احمد عبد الحليم محمد سمك | G29: 0003 | H29: البنك الاهلي المصري | I29: 0378 | J29: بسيون
A30: 26207171600776 | B30: 3-مرتب تحويلات بنكية | D30: جناج ب الجديدة | E30: 524 | F30: احمد عبد الحميد صالح الفخرانى | G30: 0003 | H30: البنك الاهلي المصري | I30: 0378 | J30: بسيون
A31: 25901041601495 | B31: 3-مرتب تحويلات بنكية | D31: بسيون ث بنات | E31: 5583 | F31: احمد عبد العاطى احمد شهاب الدين | G31: 0003 | H31: البنك الاهلي المصري | I31: 0378 | J31: بسيون
A32: 26403121602054 | B32: 3-مرتب تحويلات بنكية | E32: 5794 | F32: احمد عبد اللطيف احمد ابو الخير | G32: 0003 | H32: البنك الاهلي المصري | I32: 0378 | J32: بسيون
A33: 26604091601274 | B33: 3-مرتب تحويلات بنكية | D33: بار الحمام ب | E33: 2168 | F33: احمد عبد اللطيف احمد الأنصارى | G33: 0003 | H33: البنك الاهلي المصري | I33: 0378 | J33: بسيون
A34: 26711071603093 | B34: 3-مرتب تحويلات بنكية | D34: قرنشو الفنية | E34: 2186 | F34: احمد عبد المجيد ابو حطب | G34: 0003 | H34: البنك الاهلي المصري | I34: 0378 | J34: بسيون | K34: 2894.5
A35: 26505301600553 | B35: 3-مرتب تحويلات بنكية | D35: بسيون ث صناعى | E35: 5230 | F35: احمد عبد المجيد احمد دغيم | G35: 0004 | H35: بنك القاهرة | I35: 4140 | J35: كفر الزيات
A36: 28001011611119 | B36: 3-مرتب تحويلات بنكية | D36: بسيون ث صناعى | E36: 5013 | F36: احمد عبد المقصود محمد بسيونى الجعيفى | G36: 0003 | H36: البنك الاهلي المصري | I36: 0378 | J36: بسيون
A37: 26404021601138 | B37: 3-مرتب تحويلات بنكية | D37: منشاة اليعقوبية ت ا ب | E37: 2610 | F37: احمد عبد الوهاب فريد ابو حمر | G37: 0003 | H37: البنك الاهلي المصري | I37: 0378 | J37: بسيون | K37: 1882.25
A38: 27712011603035 | B38: 3-مرتب تحويلات بنكية | D38: عيسوىفايد ع | E38: 3337 | F38: احمد على عبد القادر الاعمى | G38: 1009 | H38: البنك الرئيسي للتنميه والائتمان الزراعى | I38: 0804 | J38: بسيون | K38: 1497.2
A39: 26104201600314 | B39: 3-مرتب تحويلات بنكية | D39: كتامة ث مشتركة | E39: 5501 | F39: احمد على على ابو طالب | G39: 0003 | H39: البنك الاهلي المصري | I39: 0378 | J39: بسيون
A40: 26105051601518 | B40: 3-مرتب تحويلات بنكية | D40: رجائى حتاتة ب | E40: 4251 | F40: احمد متولى بسيونى عبد الوهاب | G40: 0003 | H40: البنك الاهلي المصري | I40: 0378 | J40: بسيون | K40: 3592.6
A41: 26506301600592 | B41: 3-مرتب تحويلات بنكية | D41: عزبة رزق ب | E41: 3935 | F41: احمد محمد شحاته غلاب | G41: 0004 | H41: بنك القاهرة | I41: 4130 | J41: طنطا | K41: 2225.95
A42: 26002061600354 | B42: 3-مرتب تحويلات بنكية | D42: الشهيد عزت هلال ب | E42: 661 | F42: احمد محمد فتح الله فايد | G42: 0004 | H42: بنك القاهرة | I42: 4140 | J42: كفر الزيات
A43: 27209151600539 | B43: 3-مرتب تحويلات بنكية | D43: مصطفى كامل بكفر نصير ب | E43: 1861 | F43: احمد يوسف احمد | G43: 0003 | H43: البنك الاهلي المصري | I43: 0378 | J43: بسيون
A44: 28107011602546 | B44: 3-مرتب تحويلات بنكية | D44: صلاح سالم ب | E44: 4962 | F44: اسماء ابراهيم حسين عيد | G44: 0038 | H44: بنك التعمير و الاسكان | I44: 0031 | J44: كفر الشيخ
A45: 28903031600583 | B45: 3-مرتب تحويلات بنكية | D45: مصطفى قاسم ت ا | E45: 6310 | F45: اسماء حسانين عبدالمطلب | G45: 0038 | H45: بنك التعمير و الاسكان | I45: 0031 | J45: كفر الشيخ
A46: 25909221600331 | B46: 3-مرتب تحويلات بنكية | D46: عيسوىفايد ث | E46: 1433 | F46: اسماعيل ابراهيم البشة | G46: 0003 | H46: البنك الاهلي المصري | I46: 0378 | J46: بسيون
A47: 26404241600914 | B47: 3-مرتب تحويلات بنكية | D47: مصطفى قاسم ت ا ع | E47: 863 | F47: اسماعيل حسين حسين الكردى | G47: 0004 | H47: بنك القاهرة | I47: 4130 | J47: طنطا
A48: 26401271601959 | B48: 3-مرتب تحويلات بنكية | D48: الديوان | E48: 4979 | F48: اسماعيل رضوان رضوان محمد شنيشن | G48: 0098 | H48: بنك مصر | I48: 0257 | J48: بسيون
A49: 26102081500237 | B49: 3-مرتب تحويلات بنكية | D49: بسيون ث بنات | E49: 5585 | F49: اسماعيل طه قطب ابو على | G49: 1009 | H49: البنك الرئيسي للتنميه والائتمان الزراعى | I49: 0804 | J49: بسيون
A50: 26008211601379 | B50: 3-مرتب تحويلات بنكية | D50: كفر نصير ع | E50: 1669 | F50: اسماعيل فتوح اسماعيل شعير | G50: 0098 | H50: بنك مصر | I50: 0257 | J50: بسيون
A51: 26808221601373 | B51: 3-مرتب تحويلات بنكية | D51: الكمال ب بقرنشو | E51: 748 | F51: اسماعيل محمد عبدالله الأقرع | G51: 0003 | H51: البنك الاهلي المصري | I51: 0378 | J51: بسيون
A52: 27003201600929 | B52: 3-مرتب تحويلات بنكية | D52: الحداد ع ت ا | E52: 507 | F52: اسمهان على بعيبر | G52: 0003 | H52: البنك الاهلي المصري | I52: 0378 | J52: بسيون
A53: 27302271601458 | B53: 3-مرتب تحويلات بنكية | D53: بسيون ث صناعى | E53: 5108 | F53: اشرف اسماعيل محمود محمد الدش | G53: 0005 | H53: بنك الإسكندرية | I53: 3009 | J53: فرع شبين الكوم
A54: 27309291601378 | B54: 3-مرتب تحويلات بنكية | D54: خليفة عيسى بالفرستق ب | E54: 2827 | F54: اشرف السيد اسماعيل السيد | G54: 1009 | H54: البنك الرئيسي للتنميه والائتمان الزراعى | I54: 0804 | J54: بسيون
A55: 27210091500759 | B55: 3-مرتب تحويلات بنكية | D55: جناج ب الجديدة | E55: 528 | F55: اشرف عبد المقصود جبرئيل الدسوقى | G55: 0003 | H55: البنك الاهلي المصري | I55: 0378 | J55: بسيون
A56: 28401111601771 | B56: 3-مرتب تحويلات بنكية | D56: صفية الصناعية بنات | E56: 4507 | F56: اشرف محمد عبد الله الوجاب | G56: 0003 | H56: البنك الاهلي المصري | I56: 0378 | J56: بسيون
A57: 26309031602261 | B57: 3-مرتب تحويلات بنكية | D57: نهضة مصر بابو حمر ب | E57: 6374 | F57: افراج مصطفى عبد المنعم الدقاق | G57: 0098 | H57: بنك مصر | I57: 0257 | J57: بسيون
A58: 27311011602301 | B58: 3-مرتب تحويلات بنكية | D58: التحرير ب | E58: 5454 | F58: اكرام سعد الدين بسيونى الدخاخنى | G58: 0098 | H58: بنك مصر | I58: 0257 | J58: بسيون
A59: 26409271600953 | B59: 3-مرتب تحويلات بنكية | D59: عبد النبى خمخم بسلامون ب | E59: 6455 | F59: البدرى على محمد ابوزيد | G59: 0003 | H59: البنك الاهلي المصري | I59: 0378 | J59: بسيون | K59: 1924.5
A60: 26811061601135 | B60: 3-مرتب تحويلات بنكية | D60: كتامة ث مشتركة | E60: 5500 | F60: السباعى مصطفى السباعى الجندى | G60: 0003 | H60: البنك الاهلي المصري | I60: 0378 | J60: بسيون
A61: 28401011522173 | B61: 3-مرتب تحويلات بنكية | D61: جناج ب الجديدة | E61: 6019 | F61: السعيد السعيد عامر | G61: 0003 | H61: البنك الاهلي المصري | I61: 0378 | J61: بسيون
A62: 26402201601311 | B62: 3-مرتب تحويلات بنكية | D62: الديوان | E62: 5362 | F62: السيد ابراهيم احمد الملاح | G62: 0003 | H62: البنك الاهلي المصري | I62: 0378 | J62: بسيون
A63: 26409221601193 | B63: 3-مرتب تحويلات بنكية | D63: كفر الدوار ب | E63: 4562 | F63: السيد احمد السيد النحراوى | G63: 0003 | H63: البنك الاهلي المصري | I63: 0378 | J63: بسيون
A64: 26112011602291 | B64: 3-مرتب تحويلات بنكية | D64: خالد ابن الوليد ت ا ب | E64: 3658 | F64: السيد احمد حتاتة | G64: 0003 | H64: البنك الاهلي المصري | I64: 0378 | J64: بسيون | K64: 2346.4
A65: 26412091601456 | B65: 3-مرتب تحويلات بنكية | D65: كفر جعفر ع مهنى | E65: 3483 | F65: السيد احمد متولى الخيوطى | G65: 1009 | H65: البنك الرئيسي للتنميه والائتمان الزراعى | I65: 0804 | J65: بسيون
A66: 26805101600978 | B66: 3-مرتب تحويلات بنكية | D66: صالحجر ب جديدة | E66: 4012 | F66: السيد اسماعيل السيد زغلول | G66: 0003 | H66: البنك الاهلي المصري | I66: 0378 | J66: بسيون
A67: 27910211601556 | B67: 3-مرتب تحويلات بنكية | D67: عوض العيسوى ب | E67: 2260 | F67: السيد رمضان اسماعيل غباشى | G67: 0098 | H67: بنك مصر | I67: 0257 | J67: بسيون
A68: 25905111601736 | B68: 3-مرتب تحويلات بنكية | D68: الشهيد عبد المنعم رياض بكتامة | E68: 4434 | F68: السيد عبد العظيم احمد السعودى | G68: 0098 | H68: بنك مصر | I68: 0216 | J68: طنطا
A69: 26511271601096 | B69: 3-مرتب تحويلات بنكية | D69: صفية الصناعية بنات | E69: 5061 | F69: السيد عبد المنعم عبد السلام النحراوى | G69: 0003 | H69: البنك الاهلي المصري | I69: 0378 | J69: بسيون
A70: 26503301601212 | B70: 3-مرتب تحويلات بنكية | D70: عيسوىفايد ع | E70: 3348 | F70: السيد عبد النبى عبد المجيد مقلاش | G70: 0003 | H70: البنك الاهلي المصري | I70: 0378 | J70: بسيون | K70: 3261.55
A71: 28210031601851 | B71: 3-مرتب تحويلات بنكية | D71: السادات تجارية | E71: 5279 | F71: السيد محمد اسماعيل حسين زلط | G71: 0003 | H71: البنك الاهلي المصري | I71: 0378 | J71: بسيون
A72: 26011031602157 | B72: 3-مرتب تحويلات بنكية | D72: الديوان | E72: 5357 | F72: السيد مساعد على ملا | G72: 0098 | H72: بنك مصر | I72: 0257 | J72: بسيون
A73: 26105111600311 | B73: 3-مرتب تحويلات بنكية | D73: جناج ب الجديدة | E73: 523 | F73: الشافعي راغب محمود البربري | G73: 0003 | H73: البنك الاهلي المصري | I73: 0378 | J73: بسيون
A74: 26306231600817 | B74: 3-مرتب تحويلات بنكية | D74: كفر سالم ت ا ب | E74: 2946 | F74: الشحات السيد خطاب خطاب | G74: 0003 | H74: البنك الاهلي المصري | I74: 0378 | J74: بسيون | K74: 2300.8
A75: 26611051600972 | B75: 3-مرتب تحويلات بنكية | D75: مصطفى كامل بكفر نصير ب | E75: 1862 | F75: الشوادفي محمد راغب عبدالبر | G75: 0098 | H75: بنك مصر | I75: 0257 | J75: بسيون
A76: 26404261601054 | B76: 3-مرتب تحويلات بنكية | D76: بسيون ث صناعى | E76: 4277 | F76: الصاوى شعبان الصاوى ابورواش | G76: 1009 | H76: البنك الرئيسي للتنميه والائتمان الزراعى | I76: 0804 | J76: بسيون
A77: 26907271600279 | B77: 3-مرتب تحويلات بنكية | D77: السادات تجارية | E77: 4630 | F77: الهامى محمد فتوح سليم | G77: 0038 | H77: بنك التعمير و الاسكان | I77: 0031 | J77: كفر الشيخ
A78: 27104101601899 | B78: 3-مرتب تحويلات بنكية | D78: شبراتنا ت ا | E78: 6367 | F78: الوردانى سعد محمد الوردانى | G78: 1009 | H78: البنك الرئيسي للتنميه والائتمان الزراعى | I78: 0804 | J78: بسيون
A79: 27003131500808 | B79: 3-مرتب تحويلات بنكية | D79: رجائى حتاتة ب | E79: 6199 | F79: امل انور محمود عبد ربه | G79: 0003 | H79: البنك الاهلي المصري | I79: 0378 | J79: بسيون
A80: 26804071601242 | B80: 3-مرتب تحويلات بنكية | D80: الثورة ب | E80: 4850 | F80: اميمة محمد سيد احمد عبد البر | G80: 0003 | H80: البنك الاهلي المصري | I80: 0378 | J80: بسيون | K80: 2544.1
A81: 26912271601643 | B81: 3-مرتب تحويلات بنكية | D81: صلاح سالم ب | E81: 4748 | F81: اميمة محمود محمد جاد الله رجب | G81: 0003 | H81: البنك الاهلي المصري | I81: 0378 | J81: بسيون
A82: 26311041601241 | B82: 3-مرتب تحويلات بنكية | D82: السادات تجارية | E82: 4641 | F82: امينة بد المنعم محمود سليمان | G82: 0003 | H82: البنك الاهلي المصري | I82: 0378 | J82: بسيون
A83: 26309021600724 | B83: 3-مرتب تحويلات بنكية | D83: الديوان | E83: 6432 | F83: امينه صلاح كيلانى كيلانى | G83: 0003 | H83: البنك الاهلي المصري | I83: 0378 | J83: بسيون
A84: 26408071600626 | B84: 3-مرتب تحويلات بنكية | D84: قسم بسيون 2 | E84: 6734 | F84: امينه قطب احمد البريه | G84: 0003 | H84: البنك الاهلي المصري | I84: 0378 | J84: بسيون
A85: 26112091600383 | B85: 3-مرتب تحويلات بنكية | D85: كفر سليمان ب | E85: 5808 | F85: امينه محمد ابراهيم السيسى | G85: 0003 | H85: البنك الاهلي المصري | I85: 0378 | J85: بسيون
A86: 27410051601209 | B86: 3-مرتب تحويلات بنكية | D86: الفرستق ع مشتركة | E86: 6456 | F86: انتصاراحمد السيد عبد القادر | G86: 0003 | H86: البنك الاهلي المصري | I86: 0378 | J86: بسيون
A87: 27403061601154 | B87: 3-مرتب تحويلات بنكية | D87: كنيسة شبراطو ع | E87: 1699 | F87: انور عبدالقوى رحيم جادالله | G87: 1009 | H87: البنك الرئيسي للتنميه والائتمان الزراعى | I87: 0804 | J87: بسيون | K87: 1444.4
A88: 27110071600892 | B88: 3-مرتب تحويلات بنكية | D88: كتامة ث تجارية | E88: 5288 | F88: انور محمد احمد ابو يوسف | G88: 0003 | H88: البنك الاهلي المصري | I88: 0378 | J88: بسيون
A89: 26711081601218 | B89: 3-مرتب تحويلات بنكية | D89: صلاح حتاتة ع | E89: 1243 | F89: انور محمود محمد احمد طه | G89: 0003 | H89: البنك الاهلي المصري | I89: 0378 | J89: بسيون | K89: 2615.95
A90: 28910231602242 | B90: 3-مرتب تحويلات بنكية | D90: حلمى انيس ت ا | E90: 5918 | F90: اية ابراهيم عبد الدايم | G90: 0003 | H90: البنك الاهلي المصري | I90: 0380 | J90: المحلة الكبرى
A91: 27601041602541 | B91: 3-مرتب تحويلات بنكية | D91: ناصر ث بنين | E91: 3803 | F91: ايماان بسيونى احمد عوض | G91: 0003 | H91: البنك الاهلي المصري | I91: 0378 | J91: بسيون
A92: 27201101600529 | B92: 3-مرتب تحويلات بنكية | D92: الديوان | E92: 2102 | F92: ايمان ابراهيم محمد الدهبى | G92: 0098 | H92: بنك مصر | I92: 0257 | J92: بسيون
A93: 28410301600983 | B93: 3-مرتب تحويلات بنكية | D93: صلاح سالم ب | E93: 829 | F93: ايمان عبد المعطى حشاد | G93: 0003 | H93: البنك الاهلي المصري | I93: 0378 | J93: بسيون
A94: 26401281600047 | B94: 3-مرتب تحويلات بنكية | D94: بسيون ث صناعى | E94: 5022 | F94: ايمان فهمى رضوان يونس | G94: 0003 | H94: البنك الاهلي المصري | I94: 0378 | J94: بسيون
A95: 27907111601302 | B95: 3-مرتب تحويلات بنكية | D95: رجائى حتاتة ب | E95: 5672 | F95: ايمان ماهر عبد الرحيم عطا | G95: 0003 | H95: البنك الاهلي المصري | I95: 0378 | J95: بسيون
A96: 27404090201544 | B96: 3-مرتب تحويلات بنكية | D96: الفرستق ع مشتركة | E96: 945 | F96: ايمان محروس السيد ايوب | G96: 0003 | H96: البنك الاهلي المصري | I96: 0378 | J96: بسيون
A97: 26310031600984 | B97: 3-مرتب تحويلات بنكية | D97: بسيون ع بنات | E97: 885 | F97: ايمان محمد حلمى محمد وفا | G97: 0003 | H97: البنك الاهلي المصري | I97: 0378 | J97: بسيون
A98: 28303121601727 | B98: 3-مرتب تحويلات بنكية | D98: عزبة رزق ب | E98: 3949 | F98: ايمان نصحى ابو اليزيد محمد المغينى | G98: 0038 | H98: بنك التعمير و الاسكان | I98: 0031 | J98: كفر الشيخ | K98: 1463.8
A99: 26805151601479 | B99: 3-مرتب تحويلات بنكية | D99: ميت شريف ث | E99: 3848 | F99: ايمن انصارى محمد السخاوى | G99: 0003 | H99: البنك الاهلي المصري | I99: 0378 | J99: بسيون
A100: 26409191601118 | B100: 3-مرتب تحويلات بنكية | D100: نجريج ب ت ا | E100: 3218 | F100: ايمن بسيونى محمد عثمان | G100: 0098 | H100: بنك مصر | I100: 0257 | J100: بسيون
A101: 27112271601993 | B101: 3-مرتب تحويلات بنكية | D101: الديوان | E101: 3137 | F101: ايمن محمد عبد الرسول احمد فايد | G101: 0098 | H101: بنك مصر | I101: 0257 | J101: بسيون
A102: 27508011601061 | B102: 3-مرتب تحويلات بنكية | D102: على بن ابى طالب المهنى ع | E102: 2368 | F102: ايناس عزت توفيق بدوى | G102: 0098 | H102: بنك مصر | I102: 0257 | J102: بسيون
A103: 28709051602565 | B103: 3-مرتب تحويلات بنكية | D103: الامام الشافعى بقرنشو ب | E103: 6383 | F103: ايناس محمد زكى جبر | G103: 0003 | H103: البنك الاهلي المصري | I103: 0378 | J103: بسيون
A104: 28112071601119 | B104: 3-مرتب تحويلات بنكية | D104: خالد ابن الوليد ت ا ب | E104: 6378 | F104: ايهاب محمود على الضو | G104: 0003 | H104: البنك الاهلي المصري | I104: 0378 | J104: بسيون | K104: 1472.3
A105: 27205100101095 | B105: 3-مرتب تحويلات بنكية | D105: كفر جعفر ب ر | E105: 6540 | F105: ايهاب نصر عبدالنبى | G105: 0004 | H105: بنك القاهرة | I105: 2010 | J105: سيزوستريس
A106: 27101161603433 | B106: 3-مرتب تحويلات بنكية | D106: كفر جعفر ع بنات | E106: 1598 | F106: إبراهيم عبد الحميد احمد بريش | G106: 0003 | H106: البنك الاهلي المصري | I106: 0378 | J106: بسيون | K106: 2688
A107: 26703261603054 | B107: 3-مرتب تحويلات بنكية | D107: عمر بن عبد العزيز ب | E107: 1370 | F107: إسماعيل إبراهيم قاقه | G107: 0005 | H107: بنك الإسكندرية | I107: 3012 | J107: فرع كفرالزيات
A108: 26605211601199 | B108: 3-مرتب تحويلات بنكية | D108: عمر بن عبد العزيز ب | E108: 1371 | F108: إسماعيل عبد الله عياد | G108: 1009 | H108: البنك الرئيسي للتنميه والائتمان الزراعى | I108: 0804 | J108: بسيون
A109: 26701151601959 | B109: 3-مرتب تحويلات بنكية | D109: صالحجر ع بنات | E109: 203 | F109: إسماعيل ناجى فايد | G109: 0003 | H109: البنك الاهلي المصري | I109: 0378 | J109: بسيون
A110: 27207231601703 | B110: 3-مرتب تحويلات بنكية | D110: مدرسة الجمهورية التجريبية | E110: 6510 | F110: إكرام محمود محمد بدرة | G110: 0098 | H110: بنك مصر | I110: 0216 | J110: طنطا
A111: 26102010201182 | B111: 3-مرتب تحويلات بنكية | D111: محمد حسنى مبارك ب | E111: 1740 | F111: إيمان محمد محمد الدقدوقى | G111: 0004 | H111: بنك القاهرة | I111: 4150 | J111: سوق ناصر
A112: 27702091601466 | B112: 3-مرتب تحويلات بنكية | D112: الشهيد حسن حجازى ب | E112: 2241 | F112: إيمان مصطفى راغب العسكرى | G112: 0003 | H112: البنك الاهلي المصري | I112: 0378 | J112: بسيون
A113: 26704151601231 | B113: 3-مرتب تحويلات بنكية | D113: بسيون ث صناعى | E113: 5896 | F113: أحمد الصاوى أبو اليزيد شواطه | G113: 0003 | H113: البنك الاهلي المصري | I113: 0378 | J113: بسيون
A114: 27303031601473 | B114: 3-مرتب تحويلات بنكية | D114: الديوان | E114: 197 | F114: أحمد عبدة فراج فايد | G114: 0003 | H114: البنك الاهلي المصري | I114: 0378 | J114: بسيون
A115: 26801291601597 | B115: 3-مرتب تحويلات بنكية | D115: عمر بن عبد العزيز ب | E115: 1362 | F115: أحمد محمد طه طه | G115: 0003 | H115: البنك الاهلي المصري | I115: 0378 | J115: بسيون
A116: 25905091600339 | B116: 3-مرتب تحويلات بنكية | D116: الشهيد ابراهيم صالح ع | E116: 1904 | F116: أحمد محمد عبد العزيز خاطر | G116: 0004 | H116: بنك القاهرة | I116: 4130 | J116: طنطا
A117: 27204201600975 | B117: 3-مرتب تحويلات بنكية | D117: كتامة ث تجارية | E117: 1479 | F117: أشرف ابو اليزيد قطب ابو طالب | G117: 0004 | H117: بنك القاهرة | I117: 4130 | J117: طنطا
A118: 27102131602455 | B118: 3-مرتب تحويلات بنكية | D118: عبد اللطيف فايد بصالحجر ب | E118: 1298 | F118: أشرف عبد ه محمد عسكر | G118: 0003 | H118: البنك الاهلي المصري | I118: 0378 | J118: بسيون | K118: 2415.4
A119: 28210311601083 | B119: 3-مرتب تحويلات بنكية | D119: جناج ب الجديدة | E119: 960 | F119: أميرة أحمد عبداللطيف هنو | G119: 1009 | H119: البنك الرئيسي للتنميه والائتمان الزراعى | I119: 0804 | J119: بسيون
A120: 26710101601574 | B120: 3-مرتب تحويلات بنكية | D120: عبد اللطيف فايد بصالحجر ب | E120: 1297 | F120: أمين أحمد مصطفى عمرو | G120: 0003 | H120: البنك الاهلي المصري | I120: 0378 | J120: بسيون
A121: 26007151500482 | B121: 3-مرتب تحويلات بنكية | D121: عبد النبى خمخم بسلامون ع مشترك | E121: 1125 | F121: أنوار جمال الدين عبد الرؤوف عتمان | G121: 0003 | H121: البنك الاهلي المصري | I121: 0378 | J121: بسيون
A122: 26406031600884 | B122: 3-مرتب تحويلات بنكية | D122: قسم بسيون 2 | E122: 6725 | F122: بثينه عبد الرءوف محمد داود | G122: 1009 | H122: البنك الرئيسي للتنميه والائتمان الزراعى | I122: 0804 | J122: بسيون
A123: 26304031600691 | B123: 3-مرتب تحويلات بنكية | D123: كتامة ث تجارية | E123: 1483 | F123: بدر عبد القوى عبدالحميد حميده | G123: 0003 | H123: البنك الاهلي المصري | I123: 0378 | J123: بسيون
A124: 26212121603565 | B124: 3-مرتب تحويلات بنكية | D124: قسم بسيون 2 | E124: 6772 | F124: بديعه مصطفى عبد الحليم المراسى | G124: 0003 | H124: البنك الاهلي المصري | I124: 0378 | J124: بسيون
A125: 27904171600993 | B125: 3-مرتب تحويلات بنكية | D125: بسيون ث صناعى | E125: 5226 | F125: بسيونى عبد المجيد بسيونى حسنين | G125: 0003 | H125: البنك الاهلي المصري | I125: 0378 | J125: بسيون
A126: 26311291600593 | B126: 3-مرتب تحويلات بنكية | D126: الشهيد ابراهيم صالح ع | E126: 1992 | F126: بسيونى محمد السعدنى | G126: 1009 | H126: البنك الرئيسي للتنميه والائتمان الزراعى | I126: 0804 | J126: بسيون
A127: 27512011502108 | B127: 3-مرتب تحويلات بنكية | D127: كفر الدوار ب | E127: 529 | F127: بسيونية محمد احمد الحبشى | G127: 0003 | H127: البنك الاهلي المصري | I127: 0378 | J127: بسيون
A128: 27503011602634 | B128: 3-مرتب تحويلات بنكية | D128: صلاح حتاتة ع | E128: 6446 | F128: تامررجب شلبى الاشقر | G128: 0003 | H128: البنك الاهلي المصري | I128: 0435 | J128: قطور | K128: 1890.05
A129: 26105291601655 | B129: 3-مرتب تحويلات بنكية | D129: كفر سالم ر | E129: 3237 | F129: تكال على عبد اللطيف ماضى | G129: 0003 | H129: البنك الاهلي المصري | I129: 0378 | J129: بسيون | K129: 2568
A130: 26408021602148 | B130: 3-مرتب تحويلات بنكية | D130: الحداد ع ت ا | E130: 516 | F130: ثناء عبدالمنعم صقر | G130: 0003 | H130: البنك الاهلي المصري | I130: 0378 | J130: بسيون
A131: 28709031601805 | B131: 3-مرتب تحويلات بنكية | D131: محمد حسنى مبارك ب | E131: 5738 | F131: ثناء على محمد صالح | G131: 0003 | H131: البنك الاهلي المصري | I131: 0378 | J131: بسيون
A132: 26011271602138 | B132: 3-مرتب تحويلات بنكية | D132: عبد النبى خمخم بسلامون ع مشترك | E132: 1102 | F132: جابر السيد مبروك عوض | G132: 0003 | H132: البنك الاهلي المصري | I132: 0378 | J132: بسيون
A133: 27010191601235 | B133: 3-مرتب تحويلات بنكية | D133: بسيون ث صناعى | E133: 6119 | F133: جابر حامد حامد الاشعل | G133: 0003 | H133: البنك الاهلي المصري | I133: 0378 | J133: بسيون
A134: 26302241600712 | B134: 3-مرتب تحويلات بنكية | D134: عبد النبى خمخم بسلامون ر | E134: 146 | F134: جبر السيد مبروك عوض | G134: 0003 | H134: البنك الاهلي المصري | I134: 0378 | J134: بسيون | K134: 2101.95
A135: 25911041601555 | B135: 3-مرتب تحويلات بنكية | D135: عزبة ناشد ب | E135: 1355 | F135: جلال عبد العاطى حميدة | G135: 0098 | H135: بنك مصر | I135: 0257 | J135: بسيون
A136: 26312101601731 | B136: 3-مرتب تحويلات بنكية | D136: بسيون ث صناعى | E136: 5017 | F136: جلال عبد المعطى حسن الحداد | G136: 0003 | H136: البنك الاهلي المصري | I136: 0378 | J136: بسيون
A137: 26101181601999 | B137: 3-مرتب تحويلات بنكية | D137: الديوان | E137: 4978 | F137: جمال الدين نصر شعبان الطويل | G137: 0098 | H137: بنك مصر | I137: 0257 | J137: بسيون
A138: 26312211601698 | B138: 3-مرتب تحويلات بنكية | D138: السادات تجارية | E138: 4649 | F138: جمال السيد بسيونى عيد | G138: 0003 | H138: البنك الاهلي المصري | I138: 0378 | J138: بسيون
A139: 26706121601174 | B139: 3-مرتب تحويلات بنكية | D139: بسيون ث صناعى | E139: 6170 | F139: جمال السيد محمد ابو المجد | G139: 0003 | H139: البنك الاهلي المصري | I139: 0378 | J139: بسيون
A140: 26212171603477 | B140: 3-مرتب تحويلات بنكية | D140: صالحجر ع بنات | E140: 191 | F140: جمال حسن غانم | G140: 0003 | H140: البنك الاهلي المصري | I140: 0378 | J140: بسيون
A141: 26910271601713 | B141: 3-مرتب تحويلات بنكية | D141: ابو حمر ت ا ب | E141: 6008 | F141: جمال رضوان عبد العزيز الصعيدى | G141: 0098 | H141: بنك مصر | I141: 0257 | J141: بسيون
A142: 26311251601074 | B142: 3-مرتب تحويلات بنكية | D142: كفر نصير ع | E142: 1667 | F142: جمال على مرسى ابراهيم | G142: 1009 | H142: البنك الرئيسي للتنميه والائتمان الزراعى | I142: 0804 | J142: بسيون
A143: 26511251801196 | B143: 3-مرتب تحويلات بنكية | D143: الديوان | E143: 4071 | F143: جمال محمد خليل محمد | G143: 0003 | H143: البنك الاهلي المصري | I143: 0378 | J143: بسيون
A144: 26207231601556 | B144: 3-مرتب تحويلات بنكية | D144: الشهيد جمال شتا ع | E144: 611 | F144: جمال محمد عبده ابو شتيه | G144: 0003 | H144: البنك الاهلي المصري | I144: 0378 | J144: بسيون
A145: 26403191600849 | B145: 3-مرتب تحويلات بنكية | D145: خليفة عيسى بالفرستق ب | E145: 639 | F145: جمالات محمد الحفناوى | G145: 0003 | H145: البنك الاهلي المصري | I145: 0378 | J145: بسيون
A146: 26803041601012 | B146: 3-مرتب تحويلات بنكية | D146: كتامة ث مشتركة | E146: 1541 | F146: جمعة محمد الجمل | G146: 0003 | H146: البنك الاهلي المصري | I146: 0378 | J146: بسيون
A147: 26508211600952 | B147: 3-مرتب تحويلات بنكية | D147: الشهيد حسن حجازى ب | E147: 6422 | F147: جمعه حسن رجب الصياد | G147: 0098 | H147: بنك مصر | I147: 0257 | J147: بسيون
A148: 26311251600892 | B148: 3-مرتب تحويلات بنكية | D148: ابو حمر ت ا ب | E148: 5991 | F148: جمعه حسين مصطفى الشامى | G148: 0003 | H148: البنك الاهلي المصري | I148: 0378 | J148: بسيون
A149: 26205261600659 | B149: 3-مرتب تحويلات بنكية | D149: كفر سالم ت ا ب | E149: 2941 | F149: جمعه عبد البسيط السلهوبى | G149: 0004 | H149: بنك القاهرة | I149: 4130 | J149: طنطا | K149: 3447.25
A150: 26410071600965 | B150: 3-مرتب تحويلات بنكية | D150: ابو حمر ع ت ا | E150: 413 | F150: جملات ابوالعنين محمود عيد | G150: 1009 | H150: البنك الرئيسي للتنميه والائتمان الزراعى | I150: 0804 | J150: بسيون
A151: 27106121601138 | B151: 3-مرتب تحويلات بنكية | D151: عزبة ناشد ب | E151: 1343 | F151: جميل كامل عبد السلام | G151: 0003 | H151: البنك الاهلي المصري | I151: 0378 | J151: بسيون | K151: 1836.75
A152: 26310191601103 | B152: 3-مرتب تحويلات بنكية | D152: صلاح سالم ب | E152: 4701 | F152: جميلة عبد الحميد محمد الصعيدى | G152: 0098 | H152: بنك مصر | I152: 0257 | J152: بسيون
A153: 27508191600202 | B153: 3-مرتب تحويلات بنكية | D153: بسيون ع بنات | E153: 891 | F153: جيرمين حسنى محمود البدرى | G153: 0003 | H153: البنك الاهلي المصري | I153: 0379 | J153: المعتصم بطنطا | K153: 2467.55
A154: 26602181600363 | B154: 3-مرتب تحويلات بنكية | D154: بسيون ث بنات | E154: 5558 | F154: جيهان بدوى كامل بدوى | G154: 0003 | H154: البنك الاهلي المصري | I154: 0378 | J154: بسيون
A155: 27508041601243 | B155: 3-مرتب تحويلات بنكية | D155: كفر جعفر ب ر | E155: 3375 | F155: جيهان نبيل احمد السلماوى | G155: 0003 | H155: البنك الاهلي المصري | I155: 0378 | J155: بسيون
A156: 26811021600713 | B156: 3-مرتب تحويلات بنكية | D156: مشال ب | E156: 2051 | F156: حاتم بدير محمد العدوى | G156: 0003 | H156: البنك الاهلي المصري | I156: 0378 | J156: بسيون
A157: 26006291600219 | B157: 3-مرتب تحويلات بنكية | D157: جناج ب الجديدة | E157: 2883 | F157: حامد محمد الفقى | G157: 0003 | H157: البنك الاهلي المصري | I157: 0378 | J157: بسيون
A158: 26901181602932 | B158: 3-مرتب تحويلات بنكية | D158: الثورة ب | E158: 3850 | F158: حجبر مصطفى احمد مصطفى الحريرى | G158: 0003 | H158: البنك الاهلي المصري | I158: 0378 | J158: بسيون | K158: 1459.65
A159: 27406021601398 | B159: 3-مرتب تحويلات بنكية | D159: جناج ع مشتركة | E159: 6453 | F159: حسام الدين على على السمدونى | G159: 0003 | H159: البنك الاهلي المصري | I159: 0378 | J159: بسيون
A160: 28111281601271 | B160: 3-مرتب تحويلات بنكية | D160: صلاح سالم ب | E160: 6454 | F160: حسام محمد محمود الحصرى | G160: 0003 | H160: البنك الاهلي المصري | I160: 0378 | J160: بسيون
A161: 27905171600035 | B161: 3-مرتب تحويلات بنكية | D161: كتامة ب مشتركة | E161: 2281 | F161: حسانين عبد العزيز حسانين سلامة | G161: 0003 | H161: البنك الاهلي المصري | I161: 0378 | J161: بسيون | K161: 1882.95
A162: 26804251601194 | B162: 3-مرتب تحويلات بنكية | D162: عبد النبى خمخم بسلامون ر | E162: 139 | F162: حسن احمد احمد باشا | G162: 0003 | H162: البنك الاهلي المصري | I162: 0378 | J162: بسيون | K162: 2050.85
A163: 26007111600093 | B163: 3-مرتب تحويلات بنكية | D163: الديوان | E163: 4956 | F163: حسن السيد السيد عشرة | G163: 0098 | H163: بنك مصر | I163: 0257 | J163: بسيون
A164: 26303061600851 | B164: 3-مرتب تحويلات بنكية | D164: حافظ الدرينى ر | E164: 2586 | F164: حسن بسيونى حسن ابو طاحون | G164: 0098 | H164: بنك مصر | I164: 0257 | J164: بسيون
A165: 26009201600435 | B165: 3-مرتب تحويلات بنكية | D165: عيسوىفايد ث | E165: 3100 | F165: حسن محمد عبد الحى الحجار | G165: 0003 | H165: البنك الاهلي المصري | I165: 0378 | J165: بسيون
A166: 27810051600995 | B166: 3-مرتب تحويلات بنكية | D166: محمد كامل الجندى كفر عسكر ب | E166: 743 | F166: حسن محمد عبد الرؤف الكردى | G166: 0038 | H166: بنك التعمير و الاسكان | I166: 0048 | J166: الهرم
A167: 26309241601799 | B167: 3-مرتب تحويلات بنكية | D167: الشهيد حسن حجازى ب | E167: 2252 | F167: حسن محمد محمد حجازى | G167: 0003 | H167: البنك الاهلي المصري | I167: 0378 | J167: بسيون
A168: 26212281603839 | B168: 3-مرتب تحويلات بنكية | D168: قرنشو الفنية | E168: 2200 | F168: حسن محمود عبد الرحمن ابو الخير | G168: 0003 | H168: البنك الاهلي المصري | I168: 0378 | J168: بسيون | K168: 2826.1
A169: 26802101601614 | B169: 3-مرتب تحويلات بنكية | D169: حصة ابار ع مشتركة | E169: 4551 | F169: حسونه حسين على الفقى | G169: 0003 | H169: البنك الاهلي المصري | I169: 0378 | J169: بسيون
A170: 26410301600919 | B170: 3-مرتب تحويلات بنكية | D170: الديوان | E170: 6030 | F170: حسين سعيد مكرم | G170: 0003 | H170: البنك الاهلي المصري | I170: 0378 | J170: بسيون
A171: 26011251602573 | B171: 3-مرتب تحويلات بنكية | D171: كتامة ث مشتركة | E171: 6536 | F171: حسين مصطفي ابراهيم الكردي | G171: 0004 | H171: بنك القاهرة | I171: 4150 | J171: سوق ناصر
A172: 26006301600379 | B172: 3-مرتب تحويلات بنكية | D172: كفر سالم ر | E172: 3244 | F172: حسينى احمد محمود الحسينى سالم | G172: 0003 | H172: البنك الاهلي المصري | I172: 0378 | J172: بسيون | K172: 2507.35
A173: 26711131600978 | B173: 3-مرتب تحويلات بنكية | D173: عمر بن عبد العزيز ب | E173: 1367 | F173: حلمى أحمد عزام | G173: 0004 | H173: بنك القاهرة | I173: 4140 | J173: كفر الزيات
A174: 27001221601473 | B174: 3-مرتب تحويلات بنكية | D174: بسيون ث صناعى | E174: 5247 | F174: حلمى عبد الوهاب احمد الجارية | G174: 0003 | H174: البنك الاهلي المصري | I174: 0378 | J174: بسيون
A175: 26402091600691 | B175: 3-مرتب تحويلات بنكية | D175: كنيسة شبراطو ع | E175: 3138 | F175: حماد عبد الله حماد الشريف | G175: 1009 | H175: البنك الرئيسي للتنميه والائتمان الزراعى | I175: 0804 | J175: بسيون | K175: 2565.25
A176: 27003070202213 | B176: 3-مرتب تحويلات بنكية | D176: صالحجر ب جديدة | E176: 4009 | F176: حمدى السيد عبد الفتاح السيد | G176: 0004 | H176: بنك القاهرة | I176: 4140 | J176: كفر الزيات
A177: 26811091600869 | B177: 3-مرتب تحويلات بنكية | D177: محمد كامل الجندى كفر عسكر ب | E177: 723 | F177: حمدية أحمد عبد الهادى شتا | G177: 0098 | H177: بنك مصر | I177: 0257 | J177: بسيون
A178: 27801241601573 | B178: 3-مرتب تحويلات بنكية | D178: مصطفى كامل بكفر نصير ب | E178: 1868 | F178: حمزة جلال علي ابو حمزة | G178: 0003 | H178: البنك الاهلي المصري | I178: 0378 | J178: بسيون
A179: 26010011602758 | B179: 3-مرتب تحويلات بنكية | D179: قسم بسيون 1 | E179: 5326 | F179: حنا سعد صليب عبد الملاك | G179: 0005 | H179: بنك الإسكندرية | I179: 3003 | J179: فرع طنطــــا
A180: 26803111600728 | B180: 3-مرتب تحويلات بنكية | D180: مدرسة الجمهورية التجريبية | E180: 6404 | F180: حنان السيد حامد الخياط | G180: 0098 | H180: بنك مصر | I180: 0257 | J180: بسيون
A181: 26708291600906 | B181: 3-مرتب تحويلات بنكية | D181: كفر الدوار ب | E181: 1566 | F181: حنان زكريا عبد اللطيف السمدونى | G181: 0004 | H181: بنك القاهرة | I181: 4150 | J181: سوق ناصر
A182: 27111271601644 | B182: 3-مرتب تحويلات بنكية | D182: مشال ب | E182: 1812 | F182: حنان عبد الحميد محمد البرلسى | G182: 0003 | H182: البنك الاهلي المصري | I182: 0378 | J182: بسيون
A183: 27208231500229 | B183: 3-مرتب تحويلات بنكية | D183: كفر الدوار ب | E183: 1560 | F183: حنان محمد إبراهيم أباظه | G183: 0098 | H183: بنك مصر | I183: 0257 | J183: بسيون
A184: 27612051601715 | B184: 3-مرتب تحويلات بنكية | D184: بسيون ث صناعى | E184: 501 | F184: خالد احمد فؤاد النحراوى | G184: 0098 | H184: بنك مصر | I184: 0257 | J184: بسيون
A185: 26510061900272 | B185: 3-مرتب تحويلات بنكية | D185: عيسوىفايد ث | E185: 1418 | F185: خالد الأباصيرى الحجار | G185: 0003 | H185: البنك الاهلي المصري | I185: 0378 | J185: بسيون
A186: 26609151600932 | B186: 3-مرتب تحويلات بنكية | D186: المستشار احمد عصمت ع | E186: 2426 | F186: خالد جمال الاحول | G186: 0003 | H186: البنك الاهلي المصري | I186: 0378 | J186: بسيون
A187: 27301031602931 | B187: 3-مرتب تحويلات بنكية | D187: الشهيد عبد المنعم رياض بكتامة | E187: 4440 | F187: خالد حمدى عيد محمد ابو عوض | G187: 0098 | H187: بنك مصر | I187: 0257 | J187: بسيون
A188: 26207231601394 | B188: 3-مرتب تحويلات بنكية | D188: السادات تجارية | E188: 5282 | F188: خالد عاطف حسين الشافعى | G188: 0098 | H188: بنك مصر | I188: 0257 | J188: بسيون
A189: 26710161600895 | B189: 3-مرتب تحويلات بنكية | D189: السادات تجارية | E189: 2461 | F189: خالد عطية عطوان الطوخى | G189: 0003 | H189: البنك الاهلي المصري | I189: 0378 | J189: بسيون
A190: 26705131601516 | B190: 3-مرتب تحويلات بنكية | D190: بسيون ث بنات | E190: 5612 | F190: خالد على رمضان على | G190: 0003 | H190: البنك الاهلي المصري | I190: 0378 | J190: بسيون
A191: 26505311601752 | B191: 3-مرتب تحويلات بنكية | D191: الشهيد جمال شتا ب | E191: 583 | F191: خيرى عبد الجليل يوسف ابو عامر | G191: 0003 | H191: البنك الاهلي المصري | I191: 0378 | J191: بسيون
A192: 25909221601494 | B192: 3-مرتب تحويلات بنكية | D192: كتامة ب الجديدة | E192: 1461 | F192: خيري محمد احمد داود | G192: 0004 | H192: بنك القاهرة | I192: 4140 | J192: كفر الزيات
A193: 27708111600737 | B193: 3-مرتب تحويلات بنكية | D193: الحداد ع ت ا | E193: 1043 | F193: خيري محمد الشرشابى | G193: 0003 | H193: البنك الاهلي المصري | I193: 0378 | J193: بسيون
A194: 27304081601152 | B194: 3-مرتب تحويلات بنكية | D194: عمر بن عبد العزيز ب | E194: 1381 | F194: دسوقى حسين النفياوى | G194: 1009 | H194: البنك الرئيسي للتنميه والائتمان الزراعى | I194: 0804 | J194: بسيون
A195: 26911221601212 | B195: 3-مرتب تحويلات بنكية | D195: الثورة ب | E195: 4910 | F195: دسوقى صلاح بدر مصطفى الغرابلى | G195: 0003 | H195: البنك الاهلي المصري | I195: 0378 | J195: بسيون | K195: 2210.65
A196: 27610011602601 | B196: 3-مرتب تحويلات بنكية | D196: عبد اللطيف فايد بصالحجر ب | E196: 3345 | F196: دعاء خليل محمد سلامة | G196: 0003 | H196: البنك الاهلي المصري | I196: 0378 | J196: بسيون | K196: 1255.75
A197: 26809111601099 | B197: 3-مرتب تحويلات بنكية | D197: الديوان | E197: 43 | F197: را ضى اسما عيل ابرا هيم الحدا د | G197: 0003 | H197: البنك الاهلي المصري | I197: 0378 | J197: بسيون
A198: 27401261604554 | B198: 3-مرتب تحويلات بنكية | D198: عبد النبى خمخم بسلامون ع مشترك | E198: 3917 | F198: رافت محمد سالم احمد السقا | G198: 0098 | H198: بنك مصر | I198: 0257 | J198: بسيون
A199: 26006081600216 | B199: 3-مرتب تحويلات بنكية | D199: الديوان | E199: 4072 | F199: رافت يوسف حسن الشرنوبى | G199: 0003 | H199: البنك الاهلي المصري | I199: 0378 | J199: بسيون
A200: 28001031603538 | B200: 3-مرتب تحويلات بنكية | D200: شبراتنا ت ا | E200: 6440 | F200: رامى محمد على شعيشع البرلسى | G200: 0098 | H200: بنك مصر | I200: 0257 | J200: بسيون
... 523 more rows

Sheet Sheet3
A1: الرقم القومى | B1: نوع المدفوعه | C1: القطاع | D1: الإدارة | E1: رقم الموظف بجهته الأصلية | F1: الاسم | G1: كود البنك | H1: البنك | I1: كود الفرع | J1: الفرع | K1: المرتب
A2: 27101161603433 | B2: 3-مرتب تحويلات بنكية | D2: كفر جعفر ع بنات | E2: 1598 | F2: إبراهيم عبد الحميد احمد بريش | G2: 0003 | H2: البنك الاهلي المصري | I2: 0378 | J2: بسيون
A3: 26704151601231 | B3: 3-مرتب تحويلات بنكية | D3: بسيون ث صناعى | E3: 5896 | F3: أحمد الصاوى أبو اليزيد شواطه | G3: 0003 | H3: البنك الاهلي المصري | I3: 0378 | J3: بسيون
A4: 27303031601473 | B4: 3-مرتب تحويلات بنكية | D4: الديوان | E4: 197 | F4: أحمد عبدة فراج فايد | G4: 0003 | H4: البنك الاهلي المصري | I4: 0378 | J4: بسيون
A5: 26801291601597 | B5: 3-مرتب تحويلات بنكية | D5: عمر بن عبد العزيز ب | E5: 1362 | F5: أحمد محمد طه طه | G5: 0003 | H5: البنك الاهلي المصري | I5: 0378 | J5: بسيون
A6: 25905091600339 | B6: 3-مرتب تحويلات بنكية | D6: الشهيد ابراهيم صالح ع | E6: 1904 | F6: أحمد محمد عبد العزيز خاطر | G6: 0004 | H6: بنك القاهرة | I6: 4130 | J6: طنطا
A7: 26703261603054 | B7: 3-مرتب تحويلات بنكية | D7: عمر بن عبد العزيز ب | E7: 1370 | F7: إسماعيل إبراهيم قاقه | G7: 0005 | H7: بنك الإسكندرية | I7: 3012 | J7: فرع كفرالزيات
A8: 26605211601199 | B8: 3-مرتب تحويلات بنكية | D8: عمر بن عبد العزيز ب | E8: 1371 | F8: إسماعيل عبد الله عياد | G8: 1009 | H8: البنك الرئيسي للتنميه والائتمان الزراعى | I8: 0804 | J8: بسيون
A9: 26701151601959 | B9: 3-مرتب تحويلات بنكية | D9: صالحجر ع بنات | E9: 203 | F9: إسماعيل ناجى فايد | G9: 0003 | H9: البنك الاهلي المصري | I9: 0378 | J9: بسيون
A10: 27204201600975 | B10: 3-مرتب تحويلات بنكية | D10: كتامة ث تجارية | E10: 1479 | F10: أشرف ابو اليزيد قطب ابو طالب | G10: 0004 | H10: بنك القاهرة | I10: 4130 | J10: طنطا
A11: 27102131602455 | B11: 3-مرتب تحويلات بنكية | D11: عبد اللطيف فايد بصالحجر ب | E11: 1298 | F11: أشرف عبد ه محمد عسكر | G11: 0003 | H11: البنك الاهلي المصري | I11: 0378 | J11: بسيون
A12: 27207231601703 | B12: 3-مرتب تحويلات بنكية | D12: مدرسة الجمهورية التجريبية | E12: 6510 | F12: إكرام محمود محمد بدرة | G12: 0098 | H12: بنك مصر | I12: 0216 | J12: طنطا
A13: 28210311601083 | B13: 3-مرتب تحويلات بنكية | D13: جناج ب الجديدة | E13: 960 | F13: أميرة أحمد عبداللطيف هنو | G13: 1009 | H13: البنك الرئيسي للتنميه والائتمان الزراعى | I13: 0804 | J13: بسيون
A14: 26710101601574 | B14: 3-مرتب تحويلات بنكية | D14: عبد اللطيف فايد بصالحجر ب | E14: 1297 | F14: أمين أحمد مصطفى عمرو | G14: 0003 | H14: البنك الاهلي المصري | I14: 0378 | J14: بسيون
A15: 26007151500482 | B15: 3-مرتب تحويلات بنكية | D15: عبد النبى خمخم بسلامون ع مشترك | E15: 1125 | F15: أنوار جمال الدين عبد الرؤوف عتمان | G15: 0003 | H15: البنك الاهلي المصري | I15: 0378 | J15: بسيون | K15: 2691.1
A16: 26102010201182 | B16: 3-مرتب تحويلات بنكية | D16: محمد حسنى مبارك ب | E16: 1740 | F16: إيمان محمد محمد الدقدوقى | G16: 0004 | H16: بنك القاهرة | I16: 4150 | J16: سوق ناصر
A17: 27702091601466 | B17: 3-مرتب تحويلات بنكية | D17: الشهيد حسن حجازى ب | E17: 2241 | F17: إيمان مصطفى راغب العسكرى | G17: 0003 | H17: البنك الاهلي المصري | I17: 0378 | J17: بسيون
A18: 27508091601457 | B18: 3-مرتب تحويلات بنكية | D18: بسيون ث صناعى | E18: 6435 | F18: ابراهيم ابراهيم احمد احمد الملاح | G18: 0003 | H18: البنك الاهلي المصري | I18: 0378 | J18: بسيون
A19: 26801041600536 | B19: 3-مرتب تحويلات بنكية | D19: قرنشو الفنية | E19: 2188 | F19: ابراهيم احمد ابراهيم وهبه | G19: 0003 | H19: البنك الاهلي المصري | I19: 0378 | J19: بسيون
A20: 27204081601298 | B20: 3-مرتب تحويلات بنكية | D20: كنيسة شبراطو ب | E20: 247 | F20: ابراهيم احمد عمار | G20: 0003 | H20: البنك الاهلي المصري | I20: 0378 | J20: بسيون
A21: 27008161600957 | B21: 3-مرتب تحويلات بنكية | D21: بسيون ث صناعى | E21: 5161 | F21: ابراهيم السيد سليمان يونس الديهى | G21: 0003 | H21: البنك الاهلي المصري | I21: 0378 | J21: بسيون
A22: 27008221600871 | B22: 3-مرتب تحويلات بنكية | D22: كفر جعفر ب ر | E22: 3368 | F22: ابراهيم حافظ محمد رميح | G22: 0004 | H22: بنك القاهرة | I22: 4140 | J22: كفر الزيات
A23: 26801161601633 | B23: 3-مرتب تحويلات بنكية | D23: ابو حمر ع مشتركة | E23: 6361 | F23: ابراهيم حسين محمد رحيم | G23: 0003 | H23: البنك الاهلي المصري | I23: 0378 | J23: بسيون
A24: 26312151601511 | B24: 3-مرتب تحويلات بنكية | D24: محمد رياض كفر الحمام ب | E24: 1779 | F24: ابراهيم سعد محمد زغلول | G24: 0003 | H24: البنك الاهلي المصري | I24: 0378 | J24: بسيون | K24: 2686.75
A25: 26103051600454 | B25: 3-مرتب تحويلات بنكية | D25: كفر سليمان ب | E25: 4453 | F25: ابراهيم شعبان محمد ابو عرب | G25: 0003 | H25: البنك الاهلي المصري | I25: 0378 | J25: بسيون | K25: 3569.55
A26: 26305101600975 | B26: 3-مرتب تحويلات بنكية | D26: الثورة ب | E26: 4871 | F26: ابراهيم عبد القادر سعد امبابى | G26: 0003 | H26: البنك الاهلي المصري | I26: 0378 | J26: بسيون
A27: 26810191600959 | B27: 3-مرتب تحويلات بنكية | D27: قرنشو ع مشتركة | E27: 6015 | F27: ابراهيم عبد المطلب قنديل | G27: 0004 | H27: بنك القاهرة | I27: 4150 | J27: سوق ناصر
A28: 27503171601316 | B28: 3-مرتب تحويلات بنكية | D28: عيسوىفايد ث | E28: 3351 | F28: ابراهيم عبد الواحد اسماعيل مقلاش | G28: 0003 | H28: البنك الاهلي المصري | I28: 0378 | J28: بسيون
A29: 27106061601052 | B29: 3-مرتب تحويلات بنكية | D29: ناصر ث بنين | E29: 3851 | F29: ابراهيم على ابراهيم عيد | G29: 0003 | H29: البنك الاهلي المصري | I29: 0378 | J29: بسيون
A30: 26308191602679 | B30: 3-مرتب تحويلات بنكية | D30: رجائى حتاتة ب | E30: 4254 | F30: ابراهيم محمد عبد الحليم الغايش | G30: 1009 | H30: البنك الرئيسي للتنميه والائتمان الزراعى | I30: 0804 | J30: بسيون
A31: 27207031601059 | B31: 3-مرتب تحويلات بنكية | D31: قسم بسيون 1 | E31: 2259 | F31: ابراهيم محمد كامل الجندى | G31: 0003 | H31: البنك الاهلي المصري | I31: 0378 | J31: بسيون
A32: 26012221600572 | B32: 3-مرتب تحويلات بنكية | D32: الديوان | E32: 2045 | F32: ابراهيم محمدابراهيم نصر | G32: 0003 | H32: البنك الاهلي المصري | I32: 0378 | J32: بسيون
A33: 26908191601092 | B33: 3-مرتب تحويلات بنكية | D33: كفر جعفر ب ر | E33: 3369 | F33: ابراهيم مصطفى عبد الرحمن على | G33: 1009 | H33: البنك الرئيسي للتنميه والائتمان الزراعى | I33: 0804 | J33: بسيون
A34: 26112021600378 | B34: 3-مرتب تحويلات بنكية | D34: الحداد ع ت ا | E34: 6445 | F34: ابرهيم على بيومى بعيبر | G34: 0003 | H34: البنك الاهلي المصري | I34: 0378 | J34: بسيون | K34: 3275.15
A35: 28401011619592 | B35: 3-مرتب تحويلات بنكية | D35: الديوان | E35: 2515 | F35: ابوزيد محمد ابو زيد محمد ملوة | G35: 0003 | H35: البنك الاهلي المصري | I35: 0378 | J35: بسيون
A36: 26011191600347 | B36: 3-مرتب تحويلات بنكية | D36: الثورة ب | E36: 4860 | F36: احسان عبد المجيد محمد الحصرى | G36: 0003 | H36: البنك الاهلي المصري | I36: 0378 | J36: بسيون
A37: 27701021604739 | B37: 3-مرتب تحويلات بنكية | D37: طه حسين بالفرستق ب | E37: 4232 | F37: احمد اسماعيل احمد زلط | G37: 0004 | H37: بنك القاهرة | I37: 4140 | J37: كفر الزيات | K37: 1255.95
A38: 25912031601979 | B38: 3-مرتب تحويلات بنكية | D38: الديوان | E38: 6462 | F38: احمد حسين محمد الحشاش | G38: 0003 | H38: البنك الاهلي المصري | I38: 0378 | J38: بسيون
A39: 27304241601171 | B39: 3-مرتب تحويلات بنكية | D39: قرنشو ع مشتركة | E39: 6444 | F39: احمد ربيع احمد احمد البقرى | G39: 0003 | H39: البنك الاهلي المصري | I39: 0378 | J39: بسيون
A40: 26804061601279 | B40: 3-مرتب تحويلات بنكية | D40: الثورة ب | E40: 4885 | F40: احمد ربيع احمد محمد عبد الدايم | G40: 0003 | H40: البنك الاهلي المصري | I40: 0378 | J40: بسيون
A41: 26610031601437 | B41: 3-مرتب تحويلات بنكية | D41: جناج ب الجديدة | E41: 521 | F41: احمد رزق مبروك السوداني | G41: 0003 | H41: البنك الاهلي المصري | I41: 0378 | J41: بسيون
A42: 26604121601797 | B42: 3-مرتب تحويلات بنكية | D42: الديوان | E42: 11 | F42: احمد رمضا ن احمد الحداد | G42: 1009 | H42: البنك الرئيسي للتنميه والائتمان الزراعى | I42: 0804 | J42: بسيون
A43: 26810301601115 | B43: 3-مرتب تحويلات بنكية | D43: بسيون ث صناعى | E43: 3725 | F43: احمد رمضان عبد السلام فلوص | G43: 0003 | H43: البنك الاهلي المصري | I43: 0378 | J43: بسيون
A44: 27109222800076 | B44: 3-مرتب تحويلات بنكية | D44: خالد ابن الوليد ع | E44: 5869 | F44: احمد سمير عبد الحافظ محمد | G44: 0038 | H44: بنك التعمير و الاسكان | I44: 0031 | J44: كفر الشيخ
A45: 27101021603514 | B45: 3-مرتب تحويلات بنكية | D45: الثورة ب | E45: 1223 | F45: احمد شلبى احمد خضر | G45: 0003 | H45: البنك الاهلي المصري | I45: 0378 | J45: بسيون
A46: 27411031601039 | B46: 3-مرتب تحويلات بنكية | D46: شبراتنا ت ا ع | E46: 5993 | F46: احمد عبد الحليم محمد سمك | G46: 0003 | H46: البنك الاهلي المصري | I46: 0378 | J46: بسيون | K46: 2135
A47: 26207171600776 | B47: 3-مرتب تحويلات بنكية | D47: جناج ب الجديدة | E47: 524 | F47: احمد عبد الحميد صالح الفخرانى | G47: 0003 | H47: البنك الاهلي المصري | I47: 0378 | J47: بسيون
A48: 25901041601495 | B48: 3-مرتب تحويلات بنكية | D48: بسيون ث بنات | E48: 5583 | F48: احمد عبد العاطى احمد شهاب الدين | G48: 0003 | H48: البنك الاهلي المصري | I48: 0378 | J48: بسيون
A49: 26403121602054 | B49: 3-مرتب تحويلات بنكية | D49: الامام الشافعى بقرنشو ر | E49: 5794 | F49: احمد عبد اللطيف احمد ابو الخير | G49: 0003 | H49: البنك الاهلي المصري | I49: 0378 | J49: بسيون
A50: 26604091601274 | B50: 3-مرتب تحويلات بنكية | D50: بار الحمام ب | E50: 2168 | F50: احمد عبد اللطيف احمد الأنصارى | G50: 0003 | H50: البنك الاهلي المصري | I50: 0378 | J50: بسيون
A51: 26711071603093 | B51: 3-مرتب تحويلات بنكية | D51: قرنشو الفنية | E51: 2186 | F51: احمد عبد المجيد ابو حطب | G51: 0003 | H51: البنك الاهلي المصري | I51: 0378 | J51: بسيون
A52: 26505301600553 | B52: 3-مرتب تحويلات بنكية | D52: بسيون ث صناعى | E52: 5230 | F52: احمد عبد المجيد احمد دغيم | G52: 0004 | H52: بنك القاهرة | I52: 4140 | J52: كفر الزيات
A53: 28001011611119 | B53: 3-مرتب تحويلات بنكية | D53: بسيون ث صناعى | E53: 5013 | F53: احمد عبد المقصود محمد بسيونى الجعيفى | G53: 0003 | H53: البنك الاهلي المصري | I53: 0378 | J53: بسيون
A54: 26404021601138 | B54: 3-مرتب تحويلات بنكية | D54: منشاة اليعقوبية ت ا ب | E54: 2610 | F54: احمد عبد الوهاب فريد ابو حمر | G54: 0003 | H54: البنك الاهلي المصري | I54: 0378 | J54: بسيون
A55: 27712011603035 | B55: 3-مرتب تحويلات بنكية | D55: عيسوىفايد ع | E55: 3337 | F55: احمد على عبد القادر الاعمى | G55: 1009 | H55: البنك الرئيسي للتنميه والائتمان الزراعى | I55: 0804 | J55: بسيون
A56: 26104201600314 | B56: 3-مرتب تحويلات بنكية | D56: كتامة ث مشتركة | E56: 5501 | F56: احمد على على ابو طالب | G56: 0003 | H56: البنك الاهلي المصري | I56: 0378 | J56: بسيون
A57: 26105051601518 | B57: 3-مرتب تحويلات بنكية | D57: رجائى حتاتة ب | E57: 4251 | F57: احمد متولى بسيونى عبد الوهاب | G57: 0003 | H57: البنك الاهلي المصري | I57: 0378 | J57: بسيون
A58: 26506301600592 | B58: 3-مرتب تحويلات بنكية | D58: عزبة رزق ب | E58: 3935 | F58: احمد محمد شحاته غلاب | G58: 0004 | H58: بنك القاهرة | I58: 4130 | J58: طنطا
A59: 28408011604271 | B59: 3-مرتب تحويلات بنكية | D59: بسيون ث بنات | E59: 5657 | F59: احمد محمد عبد الفتاح زيادة | G59: 0004 | H59: بنك القاهرة | I59: 4370 | J59: السادات
A60: 26002061600354 | B60: 3-مرتب تحويلات بنكية | D60: الشهيد عزت هلال ب | E60: 661 | F60: احمد محمد فتح الله فايد | G60: 0004 | H60: بنك القاهرة | I60: 4140 | J60: كفر الزيات
A61: 27209151600539 | B61: 3-مرتب تحويلات بنكية | D61: مصطفى كامل بكفر نصير ب | E61: 1861 | F61: احمد يوسف احمد | G61: 0003 | H61: البنك الاهلي المصري | I61: 0378 | J61: بسيون | K61: 2442
A62: 26203201600797 | B62: 3-مرتب تحويلات بنكية | D62: الديوان | E62: 6032 | F62: احمدعبد الرحمن الجزار | G62: 0003 | H62: البنك الاهلي المصري | I62: 0378 | J62: بسيون
A63: 28107011602546 | B63: 3-مرتب تحويلات بنكية | D63: صلاح سالم ب | E63: 4962 | F63: اسماء ابراهيم حسين عيد | G63: 0038 | H63: بنك التعمير و الاسكان | I63: 0031 | J63: كفر الشيخ | K63: 1134
A64: 28903031600583 | B64: 3-مرتب تحويلات بنكية | D64: مصطفى قاسم ت ا | E64: 6310 | F64: اسماء حسانين عبدالمطلب | G64: 0038 | H64: بنك التعمير و الاسكان | I64: 0031 | J64: كفر الشيخ
A65: 28606211602326 | B65: 3-مرتب تحويلات بنكية | D65: كفر سليمان ب | E65: 1644 | F65: اسماء عبد اللطيف طه ابو طالب | G65: 0003 | H65: البنك الاهلي المصري | I65: 0378 | J65: بسيون | K65: 1466.95
A66: 25909221600331 | B66: 3-مرتب تحويلات بنكية | D66: عيسوىفايد ث | E66: 1433 | F66: اسماعيل ابراهيم البشة | G66: 0003 | H66: البنك الاهلي المصري | I66: 0378 | J66: بسيون
A67: 26404241600914 | B67: 3-مرتب تحويلات بنكية | D67: مصطفى قاسم ت ا ع | E67: 863 | F67: اسماعيل حسين حسين الكردى | G67: 0004 | H67: بنك القاهرة | I67: 4130 | J67: طنطا
A68: 26401271601959 | B68: 3-مرتب تحويلات بنكية | D68: الديوان | E68: 4979 | F68: اسماعيل رضوان رضوان محمد شنيشن | G68: 0098 | H68: بنك مصر | I68: 0257 | J68: بسيون
A69: 26102081500237 | B69: 3-مرتب تحويلات بنكية | D69: بسيون ث بنات | E69: 5585 | F69: اسماعيل طه قطب ابو على | G69: 1009 | H69: البنك الرئيسي للتنميه والائتمان الزراعى | I69: 0804 | J69: بسيون
A70: 26008211601379 | B70: 3-مرتب تحويلات بنكية | D70: كفر نصير ع | E70: 1669 | F70: اسماعيل فتوح اسماعيل شعير | G70: 0098 | H70: بنك مصر | I70: 0257 | J70: بسيون
A71: 26808221601373 | B71: 3-مرتب تحويلات بنكية | D71: الكمال ب بقرنشو | E71: 748 | F71: اسماعيل محمد عبدالله الأقرع | G71: 0003 | H71: البنك الاهلي المصري | I71: 0378 | J71: بسيون
A72: 27003201600929 | B72: 3-مرتب تحويلات بنكية | D72: الحداد ع ت ا | E72: 507 | F72: اسمهان على بعيبر | G72: 0003 | H72: البنك الاهلي المصري | I72: 0378 | J72: بسيون
A73: 27302271601458 | B73: 3-مرتب تحويلات بنكية | D73: بسيون ث صناعى | E73: 5108 | F73: اشرف اسماعيل محمود محمد الدش | G73: 0005 | H73: بنك الإسكندرية | I73: 3009 | J73: فرع شبين الكوم
A74: 27309291601378 | B74: 3-مرتب تحويلات بنكية | D74: خليفة عيسى بالفرستق ب | E74: 2827 | F74: اشرف السيد اسماعيل السيد | G74: 1009 | H74: البنك الرئيسي للتنميه والائتمان الزراعى | I74: 0804 | J74: بسيون
A75: 27210091500759 | B75: 3-مرتب تحويلات بنكية | D75: جناج ب الجديدة | E75: 528 | F75: اشرف عبد المقصود جبرئيل الدسوقى | G75: 0003 | H75: البنك الاهلي المصري | I75: 0378 | J75: بسيون
A76: 27502081601931 | B76: 3-مرتب تحويلات بنكية | D76: الشهيد حسن حجازى ب | E76: 6622 | F76: اشرف فاروق مرشدى مرجونه | G76: 0003 | H76: البنك الاهلي المصري | I76: 0378 | J76: بسيون
A77: 28401111601771 | B77: 3-مرتب تحويلات بنكية | D77: صفية الصناعية بنات | E77: 4507 | F77: اشرف محمد عبد الله الوجاب | G77: 0003 | H77: البنك الاهلي المصري | I77: 0378 | J77: بسيون
A78: 26309031602261 | B78: 3-مرتب تحويلات بنكية | D78: نهضة مصر بابو حمر ب | E78: 6374 | F78: افراج مصطفى عبد المنعم الدقاق | G78: 0098 | H78: بنك مصر | I78: 0257 | J78: بسيون
A79: 27311011602301 | B79: 3-مرتب تحويلات بنكية | D79: التحرير ب | E79: 5454 | F79: اكرام سعد الدين بسيونى الدخاخنى | G79: 0098 | H79: بنك مصر | I79: 0257 | J79: بسيون
A80: 26409271600953 | B80: 3-مرتب تحويلات بنكية | D80: عبد النبى خمخم بسلامون ب | E80: 6455 | F80: البدرى على محمد ابوزيد | G80: 0003 | H80: البنك الاهلي المصري | I80: 0378 | J80: بسيون
A81: 26811061601135 | B81: 3-مرتب تحويلات بنكية | D81: كتامة ث مشتركة | E81: 5500 | F81: السباعى مصطفى السباعى الجندى | G81: 0003 | H81: البنك الاهلي المصري | I81: 0378 | J81: بسيون
A82: 28401011522173 | B82: 3-مرتب تحويلات بنكية | D82: جناج ب الجديدة | E82: 6019 | F82: السعيد السعيد عامر | G82: 0003 | H82: البنك الاهلي المصري | I82: 0378 | J82: بسيون
A83: 26402201601311 | B83: 3-مرتب تحويلات بنكية | D83: الديوان | E83: 5362 | F83: السيد ابراهيم احمد الملاح | G83: 0003 | H83: البنك الاهلي المصري | I83: 0378 | J83: بسيون
A84: 26409221601193 | B84: 3-مرتب تحويلات بنكية | D84: كفر الدوار ب | E84: 4562 | F84: السيد احمد السيد النحراوى | G84: 0003 | H84: البنك الاهلي المصري | I84: 0378 | J84: بسيون | K84: 2807.2
A85: 26112011602291 | B85: 3-مرتب تحويلات بنكية | D85: خالد ابن الوليد ت ا ب | E85: 3658 | F85: السيد احمد حتاتة | G85: 0003 | H85: البنك الاهلي المصري | I85: 0378 | J85: بسيون
A86: 26412091601456 | B86: 3-مرتب تحويلات بنكية | D86: كفر جعفر ع مهنى | E86: 3483 | F86: السيد احمد متولى الخيوطى | G86: 1009 | H86: البنك الرئيسي للتنميه والائتمان الزراعى | I86: 0804 | J86: بسيون
A87: 26805101600978 | B87: 3-مرتب تحويلات بنكية | D87: صالحجر ب جديدة | E87: 4012 | F87: السيد اسماعيل السيد زغلول | G87: 0003 | H87: البنك الاهلي المصري | I87: 0378 | J87: بسيون
A88: 27910211601556 | B88: 3-مرتب تحويلات بنكية | D88: عوض العيسوى ب | E88: 2260 | F88: السيد رمضان اسماعيل غباشى | G88: 0098 | H88: بنك مصر | I88: 0257 | J88: بسيون
A89: 25905111601736 | B89: 3-مرتب تحويلات بنكية | D89: الشهيد عبد المنعم رياض بكتامة | E89: 4434 | F89: السيد عبد العظيم احمد السعودى | G89: 0098 | H89: بنك مصر | I89: 0216 | J89: طنطا
A90: 26511271601096 | B90: 3-مرتب تحويلات بنكية | D90: صفية الصناعية بنات | E90: 5061 | F90: السيد عبد المنعم عبد السلام النحراوى | G90: 0003 | H90: البنك الاهلي المصري | I90: 0378 | J90: بسيون
A91: 26503301601212 | B91: 3-مرتب تحويلات بنكية | D91: عيسوىفايد ع | E91: 3348 | F91: السيد عبد النبى عبد المجيد مقلاش | G91: 0003 | H91: البنك الاهلي المصري | I91: 0378 | J91: بسيون
A92: 28210031601851 | B92: 3-مرتب تحويلات بنكية | D92: السادات تجارية | E92: 5279 | F92: السيد محمد اسماعيل حسين زلط | G92: 0003 | H92: البنك الاهلي المصري | I92: 0378 | J92: بسيون
A93: 26406131601934 | B93: 3-مرتب تحويلات بنكية | D93: الديوان | E93: 6265 | F93: السيد محمد محمد بربش | G93: 0003 | H93: البنك الاهلي المصري | I93: 0378 | J93: بسيون
A94: 26011031602157 | B94: 3-مرتب تحويلات بنكية | D94: الديوان | E94: 5357 | F94: السيد مساعد على ملا | G94: 0098 | H94: بنك مصر | I94: 0257 | J94: بسيون
A95: 27510141600273 | B95: 3-مرتب تحويلات بنكية | D95: الديوان | E95: 6488 | F95: السيد يحيى عوض احمد على | G95: 0003 | H95: البنك الاهلي المصري | I95: 0378 | J95: بسيون
A96: 26105111600311 | B96: 3-مرتب تحويلات بنكية | D96: جناج ب الجديدة | E96: 523 | F96: الشافعي راغب محمود البربري | G96: 0003 | H96: البنك الاهلي المصري | I96: 0378 | J96: بسيون
A97: 26306231600817 | B97: 3-مرتب تحويلات بنكية | D97: كفر سالم ت ا ب | E97: 2946 | F97: الشحات السيد خطاب خطاب | G97: 0003 | H97: البنك الاهلي المصري | I97: 0378 | J97: بسيون
A98: 26611051600972 | B98: 3-مرتب تحويلات بنكية | D98: مصطفى كامل بكفر نصير ب | E98: 1862 | F98: الشوادفي محمد راغب عبدالبر | G98: 0098 | H98: بنك مصر | I98: 0257 | J98: بسيون
A99: 26404261601054 | B99: 3-مرتب تحويلات بنكية | D99: بسيون ث صناعى | E99: 4277 | F99: الصاوى شعبان الصاوى ابورواش | G99: 1009 | H99: البنك الرئيسي للتنميه والائتمان الزراعى | I99: 0804 | J99: بسيون
A100: 26907271600279 | B100: 3-مرتب تحويلات بنكية | D100: السادات تجارية | E100: 4630 | F100: الهامى محمد فتوح سليم | G100: 0038 | H100: بنك التعمير و الاسكان | I100: 0031 | J100: كفر الشيخ
A101: 27104101601899 | B101: 3-مرتب تحويلات بنكية | D101: شبراتنا ت ا | E101: 6367 | F101: الوردانى سعد محمد الوردانى | G101: 1009 | H101: البنك الرئيسي للتنميه والائتمان الزراعى | I101: 0804 | J101: بسيون | K101: 2412.65
A102: 27003131500808 | B102: 3-مرتب تحويلات بنكية | D102: رجائى حتاتة ب | E102: 6199 | F102: امل انور محمود عبد ربه | G102: 0003 | H102: البنك الاهلي المصري | I102: 0378 | J102: بسيون
A103: 26804071601242 | B103: 3-مرتب تحويلات بنكية | D103: الثورة ب | E103: 4850 | F103: اميمة محمد سيد احمد عبد البر | G103: 0003 | H103: البنك الاهلي المصري | I103: 0378 | J103: بسيون
A104: 26912271601643 | B104: 3-مرتب تحويلات بنكية | D104: صلاح سالم ب | E104: 4748 | F104: اميمة محمود محمد جاد الله رجب | G104: 0003 | H104: البنك الاهلي المصري | I104: 0378 | J104: بسيون | K104: 2526.25
A105: 26311041601241 | B105: 3-مرتب تحويلات بنكية | D105: السادات تجارية | E105: 4641 | F105: امينة بد المنعم محمود سليمان | G105: 0003 | H105: البنك الاهلي المصري | I105: 0378 | J105: بسيون
A106: 26309021600724 | B106: 3-مرتب تحويلات بنكية | D106: الديوان | E106: 6432 | F106: امينه صلاح كيلانى كيلانى | G106: 0003 | H106: البنك الاهلي المصري | I106: 0378 | J106: بسيون
A107: 26408071600626 | B107: 3-مرتب تحويلات بنكية | D107: قسم بسيون 2 | E107: 6734 | F107: امينه قطب احمد البريه | G107: 0003 | H107: البنك الاهلي المصري | I107: 0378 | J107: بسيون
A108: 26112091600383 | B108: 3-مرتب تحويلات بنكية | D108: كفر سليمان ب | E108: 5808 | F108: امينه محمد ابراهيم السيسى | G108: 0003 | H108: البنك الاهلي المصري | I108: 0378 | J108: بسيون | K108: 2566.2
A109: 27410051601209 | B109: 3-مرتب تحويلات بنكية | D109: الفرستق ع مشتركة | E109: 6456 | F109: انتصاراحمد السيد عبد القادر | G109: 0003 | H109: البنك الاهلي المصري | I109: 0378 | J109: بسيون
A110: 27403061601154 | B110: 3-مرتب تحويلات بنكية | D110: كنيسة شبراطو ع | E110: 1699 | F110: انور عبدالقوى رحيم جادالله | G110: 1009 | H110: البنك الرئيسي للتنميه والائتمان الزراعى | I110: 0804 | J110: بسيون
A111: 27110071600892 | B111: 3-مرتب تحويلات بنكية | D111: كتامة ث تجارية | E111: 5288 | F111: انور محمد احمد ابو يوسف | G111: 0003 | H111: البنك الاهلي المصري | I111: 0378 | J111: بسيون
A112: 26711081601218 | B112: 3-مرتب تحويلات بنكية | D112: صلاح حتاتة ع | E112: 1243 | F112: انور محمود محمد احمد طه | G112: 0003 | H112: البنك الاهلي المصري | I112: 0378 | J112: بسيون
A113: 28910231602242 | B113: 3-مرتب تحويلات بنكية | D113: حلمى انيس ت ا | E113: 5918 | F113: اية ابراهيم عبد الدايم | G113: 0003 | H113: البنك الاهلي المصري | I113: 0380 | J113: المحلة الكبرى
A114: 27601041602541 | B114: 3-مرتب تحويلات بنكية | D114: ناصر ث بنين | E114: 3803 | F114: ايماان بسيونى احمد عوض | G114: 0003 | H114: البنك الاهلي المصري | I114: 0378 | J114: بسيون
A115: 27201101600529 | B115: 3-مرتب تحويلات بنكية | D115: الديوان | E115: 2102 | F115: ايمان ابراهيم محمد الدهبى | G115: 0098 | H115: بنك مصر | I115: 0257 | J115: بسيون
A116: 28410301600983 | B116: 3-مرتب تحويلات بنكية | D116: صلاح سالم ب | E116: 829 | F116: ايمان عبد المعطى حشاد | G116: 0003 | H116: البنك الاهلي المصري | I116: 0378 | J116: بسيون | K116: 1561.55
A117: 26401281600047 | B117: 3-مرتب تحويلات بنكية | D117: بسيون ث صناعى | E117: 5022 | F117: ايمان فهمى رضوان يونس | G117: 0003 | H117: البنك الاهلي المصري | I117: 0378 | J117: بسيون
A118: 27907111601302 | B118: 3-مرتب تحويلات بنكية | D118: رجائى حتاتة ب | E118: 5672 | F118: ايمان ماهر عبد الرحيم عطا | G118: 0003 | H118: البنك الاهلي المصري | I118: 0378 | J118: بسيون
A119: 27404090201544 | B119: 3-مرتب تحويلات بنكية | D119: الفرستق ع مشتركة | E119: 945 | F119: ايمان محروس السيد ايوب | G119: 0003 | H119: البنك الاهلي المصري | I119: 0378 | J119: بسيون
A120: 26310031600984 | B120: 3-مرتب تحويلات بنكية | D120: بسيون ع بنات | E120: 885 | F120: ايمان محمد حلمى محمد وفا | G120: 0003 | H120: البنك الاهلي المصري | I120: 0378 | J120: بسيون
A121: 28303121601727 | B121: 3-مرتب تحويلات بنكية | D121: عزبة رزق ب | E121: 3949 | F121: ايمان نصحى ابو اليزيد محمد المغينى | G121: 0038 | H121: بنك التعمير و الاسكان | I121: 0031 | J121: كفر الشيخ
A122: 26805151601479 | B122: 3-مرتب تحويلات بنكية | D122: ميت شريف ث | E122: 3848 | F122: ايمن انصارى محمد السخاوى | G122: 0003 | H122: البنك الاهلي المصري | I122: 0378 | J122: بسيون
A123: 26409191601118 | B123: 3-مرتب تحويلات بنكية | D123: نجريج ب ت ا | E123: 3218 | F123: ايمن بسيونى محمد عثمان | G123: 0098 | H123: بنك مصر | I123: 0257 | J123: بسيون
A124: 27112271601993 | B124: 3-مرتب تحويلات بنكية | D124: الديوان | E124: 3137 | F124: ايمن محمد عبد الرسول احمد فايد | G124: 0098 | H124: بنك مصر | I124: 0257 | J124: بسيون
A125: 27508011601061 | B125: 3-مرتب تحويلات بنكية | D125: على بن ابى طالب المهنى ع | E125: 2368 | F125: ايناس عزت توفيق بدوى | G125: 0098 | H125: بنك مصر | I125: 0257 | J125: بسيون
A126: 28709051602565 | B126: 3-مرتب تحويلات بنكية | D126: الامام الشافعى بقرنشو ب | E126: 6383 | F126: ايناس محمد زكى جبر | G126: 0003 | H126: البنك الاهلي المصري | I126: 0378 | J126: بسيون
A127: 28112071601119 | B127: 3-مرتب تحويلات بنكية | D127: خالد ابن الوليد ت ا ب | E127: 6378 | F127: ايهاب محمود على الضو | G127: 0003 | H127: البنك الاهلي المصري | I127: 0378 | J127: بسيون
A128: 27205100101095 | B128: 3-مرتب تحويلات بنكية | D128: كفر جعفر ب ر | E128: 6540 | F128: ايهاب نصر عبدالنبى | G128: 0004 | H128: بنك القاهرة | I128: 2010 | J128: سيزوستريس
A129: 26406031600884 | B129: 3-مرتب تحويلات بنكية | D129: قسم بسيون 2 | E129: 6725 | F129: بثينه عبد الرءوف محمد داود | G129: 1009 | H129: البنك الرئيسي للتنميه والائتمان الزراعى | I129: 0804 | J129: بسيون
A130: 26304031600691 | B130: 3-مرتب تحويلات بنكية | D130: كتامة ث تجارية | E130: 1483 | F130: بدر عبد القوى عبدالحميد حميده | G130: 0003 | H130: البنك الاهلي المصري | I130: 0378 | J130: بسيون
A131: 26212121603565 | B131: 3-مرتب تحويلات بنكية | D131: قسم بسيون 2 | E131: 6772 | F131: بديعه مصطفى عبد الحليم المراسى | G131: 0003 | H131: البنك الاهلي المصري | I131: 0378 | J131: بسيون
A132: 27904171600993 | B132: 3-مرتب تحويلات بنكية | D132: بسيون ث صناعى | E132: 5226 | F132: بسيونى عبد المجيد بسيونى حسنين | G132: 0003 | H132: البنك الاهلي المصري | I132: 0378 | J132: بسيون
A133: 26311291600593 | B133: 3-مرتب تحويلات بنكية | D133: الشهيد ابراهيم صالح ع | E133: 1992 | F133: بسيونى محمد السعدنى | G133: 1009 | H133: البنك الرئيسي للتنميه والائتمان الزراعى | I133: 0804 | J133: بسيون | K133: 1865
A134: 27512011502108 | B134: 3-مرتب تحويلات بنكية | D134: كفر الدوار ب | E134: 529 | F134: بسيونية محمد احمد الحبشى | G134: 0003 | H134: البنك الاهلي المصري | I134: 0378 | J134: بسيون
A135: 27503011602634 | B135: 3-مرتب تحويلات بنكية | D135: صلاح حتاتة ع | E135: 6446 | F135: تامررجب شلبى الاشقر | G135: 0003 | H135: البنك الاهلي المصري | I135: 0435 | J135: قطور
A136: 26105291601655 | B136: 3-مرتب تحويلات بنكية | D136: كفر سالم ر | E136: 3237 | F136: تكال على عبد اللطيف ماضى | G136: 0003 | H136: البنك الاهلي المصري | I136: 0378 | J136: بسيون
A137: 26408021602148 | B137: 3-مرتب تحويلات بنكية | D137: الحداد ع ت ا | E137: 516 | F137: ثناء عبدالمنعم صقر | G137: 0003 | H137: البنك الاهلي المصري | I137: 0378 | J137: بسيون | K137: 2332.15
A138: 28709031601805 | B138: 3-مرتب تحويلات بنكية | D138: محمد حسنى مبارك ب | E138: 5738 | F138: ثناء على محمد صالح | G138: 0003 | H138: البنك الاهلي المصري | I138: 0378 | J138: بسيون
A139: 26011271602138 | B139: 3-مرتب تحويلات بنكية | D139: عبد النبى خمخم بسلامون ع مشترك | E139: 1102 | F139: جابر السيد مبروك عوض | G139: 0003 | H139: البنك الاهلي المصري | I139: 0378 | J139: بسيون
A140: 27010191601235 | B140: 3-مرتب تحويلات بنكية | D140: بسيون ث صناعى | E140: 6119 | F140: جابر حامد حامد الاشعل | G140: 0003 | H140: البنك الاهلي المصري | I140: 0378 | J140: بسيون
A141: 27209031601531 | B141: 3-مرتب تحويلات بنكية | D141: بسيون ث صناعى | E141: 6449 | F141: جابرجمعه احمدمصطفى العبد | G141: 0003 | H141: البنك الاهلي المصري | I141: 0378 | J141: بسيون
A142: 26302241600712 | B142: 3-مرتب تحويلات بنكية | D142: عبد النبى خمخم بسلامون ر | E142: 146 | F142: جبر السيد مبروك عوض | G142: 0003 | H142: البنك الاهلي المصري | I142: 0378 | J142: بسيون
A143: 25911041601555 | B143: 3-مرتب تحويلات بنكية | D143: عزبة ناشد ب | E143: 1355 | F143: جلال عبد العاطى حميدة | G143: 0098 | H143: بنك مصر | I143: 0257 | J143: بسيون
A144: 26312101601731 | B144: 3-مرتب تحويلات بنكية | D144: بسيون ث صناعى | E144: 5017 | F144: جلال عبد المعطى حسن الحداد | G144: 0003 | H144: البنك الاهلي المصري | I144: 0378 | J144: بسيون
A145: 26101181601999 | B145: 3-مرتب تحويلات بنكية | D145: الديوان | E145: 4978 | F145: جمال الدين نصر شعبان الطويل | G145: 0098 | H145: بنك مصر | I145: 0257 | J145: بسيون
A146: 26312211601698 | B146: 3-مرتب تحويلات بنكية | D146: السادات تجارية | E146: 4649 | F146: جمال السيد بسيونى عيد | G146: 0003 | H146: البنك الاهلي المصري | I146: 0378 | J146: بسيون
A147: 26706121601174 | B147: 3-مرتب تحويلات بنكية | D147: بسيون ث صناعى | E147: 6170 | F147: جمال السيد محمد ابو المجد | G147: 0003 | H147: البنك الاهلي المصري | I147: 0378 | J147: بسيون
A148: 26212171603477 | B148: 3-مرتب تحويلات بنكية | D148: صالحجر ع بنات | E148: 191 | F148: جمال حسن غانم | G148: 0003 | H148: البنك الاهلي المصري | I148: 0378 | J148: بسيون | K148: 3427.1
A149: 26910271601713 | B149: 3-مرتب تحويلات بنكية | D149: ابو حمر ت ا ب | E149: 6008 | F149: جمال رضوان عبد العزيز الصعيدى | G149: 0098 | H149: بنك مصر | I149: 0257 | J149: بسيون
A150: 26311251601074 | B150: 3-مرتب تحويلات بنكية | D150: كفر نصير ع | E150: 1667 | F150: جمال على مرسى ابراهيم | G150: 1009 | H150: البنك الرئيسي للتنميه والائتمان الزراعى | I150: 0804 | J150: بسيون
A151: 26511251801196 | B151: 3-مرتب تحويلات بنكية | D151: الديوان | E151: 4071 | F151: جمال محمد خليل محمد | G151: 0003 | H151: البنك الاهلي المصري | I151: 0378 | J151: بسيون
A152: 26207231601556 | B152: 3-مرتب تحويلات بنكية | D152: الشهيد جمال شتا ع | E152: 611 | F152: جمال محمد عبده ابو شتيه | G152: 0003 | H152: البنك الاهلي المصري | I152: 0378 | J152: بسيون
A153: 26403191600849 | B153: 3-مرتب تحويلات بنكية | D153: خليفة عيسى بالفرستق ب | E153: 639 | F153: جمالات محمد الحفناوى | G153: 0003 | H153: البنك الاهلي المصري | I153: 0378 | J153: بسيون
A154: 26803041601012 | B154: 3-مرتب تحويلات بنكية | D154: كتامة ث مشتركة | E154: 1541 | F154: جمعة محمد الجمل | G154: 0003 | H154: البنك الاهلي المصري | I154: 0378 | J154: بسيون
A155: 26508211600952 | B155: 3-مرتب تحويلات بنكية | D155: الشهيد حسن حجازى ب | E155: 6422 | F155: جمعه حسن رجب الصياد | G155: 0098 | H155: بنك مصر | I155: 0257 | J155: بسيون
A156: 26311251600892 | B156: 3-مرتب تحويلات بنكية | D156: ابو حمر ت ا ب | E156: 5991 | F156: جمعه حسين مصطفى الشامى | G156: 0003 | H156: البنك الاهلي المصري | I156: 0378 | J156: بسيون
A157: 26205261600659 | B157: 3-مرتب تحويلات بنكية | D157: كفر سالم ت ا ب | E157: 2941 | F157: جمعه عبد البسيط السلهوبى | G157: 0004 | H157: بنك القاهرة | I157: 4130 | J157: طنطا
A158: 26410071600965 | B158: 3-مرتب تحويلات بنكية | D158: ابو حمر ع ت ا | E158: 413 | F158: جملات ابوالعنين محمود عيد | G158: 1009 | H158: البنك الرئيسي للتنميه والائتمان الزراعى | I158: 0804 | J158: بسيون
A159: 27106121601138 | B159: 3-مرتب تحويلات بنكية | D159: عزبة ناشد ب | E159: 1343 | F159: جميل كامل عبد السلام | G159: 0003 | H159: البنك الاهلي المصري | I159: 0378 | J159: بسيون
A160: 26310191601103 | B160: 3-مرتب تحويلات بنكية | D160: صلاح سالم ب | E160: 4701 | F160: جميلة عبد الحميد محمد الصعيدى | G160: 0098 | H160: بنك مصر | I160: 0257 | J160: بسيون
A161: 27508191600202 | B161: 3-مرتب تحويلات بنكية | D161: بسيون ع بنات | E161: 891 | F161: جيرمين حسنى محمود البدرى | G161: 0003 | H161: البنك الاهلي المصري | I161: 0379 | J161: المعتصم بطنطا
A162: 26602181600363 | B162: 3-مرتب تحويلات بنكية | D162: بسيون ث بنات | E162: 5558 | F162: جيهان بدوى كامل بدوى | G162: 0003 | H162: البنك الاهلي المصري | I162: 0378 | J162: بسيون
A163: 27508041601243 | B163: 3-مرتب تحويلات بنكية | D163: كفر جعفر ب ر | E163: 3375 | F163: جيهان نبيل احمد السلماوى | G163: 0003 | H163: البنك الاهلي المصري | I163: 0378 | J163: بسيون
A164: 26811021600713 | B164: 3-مرتب تحويلات بنكية | D164: مشال ب | E164: 2051 | F164: حاتم بدير محمد العدوى | G164: 0003 | H164: البنك الاهلي المصري | I164: 0378 | J164: بسيون
A165: 27901021604371 | B165: 3-مرتب تحويلات بنكية | D165: بسيون ث صناعى | E165: 6642 | F165: حاتم صلاح اسماعيل زيادة | G165: 0003 | H165: البنك الاهلي المصري | I165: 0378 | J165: بسيون
A166: 26006291600219 | B166: 3-مرتب تحويلات بنكية | D166: جناج ب الجديدة | E166: 2883 | F166: حامد محمد الفقى | G166: 0003 | H166: البنك الاهلي المصري | I166: 0378 | J166: بسيون
A167: 26901181602932 | B167: 3-مرتب تحويلات بنكية | D167: الثورة ب | E167: 3850 | F167: حجبر مصطفى احمد مصطفى الحريرى | G167: 0003 | H167: البنك الاهلي المصري | I167: 0378 | J167: بسيون
A168: 27406021601398 | B168: 3-مرتب تحويلات بنكية | D168: جناج ع مشتركة | E168: 6453 | F168: حسام الدين على على السمدونى | G168: 0003 | H168: البنك الاهلي المصري | I168: 0378 | J168: بسيون
A169: 28111281601271 | B169: 3-مرتب تحويلات بنكية | D169: صلاح سالم ب | E169: 6454 | F169: حسام محمد محمود الحصرى | G169: 0003 | H169: البنك الاهلي المصري | I169: 0378 | J169: بسيون | K169: 1460.7
A170: 27905171600035 | B170: 3-مرتب تحويلات بنكية | D170: كتامة ب مشتركة | E170: 2281 | F170: حسانين عبد العزيز حسانين سلامة | G170: 0003 | H170: البنك الاهلي المصري | I170: 0378 | J170: بسيون
A171: 26804251601194 | B171: 3-مرتب تحويلات بنكية | D171: عبد النبى خمخم بسلامون ر | E171: 139 | F171: حسن احمد احمد باشا | G171: 0003 | H171: البنك الاهلي المصري | I171: 0378 | J171: بسيون
A172: 26007111600093 | B172: 3-مرتب تحويلات بنكية | D172: الديوان | E172: 4956 | F172: حسن السيد السيد عشرة | G172: 0098 | H172: بنك مصر | I172: 0257 | J172: بسيون
A173: 26303061600851 | B173: 3-مرتب تحويلات بنكية | D173: حافظ الدرينى ر | E173: 2586 | F173: حسن بسيونى حسن ابو طاحون | G173: 0098 | H173: بنك مصر | I173: 0257 | J173: بسيون
A174: 26009201600435 | B174: 3-مرتب تحويلات بنكية | D174: عيسوىفايد ث | E174: 3100 | F174: حسن محمد عبد الحى الحجار | G174: 0003 | H174: البنك الاهلي المصري | I174: 0378 | J174: بسيون
A175: 27810051600995 | B175: 3-مرتب تحويلات بنكية | D175: محمد كامل الجندى كفر عسكر ب | E175: 743 | F175: حسن محمد عبد الرؤف الكردى | G175: 0038 | H175: بنك التعمير و الاسكان | I175: 0048 | J175: الهرم
A176: 26309241601799 | B176: 3-مرتب تحويلات بنكية | D176: الشهيد حسن حجازى ب | E176: 2252 | F176: حسن محمد محمد حجازى | G176: 0003 | H176: البنك الاهلي المصري | I176: 0378 | J176: بسيون
A177: 26212281603839 | B177: 3-مرتب تحويلات بنكية | D177: قرنشو الفنية | E177: 2200 | F177: حسن محمود عبد الرحمن ابو الخير | G177: 0003 | H177: البنك الاهلي المصري | I177: 0378 | J177: بسيون
A178: 26802101601614 | B178: 3-مرتب تحويلات بنكية | D178: حصة ابار ع مشتركة | E178: 4551 | F178: حسونه حسين على الفقى | G178: 0003 | H178: البنك الاهلي المصري | I178: 0378 | J178: بسيون
A179: 26410301600919 | B179: 3-مرتب تحويلات بنكية | D179: الديوان | E179: 6030 | F179: حسين سعيد مكرم | G179: 0003 | H179: البنك الاهلي المصري | I179: 0378 | J179: بسيون
A180: 26011251602573 | B180: 3-مرتب تحويلات بنكية | D180: كتامة ث مشتركة | E180: 6536 | F180: حسين مصطفي ابراهيم الكردي | G180: 0004 | H180: بنك القاهرة | I180: 4150 | J180: سوق ناصر
A181: 26006301600379 | B181: 3-مرتب تحويلات بنكية | D181: كفر سالم ر | E181: 3244 | F181: حسينى احمد محمود الحسينى سالم | G181: 0003 | H181: البنك الاهلي المصري | I181: 0378 | J181: بسيون
A182: 26711131600978 | B182: 3-مرتب تحويلات بنكية | D182: عمر بن عبد العزيز ب | E182: 1367 | F182: حلمى أحمد عزام | G182: 0004 | H182: بنك القاهرة | I182: 4140 | J182: كفر الزيات
A183: 27001221601473 | B183: 3-مرتب تحويلات بنكية | D183: بسيون ث صناعى | E183: 5247 | F183: حلمى عبد الوهاب احمد الجارية | G183: 0003 | H183: البنك الاهلي المصري | I183: 0378 | J183: بسيون
A184: 26402091600691 | B184: 3-مرتب تحويلات بنكية | D184: كنيسة شبراطو ع | E184: 3138 | F184: حماد عبد الله حماد الشريف | G184: 1009 | H184: البنك الرئيسي للتنميه والائتمان الزراعى | I184: 0804 | J184: بسيون
A185: 27003070202213 | B185: 3-مرتب تحويلات بنكية | D185: صالحجر ب جديدة | E185: 4009 | F185: حمدى السيد عبد الفتاح السيد | G185: 0004 | H185: بنك القاهرة | I185: 4140 | J185: كفر الزيات
A186: 26811091600869 | B186: 3-مرتب تحويلات بنكية | D186: محمد كامل الجندى كفر عسكر ب | E186: 723 | F186: حمدية أحمد عبد الهادى شتا | G186: 0098 | H186: بنك مصر | I186: 0257 | J186: بسيون
A187: 27801241601573 | B187: 3-مرتب تحويلات بنكية | D187: مصطفى كامل بكفر نصير ب | E187: 1868 | F187: حمزة جلال علي ابو حمزة | G187: 0003 | H187: البنك الاهلي المصري | I187: 0378 | J187: بسيون | K187: 1604.3
A188: 26010011602758 | B188: 3-مرتب تحويلات بنكية | D188: قسم بسيون 1 | E188: 5326 | F188: حنا سعد صليب عبد الملاك | G188: 0005 | H188: بنك الإسكندرية | I188: 3003 | J188: فرع طنطــــا
A189: 26803111600728 | B189: 3-مرتب تحويلات بنكية | D189: مدرسة الجمهورية التجريبية | E189: 6404 | F189: حنان السيد حامد الخياط | G189: 0098 | H189: بنك مصر | I189: 0257 | J189: بسيون
A190: 26708291600906 | B190: 3-مرتب تحويلات بنكية | D190: كفر الدوار ب | E190: 1566 | F190: حنان زكريا عبد اللطيف السمدونى | G190: 0004 | H190: بنك القاهرة | I190: 4150 | J190: سوق ناصر | K190: 2455.7
A191: 27111271601644 | B191: 3-مرتب تحويلات بنكية | D191: مشال ب | E191: 1812 | F191: حنان عبد الحميد محمد البرلسى | G191: 0003 | H191: البنك الاهلي المصري | I191: 0378 | J191: بسيون
A192: 27208231500229 | B192: 3-مرتب تحويلات بنكية | D192: كفر الدوار ب | E192: 1560 | F192: حنان محمد إبراهيم أباظه | G192: 0098 | H192: بنك مصر | I192: 0257 | J192: بسيون
A193: 27612051601715 | B193: 3-مرتب تحويلات بنكية | D193: بسيون ث صناعى | E193: 501 | F193: خالد احمد فؤاد النحراوى | G193: 0098 | H193: بنك مصر | I193: 0257 | J193: بسيون
A194: 26510061900272 | B194: 3-مرتب تحويلات بنكية | D194: عيسوىفايد ث | E194: 1418 | F194: خالد الأباصيرى الحجار | G194: 0003 | H194: البنك الاهلي المصري | I194: 0378 | J194: بسيون
A195: 26609151600932 | B195: 3-مرتب تحويلات بنكية | D195: المستشار احمد عصمت ع | E195: 2426 | F195: خالد جمال الاحول | G195: 0003 | H195: البنك الاهلي المصري | I195: 0378 | J195: بسيون
A196: 27301031602931 | B196: 3-مرتب تحويلات بنكية | D196: الشهيد عبد المنعم رياض بكتامة | E196: 4440 | F196: خالد حمدى عيد محمد ابو عوض | G196: 0098 | H196: بنك مصر | I196: 0257 | J196: بسيون
A197: 26207231601394 | B197: 3-مرتب تحويلات بنكية | D197: السادات تجارية | E197: 5282 | F197: خالد عاطف حسين الشافعى | G197: 0098 | H197: بنك مصر | I197: 0257 | J197: بسيون
A198: 26710161600895 | B198: 3-مرتب تحويلات بنكية | D198: السادات تجارية | E198: 2461 | F198: خالد عطية عطوان الطوخى | G198: 0003 | H198: البنك الاهلي المصري | I198: 0378 | J198: بسيون
A199: 26705131601516 | B199: 3-مرتب تحويلات بنكية | D199: بسيون ث بنات | E199: 5612 | F199: خالد على رمضان على | G199: 0003 | H199: البنك الاهلي المصري | I199: 0378 | J199: بسيون
A200: 26505311601752 | B200: 3-مرتب تحويلات بنكية | D200: الشهيد جمال شتا ب | E200: 583 | F200: خيرى عبد الجليل يوسف ابو عامر | G200: 0003 | H200: البنك الاهلي المصري | I200: 0378 | J200: بسيون
... 542 more rows

Sheet Sheet4
A1: الرقم القومى | B1: نوع المدفوعه | C1: القطاع | D1: الإدارة | E1: رقم الموظف بجهته الأصلية | F1: الاسم | G1: كود البنك | H1: البنك | I1: كود الفرع | J1: الفرع | K1: المرتب
A2: 27101161603433 | B2: 3-مرتب تحويلات بنكية | D2: كفر جعفر ع بنات | E2: 1598 | F2: إبراهيم عبد الحميد احمد بريش | G2: 0003 | H2: البنك الاهلي المصري | I2: 0378 | J2: بسيون | K2: 0
A3: 26704151601231 | B3: 3-مرتب تحويلات بنكية | D3: بسيون ث صناعى | E3: 5896 | F3: أحمد الصاوى أبو اليزيد شواطه | G3: 0003 | H3: البنك الاهلي المصري | I3: 0378 | J3: بسيون | K3: 2537.6
A4: 27303031601473 | B4: 3-مرتب تحويلات بنكية | D4: الديوان | E4: 197 | F4: أحمد عبدة فراج فايد | G4: 0003 | H4: البنك الاهلي المصري | I4: 0378 | J4: بسيون | K4: 2568.05
A5: 26801291601597 | B5: 3-مرتب تحويلات بنكية | D5: عمر بن عبد العزيز ب | E5: 1362 | F5: أحمد محمد طه طه | G5: 0003 | H5: البنك الاهلي المصري | I5: 0378 | J5: بسيون
A6: 25905091600339 | B6: 3-مرتب تحويلات بنكية | D6: الشهيد ابراهيم صالح ع | E6: 1904 | F6: أحمد محمد عبد العزيز خاطر | G6: 0004 | H6: بنك القاهرة | I6: 4130 | J6: طنطا
A7: 26703261603054 | B7: 3-مرتب تحويلات بنكية | D7: عمر بن عبد العزيز ب | E7: 1370 | F7: إسماعيل إبراهيم قاقه | G7: 0005 | H7: بنك الإسكندرية | I7: 3012 | J7: فرع كفرالزيات
A8: 26605211601199 | B8: 3-مرتب تحويلات بنكية | D8: عمر بن عبد العزيز ب | E8: 1371 | F8: إسماعيل عبد الله عياد | G8: 1009 | H8: البنك الرئيسي للتنميه والائتمان الزراعى | I8: 0804 | J8: بسيون
A9: 26701151601959 | B9: 3-مرتب تحويلات بنكية | D9: صالحجر ع بنات | E9: 203 | F9: إسماعيل ناجى فايد | G9: 0003 | H9: البنك الاهلي المصري | I9: 0378 | J9: بسيون
A10: 27204201600975 | B10: 3-مرتب تحويلات بنكية | D10: كتامة ث تجارية | E10: 1479 | F10: أشرف ابو اليزيد قطب ابو طالب | G10: 0004 | H10: بنك القاهرة | I10: 4130 | J10: طنطا | K10: 2571.85
A11: 27102131602455 | B11: 3-مرتب تحويلات بنكية | D11: عبد اللطيف فايد بصالحجر ب | E11: 1298 | F11: أشرف عبد ه محمد عسكر | G11: 0003 | H11: البنك الاهلي المصري | I11: 0378 | J11: بسيون
A12: 27207231601703 | B12: 3-مرتب تحويلات بنكية | D12: مدرسة الجمهورية التجريبية | E12: 6510 | F12: إكرام محمود محمد بدرة | G12: 0098 | H12: بنك مصر | I12: 0216 | J12: طنطا
A13: 28210311601083 | B13: 3-مرتب تحويلات بنكية | D13: جناج ب الجديدة | E13: 960 | F13: أميرة أحمد عبداللطيف هنو | G13: 1009 | H13: البنك الرئيسي للتنميه والائتمان الزراعى | I13: 0804 | J13: بسيون
A14: 26710101601574 | B14: 3-مرتب تحويلات بنكية | D14: عبد اللطيف فايد بصالحجر ب | E14: 1297 | F14: أمين أحمد مصطفى عمرو | G14: 0003 | H14: البنك الاهلي المصري | I14: 0378 | J14: بسيون | K14: 2683.6
A15: 26007151500482 | B15: 3-مرتب تحويلات بنكية | D15: عبد النبى خمخم بسلامون ع مشترك | E15: 1125 | F15: أنوار جمال الدين عبد الرؤوف عتمان | G15: 0003 | H15: البنك الاهلي المصري | I15: 0378 | J15: بسيون
A16: 26102010201182 | B16: 3-مرتب تحويلات بنكية | D16: محمد حسنى مبارك ب | E16: 1740 | F16: إيمان محمد محمد الدقدوقى | G16: 0004 | H16: بنك القاهرة | I16: 4150 | J16: سوق ناصر
A17: 27702091601466 | B17: 3-مرتب تحويلات بنكية | D17: الشهيد حسن حجازى ب | E17: 2241 | F17: إيمان مصطفى راغب العسكرى | G17: 0003 | H17: البنك الاهلي المصري | I17: 0378 | J17: بسيون
A18: 27508091601457 | B18: 3-مرتب تحويلات بنكية | D18: بسيون ث صناعى | E18: 6435 | F18: ابراهيم ابراهيم احمد احمد الملاح | G18: 0003 | H18: البنك الاهلي المصري | I18: 0378 | J18: بسيون
A19: 26801041600536 | B19: 3-مرتب تحويلات بنكية | D19: قرنشو الفنية | E19: 2188 | F19: ابراهيم احمد ابراهيم وهبه | G19: 0003 | H19: البنك الاهلي المصري | I19: 0378 | J19: بسيون
A20: 27204081601298 | B20: 3-مرتب تحويلات بنكية | D20: كنيسة شبراطو ب | E20: 247 | F20: ابراهيم احمد عمار | G20: 0003 | H20: البنك الاهلي المصري | I20: 0378 | J20: بسيون
A21: 27008161600957 | B21: 3-مرتب تحويلات بنكية | D21: بسيون ث صناعى | E21: 5161 | F21: ابراهيم السيد سليمان يونس الديهى | G21: 0003 | H21: البنك الاهلي المصري | I21: 0378 | J21: بسيون
A22: 27008221600871 | B22: 3-مرتب تحويلات بنكية | D22: كفر جعفر ب ر | E22: 3368 | F22: ابراهيم حافظ محمد رميح | G22: 0004 | H22: بنك القاهرة | I22: 4140 | J22: كفر الزيات
A23: 26801161601633 | B23: 3-مرتب تحويلات بنكية | D23: ابو حمر ع مشتركة | E23: 6361 | F23: ابراهيم حسين محمد رحيم | G23: 0003 | H23: البنك الاهلي المصري | I23: 0378 | J23: بسيون
A24: 26312151601511 | B24: 3-مرتب تحويلات بنكية | D24: محمد رياض كفر الحمام ب | E24: 1779 | F24: ابراهيم سعد محمد زغلول | G24: 0003 | H24: البنك الاهلي المصري | I24: 0378 | J24: بسيون
A25: 26103051600454 | B25: 3-مرتب تحويلات بنكية | D25: كفر سليمان ب | E25: 4453 | F25: ابراهيم شعبان محمد ابو عرب | G25: 0003 | H25: البنك الاهلي المصري | I25: 0378 | J25: بسيون
A26: 26305101600975 | B26: 3-مرتب تحويلات بنكية | D26: الثورة ب | E26: 4871 | F26: ابراهيم عبد القادر سعد امبابى | G26: 0003 | H26: البنك الاهلي المصري | I26: 0378 | J26: بسيون
A27: 26810191600959 | B27: 3-مرتب تحويلات بنكية | D27: قرنشو ع مشتركة | E27: 6015 | F27: ابراهيم عبد المطلب قنديل | G27: 0004 | H27: بنك القاهرة | I27: 4150 | J27: سوق ناصر
A28: 27503171601316 | B28: 3-مرتب تحويلات بنكية | D28: عيسوىفايد ث | E28: 3351 | F28: ابراهيم عبد الواحد اسماعيل مقلاش | G28: 0003 | H28: البنك الاهلي المصري | I28: 0378 | J28: بسيون | K28: 2270.5
A29: 27106061601052 | B29: 3-مرتب تحويلات بنكية | D29: ناصر ث بنين | E29: 3851 | F29: ابراهيم على ابراهيم عيد | G29: 0003 | H29: البنك الاهلي المصري | I29: 0378 | J29: بسيون | K29: 2651.7
A30: 26101021600473 | B30: 3-مرتب تحويلات بنكية | D30: وحدة قرانشو ب | E30: 4478 | F30: ابراهيم مبروك بركة | G30: 0004 | H30: بنك القاهرة | I30: 4150 | J30: سوق ناصر
A31: 26308191602679 | B31: 3-مرتب تحويلات بنكية | D31: رجائى حتاتة ب | E31: 4254 | F31: ابراهيم محمد عبد الحليم الغايش | G31: 1009 | H31: البنك الرئيسي للتنميه والائتمان الزراعى | I31: 0804 | J31: بسيون
A32: 27207031601059 | B32: 3-مرتب تحويلات بنكية | D32: قسم بسيون 1 | E32: 2259 | F32: ابراهيم محمد كامل الجندى | G32: 0003 | H32: البنك الاهلي المصري | I32: 0378 | J32: بسيون
A33: 26908191601092 | B33: 3-مرتب تحويلات بنكية | D33: كفر جعفر ب ر | E33: 3369 | F33: ابراهيم مصطفى عبد الرحمن على | G33: 1009 | H33: البنك الرئيسي للتنميه والائتمان الزراعى | I33: 0804 | J33: بسيون
A34: 26112021600378 | B34: 3-مرتب تحويلات بنكية | D34: الحداد ع ت ا | E34: 6445 | F34: ابرهيم على بيومى بعيبر | G34: 0003 | H34: البنك الاهلي المصري | I34: 0378 | J34: بسيون
A35: 28401011619592 | B35: 3-مرتب تحويلات بنكية | D35: الديوان | E35: 2515 | F35: ابوزيد محمد ابو زيد محمد ملوة | G35: 0003 | H35: البنك الاهلي المصري | I35: 0378 | J35: بسيون | K35: 1180.35
A36: 26011191600347 | B36: 3-مرتب تحويلات بنكية | D36: الثورة ب | E36: 4860 | F36: احسان عبد المجيد محمد الحصرى | G36: 0003 | H36: البنك الاهلي المصري | I36: 0378 | J36: بسيون
A37: 27701021604739 | B37: 3-مرتب تحويلات بنكية | D37: طه حسين بالفرستق ب | E37: 4232 | F37: احمد اسماعيل احمد زلط | G37: 0004 | H37: بنك القاهرة | I37: 4140 | J37: كفر الزيات
A38: 25912031601979 | B38: 3-مرتب تحويلات بنكية | D38: الديوان | E38: 6462 | F38: احمد حسين محمد الحشاش | G38: 0003 | H38: البنك الاهلي المصري | I38: 0378 | J38: بسيون | K38: 2900.9
A39: 27304241601171 | B39: 3-مرتب تحويلات بنكية | D39: قرنشو ع مشتركة | E39: 6444 | F39: احمد ربيع احمد احمد البقرى | G39: 0003 | H39: البنك الاهلي المصري | I39: 0378 | J39: بسيون
A40: 26804061601279 | B40: 3-مرتب تحويلات بنكية | D40: الثورة ب | E40: 4885 | F40: احمد ربيع احمد محمد عبد الدايم | G40: 0003 | H40: البنك الاهلي المصري | I40: 0378 | J40: بسيون
A41: 26610031601437 | B41: 3-مرتب تحويلات بنكية | D41: جناج ب الجديدة | E41: 521 | F41: احمد رزق مبروك السوداني | G41: 0003 | H41: البنك الاهلي المصري | I41: 0378 | J41: بسيون
A42: 26604121601797 | B42: 3-مرتب تحويلات بنكية | D42: الديوان | E42: 11 | F42: احمد رمضا ن احمد الحداد | G42: 1009 | H42: البنك الرئيسي للتنميه والائتمان الزراعى | I42: 0804 | J42: بسيون | K42: 1886.2
A43: 26810301601115 | B43: 3-مرتب تحويلات بنكية | D43: بسيون ث صناعى | E43: 3725 | F43: احمد رمضان عبد السلام فلوص | G43: 0003 | H43: البنك الاهلي المصري | I43: 0378 | J43: بسيون
A44: 27109222800076 | B44: 3-مرتب تحويلات بنكية | D44: خالد ابن الوليد ع | E44: 5869 | F44: احمد سمير عبد الحافظ محمد | G44: 0038 | H44: بنك التعمير و الاسكان | I44: 0031 | J44: كفر الشيخ | K44: 1486.85
A45: 27411031601039 | B45: 3-مرتب تحويلات بنكية | D45: شبراتنا ت ا ع | E45: 5993 | F45: احمد عبد الحليم محمد سمك | G45: 0003 | H45: البنك الاهلي المصري | I45: 0378 | J45: بسيون
A46: 26207171600776 | B46: 3-مرتب تحويلات بنكية | D46: جناج ب الجديدة | E46: 524 | F46: احمد عبد الحميد صالح الفخرانى | G46: 0003 | H46: البنك الاهلي المصري | I46: 0378 | J46: بسيون
A47: 25901041601495 | B47: 3-مرتب تحويلات بنكية | D47: بسيون ث بنات | E47: 5583 | F47: احمد عبد العاطى احمد شهاب الدين | G47: 0003 | H47: البنك الاهلي المصري | I47: 0378 | J47: بسيون
A48: 26403121602054 | B48: 3-مرتب تحويلات بنكية | E48: 5794 | F48: احمد عبد اللطيف احمد ابو الخير | G48: 0003 | H48: البنك الاهلي المصري | I48: 0378 | J48: بسيون | K48: 1837.8
A49: 26604091601274 | B49: 3-مرتب تحويلات بنكية | D49: بار الحمام ب | E49: 2168 | F49: احمد عبد اللطيف احمد الأنصارى | G49: 0003 | H49: البنك الاهلي المصري | I49: 0378 | J49: بسيون
A50: 26711071603093 | B50: 3-مرتب تحويلات بنكية | D50: قرنشو الفنية | E50: 2186 | F50: احمد عبد المجيد ابو حطب | G50: 0003 | H50: البنك الاهلي المصري | I50: 0378 | J50: بسيون
A51: 26505301600553 | B51: 3-مرتب تحويلات بنكية | D51: بسيون ث صناعى | E51: 5230 | F51: احمد عبد المجيد احمد دغيم | G51: 0004 | H51: بنك القاهرة | I51: 4140 | J51: كفر الزيات
A52: 28001011611119 | B52: 3-مرتب تحويلات بنكية | D52: بسيون ث صناعى | E52: 5013 | F52: احمد عبد المقصود محمد بسيونى الجعيفى | G52: 0003 | H52: البنك الاهلي المصري | I52: 0378 | J52: بسيون
A53: 26404021601138 | B53: 3-مرتب تحويلات بنكية | D53: منشاة اليعقوبية ت ا ب | E53: 2610 | F53: احمد عبد الوهاب فريد ابو حمر | G53: 0003 | H53: البنك الاهلي المصري | I53: 0378 | J53: بسيون
A54: 27712011603035 | B54: 3-مرتب تحويلات بنكية | D54: عيسوىفايد ع | E54: 3337 | F54: احمد على عبد القادر الاعمى | G54: 1009 | H54: البنك الرئيسي للتنميه والائتمان الزراعى | I54: 0804 | J54: بسيون
A55: 26104201600314 | B55: 3-مرتب تحويلات بنكية | D55: كتامة ث مشتركة | E55: 5501 | F55: احمد على على ابو طالب | G55: 0003 | H55: البنك الاهلي المصري | I55: 0378 | J55: بسيون | K55: 2747.95
A56: 26105051601518 | B56: 3-مرتب تحويلات بنكية | D56: رجائى حتاتة ب | E56: 4251 | F56: احمد متولى بسيونى عبد الوهاب | G56: 0003 | H56: البنك الاهلي المصري | I56: 0378 | J56: بسيون
A57: 26506301600592 | B57: 3-مرتب تحويلات بنكية | D57: عزبة رزق ب | E57: 3935 | F57: احمد محمد شحاته غلاب | G57: 0004 | H57: بنك القاهرة | I57: 4130 | J57: طنطا
A58: 26002061600354 | B58: 3-مرتب تحويلات بنكية | D58: الشهيد عزت هلال ب | E58: 661 | F58: احمد محمد فتح الله فايد | G58: 0004 | H58: بنك القاهرة | I58: 4140 | J58: كفر الزيات
A59: 27209151600539 | B59: 3-مرتب تحويلات بنكية | D59: مصطفى كامل بكفر نصير ب | E59: 1861 | F59: احمد يوسف احمد | G59: 0003 | H59: البنك الاهلي المصري | I59: 0378 | J59: بسيون
A60: 28107011602546 | B60: 3-مرتب تحويلات بنكية | D60: صلاح سالم ب | E60: 4962 | F60: اسماء ابراهيم حسين عيد | G60: 0038 | H60: بنك التعمير و الاسكان | I60: 0031 | J60: كفر الشيخ
A61: 28903031600583 | B61: 3-مرتب تحويلات بنكية | D61: مصطفى قاسم ت ا | E61: 6310 | F61: اسماء حسانين عبدالمطلب | G61: 0038 | H61: بنك التعمير و الاسكان | I61: 0031 | J61: كفر الشيخ
A62: 25909221600331 | B62: 3-مرتب تحويلات بنكية | D62: عيسوىفايد ث | E62: 1433 | F62: اسماعيل ابراهيم البشة | G62: 0003 | H62: البنك الاهلي المصري | I62: 0378 | J62: بسيون | K62: 2500.6
A63: 26404241600914 | B63: 3-مرتب تحويلات بنكية | D63: مصطفى قاسم ت ا ع | E63: 863 | F63: اسماعيل حسين حسين الكردى | G63: 0004 | H63: بنك القاهرة | I63: 4130 | J63: طنطا | K63: 2454.8
A64: 26401271601959 | B64: 3-مرتب تحويلات بنكية | D64: الديوان | E64: 4979 | F64: اسماعيل رضوان رضوان محمد شنيشن | G64: 0098 | H64: بنك مصر | I64: 0257 | J64: بسيون
A65: 26102081500237 | B65: 3-مرتب تحويلات بنكية | D65: بسيون ث بنات | E65: 5585 | F65: اسماعيل طه قطب ابو على | G65: 1009 | H65: البنك الرئيسي للتنميه والائتمان الزراعى | I65: 0804 | J65: بسيون | K65: 2568.6
A66: 26008211601379 | B66: 3-مرتب تحويلات بنكية | D66: كفر نصير ع | E66: 1669 | F66: اسماعيل فتوح اسماعيل شعير | G66: 0098 | H66: بنك مصر | I66: 0257 | J66: بسيون
A67: 26808221601373 | B67: 3-مرتب تحويلات بنكية | D67: الكمال ب بقرنشو | E67: 748 | F67: اسماعيل محمد عبدالله الأقرع | G67: 0003 | H67: البنك الاهلي المصري | I67: 0378 | J67: بسيون | K67: 2487.5
A68: 27003201600929 | B68: 3-مرتب تحويلات بنكية | D68: الحداد ع ت ا | E68: 507 | F68: اسمهان على بعيبر | G68: 0003 | H68: البنك الاهلي المصري | I68: 0378 | J68: بسيون | K68: 2663.35
A69: 27302271601458 | B69: 3-مرتب تحويلات بنكية | D69: بسيون ث صناعى | E69: 5108 | F69: اشرف اسماعيل محمود محمد الدش | G69: 0005 | H69: بنك الإسكندرية | I69: 3009 | J69: فرع شبين الكوم
A70: 27309291601378 | B70: 3-مرتب تحويلات بنكية | D70: خليفة عيسى بالفرستق ب | E70: 2827 | F70: اشرف السيد اسماعيل السيد | G70: 1009 | H70: البنك الرئيسي للتنميه والائتمان الزراعى | I70: 0804 | J70: بسيون
A71: 27210091500759 | B71: 3-مرتب تحويلات بنكية | D71: جناج ب الجديدة | E71: 528 | F71: اشرف عبد المقصود جبرئيل الدسوقى | G71: 0003 | H71: البنك الاهلي المصري | I71: 0378 | J71: بسيون
A72: 28401111601771 | B72: 3-مرتب تحويلات بنكية | D72: صفية الصناعية بنات | E72: 4507 | F72: اشرف محمد عبد الله الوجاب | G72: 0003 | H72: البنك الاهلي المصري | I72: 0378 | J72: بسيون
A73: 26309031602261 | B73: 3-مرتب تحويلات بنكية | D73: نهضة مصر بابو حمر ب | E73: 6374 | F73: افراج مصطفى عبد المنعم الدقاق | G73: 0098 | H73: بنك مصر | I73: 0257 | J73: بسيون
A74: 27311011602301 | B74: 3-مرتب تحويلات بنكية | D74: التحرير ب | E74: 5454 | F74: اكرام سعد الدين بسيونى الدخاخنى | G74: 0098 | H74: بنك مصر | I74: 0257 | J74: بسيون
A75: 26409271600953 | B75: 3-مرتب تحويلات بنكية | D75: عبد النبى خمخم بسلامون ب | E75: 6455 | F75: البدرى على محمد ابوزيد | G75: 0003 | H75: البنك الاهلي المصري | I75: 0378 | J75: بسيون
A76: 26811061601135 | B76: 3-مرتب تحويلات بنكية | D76: كتامة ث مشتركة | E76: 5500 | F76: السباعى مصطفى السباعى الجندى | G76: 0003 | H76: البنك الاهلي المصري | I76: 0378 | J76: بسيون | K76: 2968.25
A77: 28401011522173 | B77: 3-مرتب تحويلات بنكية | D77: جناج ب الجديدة | E77: 6019 | F77: السعيد السعيد عامر | G77: 0003 | H77: البنك الاهلي المصري | I77: 0378 | J77: بسيون
A78: 26402201601311 | B78: 3-مرتب تحويلات بنكية | D78: الديوان | E78: 5362 | F78: السيد ابراهيم احمد الملاح | G78: 0003 | H78: البنك الاهلي المصري | I78: 0378 | J78: بسيون | K78: 2392.5
A79: 26409221601193 | B79: 3-مرتب تحويلات بنكية | D79: كفر الدوار ب | E79: 4562 | F79: السيد احمد السيد النحراوى | G79: 0003 | H79: البنك الاهلي المصري | I79: 0378 | J79: بسيون
A80: 26112011602291 | B80: 3-مرتب تحويلات بنكية | D80: خالد ابن الوليد ت ا ب | E80: 3658 | F80: السيد احمد حتاتة | G80: 0003 | H80: البنك الاهلي المصري | I80: 0378 | J80: بسيون
A81: 26412091601456 | B81: 3-مرتب تحويلات بنكية | D81: كفر جعفر ع مهنى | E81: 3483 | F81: السيد احمد متولى الخيوطى | G81: 1009 | H81: البنك الرئيسي للتنميه والائتمان الزراعى | I81: 0804 | J81: بسيون | K81: 2093.65
A82: 26805101600978 | B82: 3-مرتب تحويلات بنكية | D82: صالحجر ب جديدة | E82: 4012 | F82: السيد اسماعيل السيد زغلول | G82: 0003 | H82: البنك الاهلي المصري | I82: 0378 | J82: بسيون
A83: 27910211601556 | B83: 3-مرتب تحويلات بنكية | D83: عوض العيسوى ب | E83: 2260 | F83: السيد رمضان اسماعيل غباشى | G83: 0098 | H83: بنك مصر | I83: 0257 | J83: بسيون
A84: 25905111601736 | B84: 3-مرتب تحويلات بنكية | D84: الشهيد عبد المنعم رياض بكتامة | E84: 4434 | F84: السيد عبد العظيم احمد السعودى | G84: 0098 | H84: بنك مصر | I84: 0216 | J84: طنطا
A85: 26511271601096 | B85: 3-مرتب تحويلات بنكية | D85: صفية الصناعية بنات | E85: 5061 | F85: السيد عبد المنعم عبد السلام النحراوى | G85: 0003 | H85: البنك الاهلي المصري | I85: 0378 | J85: بسيون
A86: 26503301601212 | B86: 3-مرتب تحويلات بنكية | D86: عيسوىفايد ع | E86: 3348 | F86: السيد عبد النبى عبد المجيد مقلاش | G86: 0003 | H86: البنك الاهلي المصري | I86: 0378 | J86: بسيون
A87: 28210031601851 | B87: 3-مرتب تحويلات بنكية | D87: السادات تجارية | E87: 5279 | F87: السيد محمد اسماعيل حسين زلط | G87: 0003 | H87: البنك الاهلي المصري | I87: 0378 | J87: بسيون
A88: 26011031602157 | B88: 3-مرتب تحويلات بنكية | D88: الديوان | E88: 5357 | F88: السيد مساعد على ملا | G88: 0098 | H88: بنك مصر | I88: 0257 | J88: بسيون
A89: 26105111600311 | B89: 3-مرتب تحويلات بنكية | D89: جناج ب الجديدة | E89: 523 | F89: الشافعي راغب محمود البربري | G89: 0003 | H89: البنك الاهلي المصري | I89: 0378 | J89: بسيون
A90: 26306231600817 | B90: 3-مرتب تحويلات بنكية | D90: كفر سالم ت ا ب | E90: 2946 | F90: الشحات السيد خطاب خطاب | G90: 0003 | H90: البنك الاهلي المصري | I90: 0378 | J90: بسيون
A91: 26611051600972 | B91: 3-مرتب تحويلات بنكية | D91: مصطفى كامل بكفر نصير ب | E91: 1862 | F91: الشوادفي محمد راغب عبدالبر | G91: 0098 | H91: بنك مصر | I91: 0257 | J91: بسيون
A92: 26404261601054 | B92: 3-مرتب تحويلات بنكية | D92: بسيون ث صناعى | E92: 4277 | F92: الصاوى شعبان الصاوى ابورواش | G92: 1009 | H92: البنك الرئيسي للتنميه والائتمان الزراعى | I92: 0804 | J92: بسيون
A93: 26907271600279 | B93: 3-مرتب تحويلات بنكية | D93: السادات تجارية | E93: 4630 | F93: الهامى محمد فتوح سليم | G93: 0038 | H93: بنك التعمير و الاسكان | I93: 0031 | J93: كفر الشيخ
A94: 27104101601899 | B94: 3-مرتب تحويلات بنكية | D94: شبراتنا ت ا | E94: 6367 | F94: الوردانى سعد محمد الوردانى | G94: 1009 | H94: البنك الرئيسي للتنميه والائتمان الزراعى | I94: 0804 | J94: بسيون
A95: 27003131500808 | B95: 3-مرتب تحويلات بنكية | D95: رجائى حتاتة ب | E95: 6199 | F95: امل انور محمود عبد ربه | G95: 0003 | H95: البنك الاهلي المصري | I95: 0378 | J95: بسيون
A96: 26804071601242 | B96: 3-مرتب تحويلات بنكية | D96: الثورة ب | E96: 4850 | F96: اميمة محمد سيد احمد عبد البر | G96: 0003 | H96: البنك الاهلي المصري | I96: 0378 | J96: بسيون
A97: 26912271601643 | B97: 3-مرتب تحويلات بنكية | D97: صلاح سالم ب | E97: 4748 | F97: اميمة محمود محمد جاد الله رجب | G97: 0003 | H97: البنك الاهلي المصري | I97: 0378 | J97: بسيون
A98: 26311041601241 | B98: 3-مرتب تحويلات بنكية | D98: السادات تجارية | E98: 4641 | F98: امينة بد المنعم محمود سليمان | G98: 0003 | H98: البنك الاهلي المصري | I98: 0378 | J98: بسيون
A99: 26309021600724 | B99: 3-مرتب تحويلات بنكية | D99: الديوان | E99: 6432 | F99: امينه صلاح كيلانى كيلانى | G99: 0003 | H99: البنك الاهلي المصري | I99: 0378 | J99: بسيون | K99: 2774.05
A100: 26408071600626 | B100: 3-مرتب تحويلات بنكية | D100: قسم بسيون 2 | E100: 6734 | F100: امينه قطب احمد البريه | G100: 0003 | H100: البنك الاهلي المصري | I100: 0378 | J100: بسيون
A101: 26112091600383 | B101: 3-مرتب تحويلات بنكية | D101: كفر سليمان ب | E101: 5808 | F101: امينه محمد ابراهيم السيسى | G101: 0003 | H101: البنك الاهلي المصري | I101: 0378 | J101: بسيون
A102: 27410051601209 | B102: 3-مرتب تحويلات بنكية | D102: الفرستق ع مشتركة | E102: 6456 | F102: انتصاراحمد السيد عبد القادر | G102: 0003 | H102: البنك الاهلي المصري | I102: 0378 | J102: بسيون
A103: 27403061601154 | B103: 3-مرتب تحويلات بنكية | D103: كنيسة شبراطو ع | E103: 1699 | F103: انور عبدالقوى رحيم جادالله | G103: 1009 | H103: البنك الرئيسي للتنميه والائتمان الزراعى | I103: 0804 | J103: بسيون
A104: 27110071600892 | B104: 3-مرتب تحويلات بنكية | D104: كتامة ث تجارية | E104: 5288 | F104: انور محمد احمد ابو يوسف | G104: 0003 | H104: البنك الاهلي المصري | I104: 0378 | J104: بسيون
A105: 26711081601218 | B105: 3-مرتب تحويلات بنكية | D105: صلاح حتاتة ع | E105: 1243 | F105: انور محمود محمد احمد طه | G105: 0003 | H105: البنك الاهلي المصري | I105: 0378 | J105: بسيون
A106: 28910231602242 | B106: 3-مرتب تحويلات بنكية | D106: حلمى انيس ت ا | E106: 5918 | F106: اية ابراهيم عبد الدايم | G106: 0003 | H106: البنك الاهلي المصري | I106: 0380 | J106: المحلة الكبرى
A107: 27601041602541 | B107: 3-مرتب تحويلات بنكية | D107: ناصر ث بنين | E107: 3803 | F107: ايماان بسيونى احمد عوض | G107: 0003 | H107: البنك الاهلي المصري | I107: 0378 | J107: بسيون | K107: 1909.9
A108: 27201101600529 | B108: 3-مرتب تحويلات بنكية | D108: الديوان | E108: 2102 | F108: ايمان ابراهيم محمد الدهبى | G108: 0098 | H108: بنك مصر | I108: 0257 | J108: بسيون
A109: 28410301600983 | B109: 3-مرتب تحويلات بنكية | D109: صلاح سالم ب | E109: 829 | F109: ايمان عبد المعطى حشاد | G109: 0003 | H109: البنك الاهلي المصري | I109: 0378 | J109: بسيون
A110: 26401281600047 | B110: 3-مرتب تحويلات بنكية | D110: بسيون ث صناعى | E110: 5022 | F110: ايمان فهمى رضوان يونس | G110: 0003 | H110: البنك الاهلي المصري | I110: 0378 | J110: بسيون
A111: 27907111601302 | B111: 3-مرتب تحويلات بنكية | D111: رجائى حتاتة ب | E111: 5672 | F111: ايمان ماهر عبد الرحيم عطا | G111: 0003 | H111: البنك الاهلي المصري | I111: 0378 | J111: بسيون
A112: 27404090201544 | B112: 3-مرتب تحويلات بنكية | D112: الفرستق ع مشتركة | E112: 945 | F112: ايمان محروس السيد ايوب | G112: 0003 | H112: البنك الاهلي المصري | I112: 0378 | J112: بسيون
A113: 26310031600984 | B113: 3-مرتب تحويلات بنكية | D113: بسيون ع بنات | E113: 885 | F113: ايمان محمد حلمى محمد وفا | G113: 0003 | H113: البنك الاهلي المصري | I113: 0378 | J113: بسيون | K113: 2629.45
A114: 28303121601727 | B114: 3-مرتب تحويلات بنكية | D114: عزبة رزق ب | E114: 3949 | F114: ايمان نصحى ابو اليزيد محمد المغينى | G114: 0038 | H114: بنك التعمير و الاسكان | I114: 0031 | J114: كفر الشيخ
A115: 26805151601479 | B115: 3-مرتب تحويلات بنكية | D115: ميت شريف ث | E115: 3848 | F115: ايمن انصارى محمد السخاوى | G115: 0003 | H115: البنك الاهلي المصري | I115: 0378 | J115: بسيون | K115: 2853.55
A116: 26409191601118 | B116: 3-مرتب تحويلات بنكية | D116: نجريج ب ت ا | E116: 3218 | F116: ايمن بسيونى محمد عثمان | G116: 0098 | H116: بنك مصر | I116: 0257 | J116: بسيون
A117: 27112271601993 | B117: 3-مرتب تحويلات بنكية | D117: الديوان | E117: 3137 | F117: ايمن محمد عبد الرسول احمد فايد | G117: 0098 | H117: بنك مصر | I117: 0257 | J117: بسيون
A118: 27508011601061 | B118: 3-مرتب تحويلات بنكية | D118: على بن ابى طالب المهنى ع | E118: 2368 | F118: ايناس عزت توفيق بدوى | G118: 0098 | H118: بنك مصر | I118: 0257 | J118: بسيون
A119: 28709051602565 | B119: 3-مرتب تحويلات بنكية | D119: الامام الشافعى بقرنشو ب | E119: 6383 | F119: ايناس محمد زكى جبر | G119: 0003 | H119: البنك الاهلي المصري | I119: 0378 | J119: بسيون | K119: 1561.7
A120: 28112071601119 | B120: 3-مرتب تحويلات بنكية | D120: خالد ابن الوليد ت ا ب | E120: 6378 | F120: ايهاب محمود على الضو | G120: 0003 | H120: البنك الاهلي المصري | I120: 0378 | J120: بسيون
A121: 27205100101095 | B121: 3-مرتب تحويلات بنكية | D121: كفر جعفر ب ر | E121: 6540 | F121: ايهاب نصر عبدالنبى | G121: 0004 | H121: بنك القاهرة | I121: 2010 | J121: سيزوستريس
A122: 26406031600884 | B122: 3-مرتب تحويلات بنكية | D122: قسم بسيون 2 | E122: 6725 | F122: بثينه عبد الرءوف محمد داود | G122: 1009 | H122: البنك الرئيسي للتنميه والائتمان الزراعى | I122: 0804 | J122: بسيون
A123: 26304031600691 | B123: 3-مرتب تحويلات بنكية | D123: كتامة ث تجارية | E123: 1483 | F123: بدر عبد القوى عبدالحميد حميده | G123: 0003 | H123: البنك الاهلي المصري | I123: 0378 | J123: بسيون
A124: 26212121603565 | B124: 3-مرتب تحويلات بنكية | D124: قسم بسيون 2 | E124: 6772 | F124: بديعه مصطفى عبد الحليم المراسى | G124: 0003 | H124: البنك الاهلي المصري | I124: 0378 | J124: بسيون
A125: 27904171600993 | B125: 3-مرتب تحويلات بنكية | D125: بسيون ث صناعى | E125: 5226 | F125: بسيونى عبد المجيد بسيونى حسنين | G125: 0003 | H125: البنك الاهلي المصري | I125: 0378 | J125: بسيون
A126: 26311291600593 | B126: 3-مرتب تحويلات بنكية | D126: الشهيد ابراهيم صالح ع | E126: 1992 | F126: بسيونى محمد السعدنى | G126: 1009 | H126: البنك الرئيسي للتنميه والائتمان الزراعى | I126: 0804 | J126: بسيون
A127: 27512011502108 | B127: 3-مرتب تحويلات بنكية | D127: كفر الدوار ب | E127: 529 | F127: بسيونية محمد احمد الحبشى | G127: 0003 | H127: البنك الاهلي المصري | I127: 0378 | J127: بسيون
A128: 27503011602634 | B128: 3-مرتب تحويلات بنكية | D128: صلاح حتاتة ع | E128: 6446 | F128: تامررجب شلبى الاشقر | G128: 0003 | H128: البنك الاهلي المصري | I128: 0435 | J128: قطور
A129: 26105291601655 | B129: 3-مرتب تحويلات بنكية | D129: كفر سالم ر | E129: 3237 | F129: تكال على عبد اللطيف ماضى | G129: 0003 | H129: البنك الاهلي المصري | I129: 0378 | J129: بسيون
A130: 26408021602148 | B130: 3-مرتب تحويلات بنكية | D130: الحداد ع ت ا | E130: 516 | F130: ثناء عبدالمنعم صقر | G130: 0003 | H130: البنك الاهلي المصري | I130: 0378 | J130: بسيون
A131: 28709031601805 | B131: 3-مرتب تحويلات بنكية | D131: محمد حسنى مبارك ب | E131: 5738 | F131: ثناء على محمد صالح | G131: 0003 | H131: البنك الاهلي المصري | I131: 0378 | J131: بسيون
A132: 26011271602138 | B132: 3-مرتب تحويلات بنكية | D132: عبد النبى خمخم بسلامون ع مشترك | E132: 1102 | F132: جابر السيد مبروك عوض | G132: 0003 | H132: البنك الاهلي المصري | I132: 0378 | J132: بسيون | K132: 2935.95
A133: 27010191601235 | B133: 3-مرتب تحويلات بنكية | D133: بسيون ث صناعى | E133: 6119 | F133: جابر حامد حامد الاشعل | G133: 0003 | H133: البنك الاهلي المصري | I133: 0378 | J133: بسيون
A134: 26302241600712 | B134: 3-مرتب تحويلات بنكية | D134: عبد النبى خمخم بسلامون ر | E134: 146 | F134: جبر السيد مبروك عوض | G134: 0003 | H134: البنك الاهلي المصري | I134: 0378 | J134: بسيون
A135: 25911041601555 | B135: 3-مرتب تحويلات بنكية | D135: عزبة ناشد ب | E135: 1355 | F135: جلال عبد العاطى حميدة | G135: 0098 | H135: بنك مصر | I135: 0257 | J135: بسيون
A136: 26312101601731 | B136: 3-مرتب تحويلات بنكية | D136: بسيون ث صناعى | E136: 5017 | F136: جلال عبد المعطى حسن الحداد | G136: 0003 | H136: البنك الاهلي المصري | I136: 0378 | J136: بسيون
A137: 26101181601999 | B137: 3-مرتب تحويلات بنكية | D137: الديوان | E137: 4978 | F137: جمال الدين نصر شعبان الطويل | G137: 0098 | H137: بنك مصر | I137: 0257 | J137: بسيون
A138: 26312211601698 | B138: 3-مرتب تحويلات بنكية | D138: السادات تجارية | E138: 4649 | F138: جمال السيد بسيونى عيد | G138: 0003 | H138: البنك الاهلي المصري | I138: 0378 | J138: بسيون
A139: 26706121601174 | B139: 3-مرتب تحويلات بنكية | D139: بسيون ث صناعى | E139: 6170 | F139: جمال السيد محمد ابو المجد | G139: 0003 | H139: البنك الاهلي المصري | I139: 0378 | J139: بسيون
A140: 26212171603477 | B140: 3-مرتب تحويلات بنكية | D140: صالحجر ع بنات | E140: 191 | F140: جمال حسن غانم | G140: 0003 | H140: البنك الاهلي المصري | I140: 0378 | J140: بسيون
A141: 26910271601713 | B141: 3-مرتب تحويلات بنكية | D141: ابو حمر ت ا ب | E141: 6008 | F141: جمال رضوان عبد العزيز الصعيدى | G141: 0098 | H141: بنك مصر | I141: 0257 | J141: بسيون
A142: 26311251601074 | B142: 3-مرتب تحويلات بنكية | D142: كفر نصير ع | E142: 1667 | F142: جمال على مرسى ابراهيم | G142: 1009 | H142: البنك الرئيسي للتنميه والائتمان الزراعى | I142: 0804 | J142: بسيون
A143: 26511251801196 | B143: 3-مرتب تحويلات بنكية | D143: الديوان | E143: 4071 | F143: جمال محمد خليل محمد | G143: 0003 | H143: البنك الاهلي المصري | I143: 0378 | J143: بسيون | K143: 2080.95
A144: 26207231601556 | B144: 3-مرتب تحويلات بنكية | D144: الشهيد جمال شتا ع | E144: 611 | F144: جمال محمد عبده ابو شتيه | G144: 0003 | H144: البنك الاهلي المصري | I144: 0378 | J144: بسيون
A145: 26403191600849 | B145: 3-مرتب تحويلات بنكية | D145: خليفة عيسى بالفرستق ب | E145: 639 | F145: جمالات محمد الحفناوى | G145: 0003 | H145: البنك الاهلي المصري | I145: 0378 | J145: بسيون
A146: 26803041601012 | B146: 3-مرتب تحويلات بنكية | D146: كتامة ث مشتركة | E146: 1541 | F146: جمعة محمد الجمل | G146: 0003 | H146: البنك الاهلي المصري | I146: 0378 | J146: بسيون | K146: 3117.25
A147: 26508211600952 | B147: 3-مرتب تحويلات بنكية | D147: الشهيد حسن حجازى ب | E147: 6422 | F147: جمعه حسن رجب الصياد | G147: 0098 | H147: بنك مصر | I147: 0257 | J147: بسيون
A148: 26311251600892 | B148: 3-مرتب تحويلات بنكية | D148: ابو حمر ت ا ب | E148: 5991 | F148: جمعه حسين مصطفى الشامى | G148: 0003 | H148: البنك الاهلي المصري | I148: 0378 | J148: بسيون
A149: 26205261600659 | B149: 3-مرتب تحويلات بنكية | D149: كفر سالم ت ا ب | E149: 2941 | F149: جمعه عبد البسيط السلهوبى | G149: 0004 | H149: بنك القاهرة | I149: 4130 | J149: طنطا
A150: 26410071600965 | B150: 3-مرتب تحويلات بنكية | D150: ابو حمر ع ت ا | E150: 413 | F150: جملات ابوالعنين محمود عيد | G150: 1009 | H150: البنك الرئيسي للتنميه والائتمان الزراعى | I150: 0804 | J150: بسيون
A151: 27106121601138 | B151: 3-مرتب تحويلات بنكية | D151: عزبة ناشد ب | E151: 1343 | F151: جميل كامل عبد السلام | G151: 0003 | H151: البنك الاهلي المصري | I151: 0378 | J151: بسيون
A152: 26310191601103 | B152: 3-مرتب تحويلات بنكية | D152: صلاح سالم ب | E152: 4701 | F152: جميلة عبد الحميد محمد الصعيدى | G152: 0098 | H152: بنك مصر | I152: 0257 | J152: بسيون
A153: 27508191600202 | B153: 3-مرتب تحويلات بنكية | D153: بسيون ع بنات | E153: 891 | F153: جيرمين حسنى محمود البدرى | G153: 0003 | H153: البنك الاهلي المصري | I153: 0379 | J153: المعتصم بطنطا
A154: 26602181600363 | B154: 3-مرتب تحويلات بنكية | D154: بسيون ث بنات | E154: 5558 | F154: جيهان بدوى كامل بدوى | G154: 0003 | H154: البنك الاهلي المصري | I154: 0378 | J154: بسيون | K154: 3274.6
A155: 27508041601243 | B155: 3-مرتب تحويلات بنكية | D155: كفر جعفر ب ر | E155: 3375 | F155: جيهان نبيل احمد السلماوى | G155: 0003 | H155: البنك الاهلي المصري | I155: 0378 | J155: بسيون
A156: 26811021600713 | B156: 3-مرتب تحويلات بنكية | D156: مشال ب | E156: 2051 | F156: حاتم بدير محمد العدوى | G156: 0003 | H156: البنك الاهلي المصري | I156: 0378 | J156: بسيون
A157: 26006291600219 | B157: 3-مرتب تحويلات بنكية | D157: جناج ب الجديدة | E157: 2883 | F157: حامد محمد الفقى | G157: 0003 | H157: البنك الاهلي المصري | I157: 0378 | J157: بسيون
A158: 26901181602932 | B158: 3-مرتب تحويلات بنكية | D158: الثورة ب | E158: 3850 | F158: حجبر مصطفى احمد مصطفى الحريرى | G158: 0003 | H158: البنك الاهلي المصري | I158: 0378 | J158: بسيون
A159: 27406021601398 | B159: 3-مرتب تحويلات بنكية | D159: جناج ع مشتركة | E159: 6453 | F159: حسام الدين على على السمدونى | G159: 0003 | H159: البنك الاهلي المصري | I159: 0378 | J159: بسيون
A160: 28111281601271 | B160: 3-مرتب تحويلات بنكية | D160: صلاح سالم ب | E160: 6454 | F160: حسام محمد محمود الحصرى | G160: 0003 | H160: البنك الاهلي المصري | I160: 0378 | J160: بسيون
A161: 27905171600035 | B161: 3-مرتب تحويلات بنكية | D161: كتامة ب مشتركة | E161: 2281 | F161: حسانين عبد العزيز حسانين سلامة | G161: 0003 | H161: البنك الاهلي المصري | I161: 0378 | J161: بسيون
A162: 26804251601194 | B162: 3-مرتب تحويلات بنكية | D162: عبد النبى خمخم بسلامون ر | E162: 139 | F162: حسن احمد احمد باشا | G162: 0003 | H162: البنك الاهلي المصري | I162: 0378 | J162: بسيون
A163: 26007111600093 | B163: 3-مرتب تحويلات بنكية | D163: الديوان | E163: 4956 | F163: حسن السيد السيد عشرة | G163: 0098 | H163: بنك مصر | I163: 0257 | J163: بسيون | K163: 3365.3
A164: 26303061600851 | B164: 3-مرتب تحويلات بنكية | D164: حافظ الدرينى ر | E164: 2586 | F164: حسن بسيونى حسن ابو طاحون | G164: 0098 | H164: بنك مصر | I164: 0257 | J164: بسيون
A165: 26009201600435 | B165: 3-مرتب تحويلات بنكية | D165: عيسوىفايد ث | E165: 3100 | F165: حسن محمد عبد الحى الحجار | G165: 0003 | H165: البنك الاهلي المصري | I165: 0378 | J165: بسيون | K165: 1902.5
A166: 27810051600995 | B166: 3-مرتب تحويلات بنكية | D166: محمد كامل الجندى كفر عسكر ب | E166: 743 | F166: حسن محمد عبد الرؤف الكردى | G166: 0038 | H166: بنك التعمير و الاسكان | I166: 0048 | J166: الهرم
A167: 26309241601799 | B167: 3-مرتب تحويلات بنكية | D167: الشهيد حسن حجازى ب | E167: 2252 | F167: حسن محمد محمد حجازى | G167: 0003 | H167: البنك الاهلي المصري | I167: 0378 | J167: بسيون
A168: 26212281603839 | B168: 3-مرتب تحويلات بنكية | D168: قرنشو الفنية | E168: 2200 | F168: حسن محمود عبد الرحمن ابو الخير | G168: 0003 | H168: البنك الاهلي المصري | I168: 0378 | J168: بسيون
A169: 26802101601614 | B169: 3-مرتب تحويلات بنكية | D169: حصة ابار ع مشتركة | E169: 4551 | F169: حسونه حسين على الفقى | G169: 0003 | H169: البنك الاهلي المصري | I169: 0378 | J169: بسيون
A170: 26410301600919 | B170: 3-مرتب تحويلات بنكية | D170: الديوان | E170: 6030 | F170: حسين سعيد مكرم | G170: 0003 | H170: البنك الاهلي المصري | I170: 0378 | J170: بسيون | K170: 2046.75
A171: 26011251602573 | B171: 3-مرتب تحويلات بنكية | D171: كتامة ث مشتركة | E171: 6536 | F171: حسين مصطفي ابراهيم الكردي | G171: 0004 | H171: بنك القاهرة | I171: 4150 | J171: سوق ناصر | K171: 2912.55
A172: 26006301600379 | B172: 3-مرتب تحويلات بنكية | D172: كفر سالم ر | E172: 3244 | F172: حسينى احمد محمود الحسينى سالم | G172: 0003 | H172: البنك الاهلي المصري | I172: 0378 | J172: بسيون
A173: 26711131600978 | B173: 3-مرتب تحويلات بنكية | D173: عمر بن عبد العزيز ب | E173: 1367 | F173: حلمى أحمد عزام | G173: 0004 | H173: بنك القاهرة | I173: 4140 | J173: كفر الزيات
A174: 27001221601473 | B174: 3-مرتب تحويلات بنكية | D174: بسيون ث صناعى | E174: 5247 | F174: حلمى عبد الوهاب احمد الجارية | G174: 0003 | H174: البنك الاهلي المصري | I174: 0378 | J174: بسيون
A175: 26402091600691 | B175: 3-مرتب تحويلات بنكية | D175: كنيسة شبراطو ع | E175: 3138 | F175: حماد عبد الله حماد الشريف | G175: 1009 | H175: البنك الرئيسي للتنميه والائتمان الزراعى | I175: 0804 | J175: بسيون
A176: 27003070202213 | B176: 3-مرتب تحويلات بنكية | D176: صالحجر ب جديدة | E176: 4009 | F176: حمدى السيد عبد الفتاح السيد | G176: 0004 | H176: بنك القاهرة | I176: 4140 | J176: كفر الزيات
A177: 26811091600869 | B177: 3-مرتب تحويلات بنكية | D177: محمد كامل الجندى كفر عسكر ب | E177: 723 | F177: حمدية أحمد عبد الهادى شتا | G177: 0098 | H177: بنك مصر | I177: 0257 | J177: بسيون
A178: 27801241601573 | B178: 3-مرتب تحويلات بنكية | D178: مصطفى كامل بكفر نصير ب | E178: 1868 | F178: حمزة جلال علي ابو حمزة | G178: 0003 | H178: البنك الاهلي المصري | I178: 0378 | J178: بسيون
A179: 26010011602758 | B179: 3-مرتب تحويلات بنكية | D179: قسم بسيون 1 | E179: 5326 | F179: حنا سعد صليب عبد الملاك | G179: 0005 | H179: بنك الإسكندرية | I179: 3003 | J179: فرع طنطــــا
A180: 26803111600728 | B180: 3-مرتب تحويلات بنكية | D180: مدرسة الجمهورية التجريبية | E180: 6404 | F180: حنان السيد حامد الخياط | G180: 0098 | H180: بنك مصر | I180: 0257 | J180: بسيون
A181: 26708291600906 | B181: 3-مرتب تحويلات بنكية | D181: كفر الدوار ب | E181: 1566 | F181: حنان زكريا عبد اللطيف السمدونى | G181: 0004 | H181: بنك القاهرة | I181: 4150 | J181: سوق ناصر
A182: 27111271601644 | B182: 3-مرتب تحويلات بنكية | D182: مشال ب | E182: 1812 | F182: حنان عبد الحميد محمد البرلسى | G182: 0003 | H182: البنك الاهلي المصري | I182: 0378 | J182: بسيون | K182: 2598.7
A183: 27208231500229 | B183: 3-مرتب تحويلات بنكية | D183: كفر الدوار ب | E183: 1560 | F183: حنان محمد إبراهيم أباظه | G183: 0098 | H183: بنك مصر | I183: 0257 | J183: بسيون
A184: 27612051601715 | B184: 3-مرتب تحويلات بنكية | D184: بسيون ث صناعى | E184: 501 | F184: خالد احمد فؤاد النحراوى | G184: 0098 | H184: بنك مصر | I184: 0257 | J184: بسيون
A185: 26510061900272 | B185: 3-مرتب تحويلات بنكية | D185: عيسوىفايد ث | E185: 1418 | F185: خالد الأباصيرى الحجار | G185: 0003 | H185: البنك الاهلي المصري | I185: 0378 | J185: بسيون
A186: 26609151600932 | B186: 3-مرتب تحويلات بنكية | D186: المستشار احمد عصمت ع | E186: 2426 | F186: خالد جمال الاحول | G186: 0003 | H186: البنك الاهلي المصري | I186: 0378 | J186: بسيون
A187: 27301031602931 | B187: 3-مرتب تحويلات بنكية | D187: الشهيد عبد المنعم رياض بكتامة | E187: 4440 | F187: خالد حمدى عيد محمد ابو عوض | G187: 0098 | H187: بنك مصر | I187: 0257 | J187: بسيون
A188: 26207231601394 | B188: 3-مرتب تحويلات بنكية | D188: السادات تجارية | E188: 5282 | F188: خالد عاطف حسين الشافعى | G188: 0098 | H188: بنك مصر | I188: 0257 | J188: بسيون
A189: 26710161600895 | B189: 3-مرتب تحويلات بنكية | D189: السادات تجارية | E189: 2461 | F189: خالد عطية عطوان الطوخى | G189: 0003 | H189: البنك الاهلي المصري | I189: 0378 | J189: بسيون
A190: 26705131601516 | B190: 3-مرتب تحويلات بنكية | D190: بسيون ث بنات | E190: 5612 | F190: خالد على رمضان على | G190: 0003 | H190: البنك الاهلي المصري | I190: 0378 | J190: بسيون | K190: 2918.4
A191: 26505311601752 | B191: 3-مرتب تحويلات بنكية | D191: الشهيد جمال شتا ب | E191: 583 | F191: خيرى عبد الجليل يوسف ابو عامر | G191: 0003 | H191: البنك الاهلي المصري | I191: 0378 | J191: بسيون
A192: 25909221601494 | B192: 3-مرتب تحويلات بنكية | D192: كتامة ب الجديدة | E192: 1461 | F192: خيري محمد احمد داود | G192: 0004 | H192: بنك القاهرة | I192: 4140 | J192: كفر الزيات
A193: 27304081601152 | B193: 3-مرتب تحويلات بنكية | D193: عمر بن عبد العزيز ب | E193: 1381 | F193: دسوقى حسين النفياوى | G193: 1009 | H193: البنك الرئيسي للتنميه والائتمان الزراعى | I193: 0804 | J193: بسيون
A194: 26911221601212 | B194: 3-مرتب تحويلات بنكية | D194: الثورة ب | E194: 4910 | F194: دسوقى صلاح بدر مصطفى الغرابلى | G194: 0003 | H194: البنك الاهلي المصري | I194: 0378 | J194: بسيون
A195: 27610011602601 | B195: 3-مرتب تحويلات بنكية | D195: عبد اللطيف فايد بصالحجر ب | E195: 3345 | F195: دعاء خليل محمد سلامة | G195: 0003 | H195: البنك الاهلي المصري | I195: 0378 | J195: بسيون
A196: 26809111601099 | B196: 3-مرتب تحويلات بنكية | D196: الديوان | E196: 43 | F196: را ضى اسما عيل ابرا هيم الحدا د | G196: 0003 | H196: البنك الاهلي المصري | I196: 0378 | J196: بسيون | K196: 1902.25
A197: 27401261604554 | B197: 3-مرتب تحويلات بنكية | D197: عبد النبى خمخم بسلامون ع مشترك | E197: 3917 | F197: رافت محمد سالم احمد السقا | G197: 0098 | H197: بنك مصر | I197: 0257 | J197: بسيون
A198: 26006081600216 | B198: 3-مرتب تحويلات بنكية | D198: الديوان | E198: 4072 | F198: رافت يوسف حسن الشرنوبى | G198: 0003 | H198: البنك الاهلي المصري | I198: 0378 | J198: بسيون | K198: 2757.55
A199: 28001031603538 | B199: 3-مرتب تحويلات بنكية | D199: شبراتنا ت ا | E199: 6440 | F199: رامى محمد على شعيشع البرلسى | G199: 0098 | H199: بنك مصر | I199: 0257 | J199: بسيون
A200: 27908081601228 | B200: 3-مرتب تحويلات بنكية | D200: مشال ب | E200: 706 | F200: راندا كمال عبدالرحمن شامه | G200: 0098 | H200: بنك مصر | I200: 0257 | J200: بسيون
... 520 more rows

Sheet Sheet5
A1: الرقم القومى | B1: نوع المدفوعه | C1: القطاع | D1: الإدارة | E1: رقم الموظف بجهته الأصلية | F1: الاسم | G1: كود البنك | H1: البنك | I1: كود الفرع | J1: الفرع | K1: المرتب
A2: 27101241601652 | B2: 3-مرتب تحويلات بنكية | D2: الشهيد جمال شتا ع | E2: 6459 | F2: عادل على احمد العماوى | G2: 0003 | H2: البنك الاهلي المصري | I2: 0378 | J2: بسيون | K2: 2184.4 | L2: 1
A3: 26207231601556 | B3: 3-مرتب تحويلات بنكية | D3: الشهيد جمال شتا ع | E3: 611 | F3: جمال محمد عبده ابو شتيه | G3: 0003 | H3: البنك الاهلي المصري | I3: 0378 | J3: بسيون | K3: 2556.35 | L3: 2
A4: 28108101602614 | B4: 3-مرتب تحويلات بنكية | D4: الشهيد جمال شتا ع | E4: 1797 | F4: محمد عبد السلام محمد أبو العطا | G4: 0003 | H4: البنك الاهلي المصري | I4: 0378 | J4: بسيون | K4: 1478.1 | L4: 3
A5: 26711041601231 | B5: 3-مرتب تحويلات بنكية | D5: عمر بن عبد العزيز ب | E5: 1372 | F5: محمد أحمد قرمان | G5: 0003 | H5: البنك الاهلي المصري | I5: 0378 | J5: بسيون | K5: 2640.7 | L5: 4
A6: 26801291601597 | B6: 3-مرتب تحويلات بنكية | D6: عمر بن عبد العزيز ب | E6: 1362 | F6: أحمد محمد طه طه | G6: 0003 | H6: البنك الاهلي المصري | I6: 0378 | J6: بسيون | K6: 2450 | L6: 5
A7: 26605211601199 | B7: 3-مرتب تحويلات بنكية | D7: عمر بن عبد العزيز ب | E7: 1371 | F7: إسماعيل عبد الله عياد | G7: 1009 | H7: البنك الرئيسي للتنميه والائتمان الزراعى | I7: 0804 | J7: بسيون | K7: 2828.1 | L7: 6
A8: 26703261603054 | B8: 3-مرتب تحويلات بنكية | D8: عمر بن عبد العزيز ب | E8: 1370 | F8: إسماعيل إبراهيم قاقه | G8: 0005 | H8: بنك الإسكندرية | I8: 3012 | J8: فرع كفرالزيات | K8: 2536.35 | L8: 7
A9: 27406011601861 | B9: 3-مرتب تحويلات بنكية | D9: عمر بن عبد العزيز ب | E9: 3623 | F9: فوزية على عيسى العالم | G9: 0003 | H9: البنك الاهلي المصري | I9: 0378 | J9: بسيون | K9: 2414.4 | L9: 8
A10: 27501121602505 | B10: 3-مرتب تحويلات بنكية | D10: عمر بن عبد العزيز ب | E10: 1380 | F10: نهله محمود الشريف | G10: 0003 | H10: البنك الاهلي المصري | I10: 0378 | J10: بسيون | K10: 2241.5 | L10: 9
A11: 28412161601286 | B11: 3-مرتب تحويلات بنكية | D11: عمر بن عبد العزيز ب | E11: 3631 | F11: نورة السيد ابراهيم شفطر | G11: 1009 | H11: البنك الرئيسي للتنميه والائتمان الزراعى | I11: 0804 | J11: بسيون | K11: 1589.65 | L11: 10
A12: 27304081601152 | B12: 3-مرتب تحويلات بنكية | D12: عمر بن عبد العزيز ب | E12: 1381 | F12: دسوقى حسين النفياوى | G12: 1009 | H12: البنك الرئيسي للتنميه والائتمان الزراعى | I12: 0804 | J12: بسيون | K12: 2169.75 | L12: 11
A13: 27505031601327 | B13: 3-مرتب تحويلات بنكية | D13: الشهيد جمال شتا ب | E13: 570 | F13: نادرة محمد عبد الرحمن رضوان | G13: 0003 | H13: البنك الاهلي المصري | I13: 0378 | J13: بسيون | K13: 2452.25 | L13: 12
A14: 26505311601752 | B14: 3-مرتب تحويلات بنكية | D14: الشهيد جمال شتا ب | E14: 583 | F14: خيرى عبد الجليل يوسف ابو عامر | G14: 0003 | H14: البنك الاهلي المصري | I14: 0378 | J14: بسيون | K14: 2280.95 | L14: 13
A15: 26810191600959 | B15: 3-مرتب تحويلات بنكية | D15: قرنشو ع مشتركة | E15: 6015 | F15: ابراهيم عبد المطلب قنديل | G15: 0004 | H15: بنك القاهرة | I15: 4150 | J15: سوق ناصر | K15: 2578.5 | L15: 14
A16: 27304241601171 | B16: 3-مرتب تحويلات بنكية | D16: قرنشو ع مشتركة | E16: 6444 | F16: احمد ربيع احمد احمد البقرى | G16: 0003 | H16: البنك الاهلي المصري | I16: 0378 | J16: بسيون | K16: 2302.55 | L16: 15
A17: 27110071600892 | B17: 3-مرتب تحويلات بنكية | D17: كتامة ث تجارية | E17: 5288 | F17: انور محمد احمد ابو يوسف | G17: 0003 | H17: البنك الاهلي المصري | I17: 0378 | J17: بسيون | K17: 2641.55 | L17: 16
A18: 28607011605653 | B18: 3-مرتب تحويلات بنكية | D18: قرنشو ع مشتركة | E18: 2210 | F18: عبد الفتاح محمد زيدان | G18: 0003 | H18: البنك الاهلي المصري | I18: 0378 | J18: بسيون | K18: 1481.35 | L18: 17
A19: 26802101601614 | B19: 3-مرتب تحويلات بنكية | D19: حصة ابار ع مشتركة | E19: 4551 | F19: حسونه حسين على الفقى | G19: 0003 | H19: البنك الاهلي المصري | I19: 0378 | J19: بسيون | K19: 2651.15 | L19: 18
A20: 28012251600779 | B20: 3-مرتب تحويلات بنكية | D20: حصة ابار ع مشتركة | E20: 1052 | F20: وليد عبد السلام خليل | G20: 0004 | H20: بنك القاهرة | I20: 4140 | J20: كفر الزيات | K20: 2018.65 | L20: 19
A21: 27709061600893 | B21: 3-مرتب تحويلات بنكية | D21: حصة ابار ع مشتركة | E21: 1062 | F21: عرابي مبروك عرابي مرجونة | G21: 0004 | H21: بنك القاهرة | I21: 4130 | J21: طنطا | K21: 1887 | L21: 20
A22: 27705131600882 | B22: 3-مرتب تحويلات بنكية | D22: حصة ابار ع مشتركة | E22: 4540 | F22: ناهد احمد حامد البوشى | G22: 0004 | H22: بنك القاهرة | I22: 4150 | J22: سوق ناصر | K22: 1465.9 | L22: 21
A23: 26806281600811 | B23: 3-مرتب تحويلات بنكية | D23: حصة ابار ع مشتركة | E23: 4541 | F23: محى عبد الواحد محمد ابو زيد | G23: 0003 | H23: البنك الاهلي المصري | I23: 0378 | J23: بسيون | K23: 1250.7 | L23: 22
A24: 27112161600622 | B24: 3-مرتب تحويلات بنكية | D24: خليفة عيسى بالفرستق ب | E24: 4429 | F24: منى على على شرف الدين | G24: 0003 | H24: البنك الاهلي المصري | I24: 0378 | J24: بسيون | K24: 2604.75 | L24: 23
A25: 27402271500818 | B25: 3-مرتب تحويلات بنكية | D25: خليفة عيسى بالفرستق ب | E25: 625 | F25: عادل السيد خطاب | G25: 0003 | H25: البنك الاهلي المصري | I25: 0378 | J25: بسيون | K25: 2499.8 | L25: 24
A26: 27003131500808 | B26: 3-مرتب تحويلات بنكية | D26: رجائى حتاتة ب | E26: 6199 | F26: امل انور محمود عبد ربه | G26: 0003 | H26: البنك الاهلي المصري | I26: 0378 | J26: بسيون | K26: 2456.3 | L26: 25
A27: 27309291601378 | B27: 3-مرتب تحويلات بنكية | D27: خليفة عيسى بالفرستق ب | E27: 2827 | F27: اشرف السيد اسماعيل السيد | G27: 1009 | H27: البنك الرئيسي للتنميه والائتمان الزراعى | I27: 0804 | J27: بسيون | K27: 1255.75 | L27: 26
A28: 26403191600849 | B28: 3-مرتب تحويلات بنكية | D28: خليفة عيسى بالفرستق ب | E28: 639 | F28: جمالات محمد الحفناوى | G28: 0003 | H28: البنك الاهلي المصري | I28: 0378 | J28: بسيون | K28: 2132.25 | L28: 27
A29: 26306261600692 | B29: 3-مرتب تحويلات بنكية | D29: الشهيد حسن حجازى ب | E29: 2220 | F29: عبدالعاطى كمال قطب حجازى | G29: 0004 | H29: بنك القاهرة | I29: 4150 | J29: سوق ناصر | K29: 2973.7 | L29: 28
A30: 26206150102443 | B30: 3-مرتب تحويلات بنكية | D30: الشهيد حسن حجازى ب | E30: 2251 | F30: زهره عبد الواحد محمود شعبان | G30: 0003 | H30: البنك الاهلي المصري | I30: 0378 | J30: بسيون | K30: 2342.85 | L30: 29
A31: 26811061601119 | B31: 3-مرتب تحويلات بنكية | D31: مشال ب | E31: 2053 | F31: صبرى طايل اسماعيل الجمل | G31: 0003 | H31: البنك الاهلي المصري | I31: 0378 | J31: بسيون | K31: 2360.15 | L31: 30
A32: 27610221600686 | B32: 3-مرتب تحويلات بنكية | D32: مشال ب | E32: 2060 | F32: فاديه يوسف ابراهيم كتاكت | G32: 0003 | H32: البنك الاهلي المصري | I32: 0378 | J32: بسيون | K32: 2082.45 | L32: 31
A33: 26811021600713 | B33: 3-مرتب تحويلات بنكية | D33: مشال ب | E33: 2051 | F33: حاتم بدير محمد العدوى | G33: 0003 | H33: البنك الاهلي المصري | I33: 0378 | J33: بسيون | K33: 2538.65 | L33: 31
A34: 26904011601558 | B34: 3-مرتب تحويلات بنكية | D34: كتامة ب الجديدة | E34: 1446 | F34: سالم محمد حسن البهوتي | G34: 0004 | H34: بنك القاهرة | I34: 4140 | J34: كفر الزيات | K34: 2423.2 | L34: 32
A35: 27207031601059 | B35: 3-مرتب تحويلات بنكية | D35: قسم بسيون 1 | E35: 2259 | F35: ابراهيم محمد كامل الجندى | G35: 0003 | H35: البنك الاهلي المصري | I35: 0378 | J35: بسيون | K35: 2339.4 | L35: 33
A36: 26305111600833 | B36: 3-مرتب تحويلات بنكية | D36: كتامة ب الجديدة | E36: 1458 | F36: محمد احمد العدوي العدوي | G36: 0004 | H36: بنك القاهرة | I36: 4140 | J36: كفر الزيات | K36: 2469.5 | L36: 34
A37: 25909221601494 | B37: 3-مرتب تحويلات بنكية | D37: كتامة ب الجديدة | E37: 1461 | F37: خيري محمد احمد داود | G37: 0004 | H37: بنك القاهرة | I37: 4140 | J37: كفر الزيات | K37: 1824.45 | L37: 35
A38: 26211141600531 | B38: 3-مرتب تحويلات بنكية | D38: السادات تجارية | E38: 2460 | F38: عصام مصطفى محمد المليجى | G38: 1009 | H38: البنك الرئيسي للتنميه والائتمان الزراعى | I38: 0804 | J38: بسيون | K38: 2816.7 | L38: 36
A39: 26710161600895 | B39: 3-مرتب تحويلات بنكية | D39: السادات تجارية | E39: 2461 | F39: خالد عطية عطوان الطوخى | G39: 0003 | H39: البنك الاهلي المصري | I39: 0378 | J39: بسيون | K39: 2725.35 | L39: 37
A40: 26304031600691 | B40: 3-مرتب تحويلات بنكية | D40: كتامة ث تجارية | E40: 1483 | F40: بدر عبد القوى عبدالحميد حميده | G40: 0003 | H40: البنك الاهلي المصري | I40: 0378 | J40: بسيون | K40: 2069.1 | L40: 38
A41: 26302241600631 | B41: 3-مرتب تحويلات بنكية | D41: كتامة ث تجارية | E41: 1506 | F41: مصطفى على محمد عامر | G41: 0003 | H41: البنك الاهلي المصري | I41: 0378 | J41: بسيون | K41: 2375.95 | L41: 39
A42: 26903171601175 | B42: 3-مرتب تحويلات بنكية | D42: كتامة ث تجارية | E42: 1504 | F42: مصباح ابراهيم مساعد زين الدين | G42: 0003 | H42: البنك الاهلي المصري | I42: 0378 | J42: بسيون | K42: 1878.9 | L42: 40
A43: 26009101600331 | B43: 3-مرتب تحويلات بنكية | D43: كتامة ث تجارية | E43: 1497 | F43: فوزى حامد محمد نجم | G43: 0004 | H43: بنك القاهرة | I43: 4130 | J43: طنطا | K43: 2823.7 | L43: 41
A44: 26006291600219 | B44: 3-مرتب تحويلات بنكية | D44: جناج ب الجديدة | E44: 2883 | F44: حامد محمد الفقى | G44: 0003 | H44: البنك الاهلي المصري | I44: 0378 | J44: بسيون | K44: 3777.45 | L44: 42
A45: 26303221600631 | B45: 3-مرتب تحويلات بنكية | D45: جناج ب الجديدة | E45: 981 | F45: عبدالرحمن محمد حسن جعباص | G45: 0003 | H45: البنك الاهلي المصري | I45: 0378 | J45: بسيون | K45: 2942.4 | L45: 44
A46: 26610031601437 | B46: 3-مرتب تحويلات بنكية | D46: جناج ب الجديدة | E46: 521 | F46: احمد رزق مبروك السوداني | G46: 0003 | H46: البنك الاهلي المصري | I46: 0378 | J46: بسيون | K46: 2618.15 | L46: 45
A47: 26611131601597 | B47: 3-مرتب تحويلات بنكية | D47: جناج ب الجديدة | E47: 525 | F47: رجب خليل عبد الحميد الفخرانى | G47: 0003 | H47: البنك الاهلي المصري | I47: 0378 | J47: بسيون | K47: 2617.3 | L47: 46
A48: 27210091500759 | B48: 3-مرتب تحويلات بنكية | D48: جناج ب الجديدة | E48: 528 | F48: اشرف عبد المقصود جبرئيل الدسوقى | G48: 0003 | H48: البنك الاهلي المصري | I48: 0378 | J48: بسيون | K48: 2431.6 | L48: 47
A49: 26207171600776 | B49: 3-مرتب تحويلات بنكية | D49: جناج ب الجديدة | E49: 524 | F49: احمد عبد الحميد صالح الفخرانى | G49: 0003 | H49: البنك الاهلي المصري | I49: 0378 | J49: بسيون | K49: 2428.95 | L49: 48
A50: 26105111600311 | B50: 3-مرتب تحويلات بنكية | D50: جناج ب الجديدة | E50: 523 | F50: الشافعي راغب محمود البربري | G50: 0003 | H50: البنك الاهلي المصري | I50: 0378 | J50: بسيون | K50: 2893.65 | L50: 49
A51: 27512011502108 | B51: 3-مرتب تحويلات بنكية | D51: كفر الدوار ب | E51: 529 | F51: بسيونية محمد احمد الحبشى | G51: 0003 | H51: البنك الاهلي المصري | I51: 0378 | J51: بسيون | K51: 2417.05 | L51: 50
A52: 28210311601083 | B52: 3-مرتب تحويلات بنكية | D52: جناج ب الجديدة | E52: 960 | F52: أميرة أحمد عبداللطيف هنو | G52: 1009 | H52: البنك الرئيسي للتنميه والائتمان الزراعى | I52: 0804 | J52: بسيون | K52: 1584.15 | L52: 51
A53: 26207231602803 | B53: 3-مرتب تحويلات بنكية | D53: جناج ب الجديدة | E53: 991 | F53: نسرين أحمدعيد وفا | G53: 0003 | H53: البنك الاهلي المصري | I53: 0378 | J53: بسيون | K53: 2434 | L53: 52
A54: 28401011522173 | B54: 3-مرتب تحويلات بنكية | D54: جناج ب الجديدة | E54: 6019 | F54: السعيد السعيد عامر | G54: 0003 | H54: البنك الاهلي المصري | I54: 0378 | J54: بسيون | K54: 1470.15 | L54: 53
A55: 26306241601978 | B55: 3-مرتب تحويلات بنكية | D55: صالحجر ب جديدة | E55: 3981 | F55: عبد المنعم محمد مصطفى النكلاوى | G55: 0003 | H55: البنك الاهلي المصري | I55: 0378 | J55: بسيون | K55: 2657.85 | L55: 54
A56: 27103071601434 | B56: 3-مرتب تحويلات بنكية | D56: صالحجر ب جديدة | E56: 4006 | F56: صبرى عبد المجيد محمد احمد عسكر | G56: 0003 | H56: البنك الاهلي المصري | I56: 0378 | J56: بسيون | K56: 2416.7 | L56: 55
A57: 26412271601578 | B57: 3-مرتب تحويلات بنكية | D57: صالحجر ب جديدة | E57: 4008 | F57: كمال السيد عيسى الشهاوى | G57: 0003 | H57: البنك الاهلي المصري | I57: 0378 | J57: بسيون | K57: 2804.45 | L57: 56
A58: 26608281600971 | B58: 3-مرتب تحويلات بنكية | D58: صالحجر ب جديدة | E58: 3989 | F58: على حلمى مرسى عياد | G58: 0003 | H58: البنك الاهلي المصري | I58: 0378 | J58: بسيون | K58: 2844.6 | L58: 57
A59: 26801101602193 | B59: 3-مرتب تحويلات بنكية | D59: صالحجر ب جديدة | E59: 4011 | F59: على رجب على يوغرى | G59: 0003 | H59: البنك الاهلي المصري | I59: 0378 | J59: بسيون | K59: 2537.65 | L59: 58
A60: 26805101600978 | B60: 3-مرتب تحويلات بنكية | D60: صالحجر ب جديدة | E60: 4012 | F60: السيد اسماعيل السيد زغلول | G60: 0003 | H60: البنك الاهلي المصري | I60: 0378 | J60: بسيون | K60: 2499.2 | L60: 59
A61: 26910011601388 | B61: 3-مرتب تحويلات بنكية | D61: صالحجر ب جديدة | E61: 3996 | F61: صفاء محمود حسن ابو خلعة | G61: 0003 | H61: البنك الاهلي المصري | I61: 0378 | J61: بسيون | K61: 2526.05 | L61: 60
A62: 27101311600837 | B62: 3-مرتب تحويلات بنكية | D62: صالحجر ب جديدة | E62: 4000 | F62: محمد مصطفى عبد اللطيف ابو شويكة | G62: 0003 | H62: البنك الاهلي المصري | I62: 0378 | J62: بسيون | K62: 2442.35 | L62: 61
A63: 27003070202213 | B63: 3-مرتب تحويلات بنكية | D63: صالحجر ب جديدة | E63: 4009 | F63: حمدى السيد عبد الفتاح السيد | G63: 0004 | H63: بنك القاهرة | I63: 4140 | J63: كفر الزيات | K63: 2472.2 | L63: 62
A64: 27004091600096 | B64: 3-مرتب تحويلات بنكية | D64: صالحجر ب جديدة | E64: 4010 | F64: رضا سعد اسماعيل ابو العزم | G64: 0004 | H64: بنك القاهرة | I64: 4130 | J64: طنطا | K64: 2649.4 | L64: 63
A65: 26503031601215 | B65: 3-مرتب تحويلات بنكية | D65: السادات تجارية | E65: 4638 | F65: فارس محى الدين سالم | G65: 1009 | H65: البنك الرئيسي للتنميه والائتمان الزراعى | I65: 0804 | J65: بسيون | K65: 3479 | L65: 64
A66: 26605031601468 | B66: 3-مرتب تحويلات بنكية | D66: السادات تجارية | E66: 4640 | F66: فوزية الاباصيرى محمد ابو عبد الله | G66: 0003 | H66: البنك الاهلي المصري | I66: 0378 | J66: بسيون | K66: 2879.5 | L66: 65
A67: 26311041601241 | B67: 3-مرتب تحويلات بنكية | D67: السادات تجارية | E67: 4641 | F67: امينة بد المنعم محمود سليمان | G67: 0003 | H67: البنك الاهلي المصري | I67: 0378 | J67: بسيون | K67: 2674 | L67: 66
A68: 28210031601851 | B68: 3-مرتب تحويلات بنكية | D68: السادات تجارية | E68: 5279 | F68: السيد محمد اسماعيل حسين زلط | G68: 0003 | H68: البنك الاهلي المصري | I68: 0378 | J68: بسيون | K68: 1547.5 | L68: 67
A69: 28312311600521 | B69: 3-مرتب تحويلات بنكية | D69: السادات تجارية | E69: 4664 | F69: شيماء صابرعبد الفتاح اسماعيل حنورة | G69: 0038 | H69: بنك التعمير و الاسكان | I69: 0031 | J69: كفر الشيخ | K69: 1467 | L69: 68
A70: 27712181601649 | B70: 3-مرتب تحويلات بنكية | D70: السادات تجارية | E70: 4642 | F70: سناء اسماعيل محمود عثمان | G70: 0003 | H70: البنك الاهلي المصري | I70: 0378 | J70: بسيون | K70: 2020.5 | L70: 68
A71: 26312211601698 | B71: 3-مرتب تحويلات بنكية | D71: السادات تجارية | E71: 4649 | F71: جمال السيد بسيونى عيد | G71: 0003 | H71: البنك الاهلي المصري | I71: 0378 | J71: بسيون | K71: 2057.5 | L71: 69
A72: 26908191601092 | B72: 3-مرتب تحويلات بنكية | D72: كفر جعفر ب ر | E72: 3369 | F72: ابراهيم مصطفى عبد الرحمن على | G72: 1009 | H72: البنك الرئيسي للتنميه والائتمان الزراعى | I72: 0804 | J72: بسيون | K72: 2280.1 | L72: 70
A73: 27203041601787 | B73: 3-مرتب تحويلات بنكية | D73: كفر جعفر ب ر | E73: 3379 | F73: زينب خليفة احمد محمد عبيد | G73: 1009 | H73: البنك الرئيسي للتنميه والائتمان الزراعى | I73: 0804 | J73: بسيون | K73: 2389.5 | L73: 71
A74: 26305031600514 | B74: 3-مرتب تحويلات بنكية | D74: كفر جعفر ب ر | E74: 3362 | F74: هاشم محمد مرسى البربرى | G74: 0003 | H74: البنك الاهلي المصري | I74: 0378 | J74: بسيون | K74: 3542.5 | L74: 72
A75: 27605161601145 | B75: 3-مرتب تحويلات بنكية | D75: كفر جعفر ب ر | E75: 3397 | F75: سعيدة امام خلف الله محمد معالى | G75: 0004 | H75: بنك القاهرة | I75: 4130 | J75: طنطا | K75: 2087.8 | L75: 74
A76: 26807291600891 | B76: 3-مرتب تحويلات بنكية | D76: كفر جعفر ب ر | E76: 3389 | F76: مصطفى محمد بسيونى سهيل | G76: 1009 | H76: البنك الرئيسي للتنميه والائتمان الزراعى | I76: 0804 | J76: بسيون | K76: 2422.25 | L76: 75
A77: 27008221600871 | B77: 3-مرتب تحويلات بنكية | D77: كفر جعفر ب ر | E77: 3368 | F77: ابراهيم حافظ محمد رميح | G77: 0004 | H77: بنك القاهرة | I77: 4140 | J77: كفر الزيات | K77: 2391.1 | L77: 76
A78: 27111281601219 | B78: 3-مرتب تحويلات بنكية | D78: كفر جعفر ب ر | E78: 6538 | F78: رشاد احمد على محمد | G78: 0003 | H78: البنك الاهلي المصري | I78: 0378 | J78: بسيون | K78: 2393.8 | L78: 77
A79: 26704071500328 | B79: 3-مرتب تحويلات بنكية | D79: كفر جعفر ب ر | E79: 3382 | F79: صفية ابراهيم على على | G79: 0003 | H79: البنك الاهلي المصري | I79: 0378 | J79: بسيون | K79: 2788.45 | L79: 78
A80: 27508041601243 | B80: 3-مرتب تحويلات بنكية | D80: كفر جعفر ب ر | E80: 3375 | F80: جيهان نبيل احمد السلماوى | G80: 0003 | H80: البنك الاهلي المصري | I80: 0378 | J80: بسيون | K80: 2250.55 | L80: 79
A81: 26507031900501 | B81: 3-مرتب تحويلات بنكية | D81: كفر جعفر ب ر | E81: 3305 | F81: منال مصطفى عبد الرحمن الننى | G81: 0003 | H81: البنك الاهلي المصري | I81: 0378 | J81: بسيون | K81: 2946.15 | L81: 80
A82: 27312248800244 | B82: 3-مرتب تحويلات بنكية | D82: كفر جعفر ب ر | E82: 3392 | F82: نبيلة امير محمد مصطفى عيد | G82: 0003 | H82: البنك الاهلي المصري | I82: 0378 | J82: بسيون | K82: 2484.1 | L82: 81
A83: 26801161801268 | B83: 3-مرتب تحويلات بنكية | D83: كفر جعفر ب ر | E83: 3425 | F83: شريفة ربيع اسماعيل بخيت | G83: 0003 | H83: البنك الاهلي المصري | I83: 0378 | J83: بسيون | K83: 2063.05 | L83: 82
A84: 26609211601119 | B84: 3-مرتب تحويلات بنكية | D84: شفا ب | E84: 1166 | F84: عبداللطيف محمد حامد الشامى | G84: 1009 | H84: البنك الرئيسي للتنميه والائتمان الزراعى | I84: 0804 | J84: بسيون | K84: 2236 | L84: 83
A85: 27701301601077 | B85: 3-مرتب تحويلات بنكية | D85: ابو حمر ع ت ا | E85: 4358 | F85: محمد محفوظ عبد العزيزسليمان | G85: 0038 | H85: بنك التعمير و الاسكان | I85: 0031 | J85: كفر الشيخ | K85: 2226.1 | L85: 84
A86: 26111111600206 | B86: 3-مرتب تحويلات بنكية | D86: شفا ب | E86: 1188 | F86: نعيمه محمد ابراهيم عيد | G86: 0004 | H86: بنك القاهرة | I86: 4130 | J86: طنطا | K86: 2555.9 | L86: 84
A87: 26410071600965 | B87: 3-مرتب تحويلات بنكية | D87: ابو حمر ع ت ا | E87: 413 | F87: جملات ابوالعنين محمود عيد | G87: 1009 | H87: البنك الرئيسي للتنميه والائتمان الزراعى | I87: 0804 | J87: بسيون | K87: 2138.7 | L87: 85
A88: 26701281601519 | B88: 3-مرتب تحويلات بنكية | D88: ابو حمر ع ت ا | E88: 420 | F88: مصطفى محمود هنداوى النجار | G88: 0003 | H88: البنك الاهلي المصري | I88: 0378 | J88: بسيون | K88: 1987.75 | L88: 86
A89: 27406021601398 | B89: 3-مرتب تحويلات بنكية | D89: جناج ع مشتركة | E89: 6453 | F89: حسام الدين على على السمدونى | G89: 0003 | H89: البنك الاهلي المصري | I89: 0378 | J89: بسيون | K89: 2174.45 | L89: 87
A90: 26801161601633 | B90: 3-مرتب تحويلات بنكية | D90: ابو حمر ع مشتركة | E90: 6361 | F90: ابراهيم حسين محمد رحيم | G90: 0003 | H90: البنك الاهلي المصري | I90: 0378 | J90: بسيون | K90: 1898 | L90: 88
A91: 27508041601057 | B91: 3-مرتب تحويلات بنكية | D91: جناج ع مشتركة | E91: 3353 | F91: مؤمن حسن محمد حسن البشة | G91: 0004 | H91: بنك القاهرة | I91: 4140 | J91: كفر الزيات | K91: 2116.4 | L91: 89
A92: 28412271600731 | B92: 3-مرتب تحويلات بنكية | D92: جناج ع مشتركة | E92: 3011 | F92: وائل عبد الوهاب محمد الفار | G92: 1009 | H92: البنك الرئيسي للتنميه والائتمان الزراعى | I92: 0804 | J92: بسيون | K92: 1502.2 | L92: 90
A93: 26203301601367 | B93: 3-مرتب تحويلات بنكية | D93: مشال ب | E93: 1800 | F93: هناء السيد سعد بكر | G93: 0003 | H93: البنك الاهلي المصري | I93: 0378 | J93: بسيون | K93: 3817.65 | L93: 91
A94: 28312051601502 | B94: 3-مرتب تحويلات بنكية | D94: مشال ع | E94: 4390 | F94: رشا عبد الفتاح حلمى غريب ابو حمر | G94: 0003 | H94: البنك الاهلي المصري | I94: 0378 | J94: بسيون | K94: 1592.8 | L94: 92
A95: 28503191600999 | B95: 3-مرتب تحويلات بنكية | D95: مشال ع | E95: 4393 | F95: محمد مظلوم الصاوى النجار | G95: 1009 | H95: البنك الرئيسي للتنميه والائتمان الزراعى | I95: 0804 | J95: بسيون | K95: 1595.75 | L95: 93
A96: 25903041601897 | B96: 3-مرتب تحويلات بنكية | D96: مشال ب | E96: 1806 | F96: معتصم احمد حسن قاطور | G96: 1009 | H96: البنك الرئيسي للتنميه والائتمان الزراعى | I96: 0804 | J96: بسيون | K96: 2839.8 | L96: 94
A97: 26601081601633 | B97: 3-مرتب تحويلات بنكية | D97: كفر جعفر ب | E97: 5381 | F97: سمير يوسف عبد السلام الهنداوى | G97: 0003 | H97: البنك الاهلي المصري | I97: 0378 | J97: بسيون
A98: 26008031600293 | B98: 3-مرتب تحويلات بنكية | D98: ابو حمر ع ت ا | E98: 416 | F98: جمعه عبد الله بدران طوبار | G98: 0004 | H98: بنك القاهرة | I98: 4150 | J98: سوق ناصر
A99: 26801041600536 | B99: 3-مرتب تحويلات بنكية | D99: قرنشو الفنية | E99: 2188 | F99: ابراهيم احمد ابراهيم وهبه | G99: 0003 | H99: البنك الاهلي المصري | I99: 0378 | J99: بسيون | K99: 0
A100: 27204081601298 | B100: 3-مرتب تحويلات بنكية | D100: كنيسة شبراطو ب | E100: 247 | F100: ابراهيم احمد عمار | G100: 0003 | H100: البنك الاهلي المصري | I100: 0378 | J100: بسيون | K100: 0
A101: 27008161600957 | B101: 3-مرتب تحويلات بنكية | D101: بسيون ث صناعى | E101: 5161 | F101: ابراهيم السيد سليمان يونس الديهى | G101: 0003 | H101: البنك الاهلي المصري | I101: 0378 | J101: بسيون | K101: 0
A102: 28002011602001 | B102: 3-مرتب تحويلات بنكية | D102: عمر بن عبد العزيز ب | E102: 3625 | F102: نهى اسماعيل محمد السيد زغلول | G102: 0003 | H102: البنك الاهلي المصري | I102: 0378 | J102: بسيون | K102: 0
A103: 26312151601511 | B103: 3-مرتب تحويلات بنكية | D103: محمد رياض كفر الحمام ب | E103: 1779 | F103: ابراهيم سعد محمد زغلول | G103: 0003 | H103: البنك الاهلي المصري | I103: 0378 | J103: بسيون
A104: 26103051600454 | B104: 3-مرتب تحويلات بنكية | D104: كفر سليمان ب | E104: 4453 | F104: ابراهيم شعبان محمد ابو عرب | G104: 0003 | H104: البنك الاهلي المصري | I104: 0378 | J104: بسيون
A105: 26305101600975 | B105: 3-مرتب تحويلات بنكية | D105: الثورة ب | E105: 4871 | F105: ابراهيم عبد القادر سعد امبابى | G105: 0003 | H105: البنك الاهلي المصري | I105: 0378 | J105: بسيون
A106: 27503171601316 | B106: 3-مرتب تحويلات بنكية | D106: عيسوىفايد ث | E106: 3351 | F106: ابراهيم عبد الواحد اسماعيل مقلاش | G106: 0003 | H106: البنك الاهلي المصري | I106: 0378 | J106: بسيون
A107: 27106061601052 | B107: 3-مرتب تحويلات بنكية | D107: ناصر ث بنين | E107: 3851 | F107: ابراهيم على ابراهيم عيد | G107: 0003 | H107: البنك الاهلي المصري | I107: 0378 | J107: بسيون
A108: 26101021600473 | B108: 3-مرتب تحويلات بنكية | D108: وحدة قرانشو ب | E108: 4478 | F108: ابراهيم مبروك بركة | G108: 0004 | H108: بنك القاهرة | I108: 4150 | J108: سوق ناصر
A109: 26308191602679 | B109: 3-مرتب تحويلات بنكية | D109: رجائى حتاتة ب | E109: 4254 | F109: ابراهيم محمد عبد الحليم الغايش | G109: 1009 | H109: البنك الرئيسي للتنميه والائتمان الزراعى | I109: 0804 | J109: بسيون
A110: 26112021600378 | B110: 3-مرتب تحويلات بنكية | D110: الحداد ع ت ا | E110: 6445 | F110: ابرهيم على بيومى بعيبر | G110: 0003 | H110: البنك الاهلي المصري | I110: 0378 | J110: بسيون
A111: 28401011619592 | B111: 3-مرتب تحويلات بنكية | D111: الديوان | E111: 2515 | F111: ابوزيد محمد ابو زيد محمد ملوة | G111: 0003 | H111: البنك الاهلي المصري | I111: 0378 | J111: بسيون
A112: 26011191600347 | B112: 3-مرتب تحويلات بنكية | D112: الثورة ب | E112: 4860 | F112: احسان عبد المجيد محمد الحصرى | G112: 0003 | H112: البنك الاهلي المصري | I112: 0378 | J112: بسيون
A113: 27701021604739 | B113: 3-مرتب تحويلات بنكية | D113: طه حسين بالفرستق ب | E113: 4232 | F113: احمد اسماعيل احمد زلط | G113: 0004 | H113: بنك القاهرة | I113: 4140 | J113: كفر الزيات
A114: 25912031601979 | B114: 3-مرتب تحويلات بنكية | D114: الديوان | E114: 6462 | F114: احمد حسين محمد الحشاش | G114: 0003 | H114: البنك الاهلي المصري | I114: 0378 | J114: بسيون
A115: 26804061601279 | B115: 3-مرتب تحويلات بنكية | D115: الثورة ب | E115: 4885 | F115: احمد ربيع احمد محمد عبد الدايم | G115: 0003 | H115: البنك الاهلي المصري | I115: 0378 | J115: بسيون
A116: 26807271600878 | B116: 3-مرتب تحويلات بنكية | D116: الشهيد عزت هلال ب | E116: 6394 | F116: احمد رفاعى اسماعيل الفخرانى | G116: 0003 | H116: البنك الاهلي المصري | I116: 0378 | J116: بسيون
A117: 26604121601797 | B117: 3-مرتب تحويلات بنكية | D117: الديوان | E117: 11 | F117: احمد رمضا ن احمد الحداد | G117: 1009 | H117: البنك الرئيسي للتنميه والائتمان الزراعى | I117: 0804 | J117: بسيون
A118: 26810301601115 | B118: 3-مرتب تحويلات بنكية | D118: بسيون ث صناعى | E118: 3725 | F118: احمد رمضان عبد السلام فلوص | G118: 0003 | H118: البنك الاهلي المصري | I118: 0378 | J118: بسيون
A119: 27109222800076 | B119: 3-مرتب تحويلات بنكية | D119: خالد ابن الوليد ع | E119: 5869 | F119: احمد سمير عبد الحافظ محمد | G119: 0038 | H119: بنك التعمير و الاسكان | I119: 0031 | J119: كفر الشيخ
A120: 27411031601039 | B120: 3-مرتب تحويلات بنكية | D120: شبراتنا ت ا ع | E120: 5993 | F120: احمد عبد الحليم محمد سمك | G120: 0003 | H120: البنك الاهلي المصري | I120: 0378 | J120: بسيون
A121: 25901041601495 | B121: 3-مرتب تحويلات بنكية | D121: بسيون ث بنات | E121: 5583 | F121: احمد عبد العاطى احمد شهاب الدين | G121: 0003 | H121: البنك الاهلي المصري | I121: 0378 | J121: بسيون
A122: 26403121602054 | B122: 3-مرتب تحويلات بنكية | E122: 5794 | F122: احمد عبد اللطيف احمد ابو الخير | G122: 0003 | H122: البنك الاهلي المصري | I122: 0378 | J122: بسيون
A123: 26604091601274 | B123: 3-مرتب تحويلات بنكية | D123: بار الحمام ب | E123: 2168 | F123: احمد عبد اللطيف احمد الأنصارى | G123: 0003 | H123: البنك الاهلي المصري | I123: 0378 | J123: بسيون
A124: 26711071603093 | B124: 3-مرتب تحويلات بنكية | D124: قرنشو الفنية | E124: 2186 | F124: احمد عبد المجيد ابو حطب | G124: 0003 | H124: البنك الاهلي المصري | I124: 0378 | J124: بسيون
A125: 26505301600553 | B125: 3-مرتب تحويلات بنكية | D125: بسيون ث صناعى | E125: 5230 | F125: احمد عبد المجيد احمد دغيم | G125: 0004 | H125: بنك القاهرة | I125: 4140 | J125: كفر الزيات
A126: 28001011611119 | B126: 3-مرتب تحويلات بنكية | D126: بسيون ث صناعى | E126: 5013 | F126: احمد عبد المقصود محمد بسيونى الجعيفى | G126: 0003 | H126: البنك الاهلي المصري | I126: 0378 | J126: بسيون
A127: 26404021601138 | B127: 3-مرتب تحويلات بنكية | D127: منشاة اليعقوبية ت ا ب | E127: 2610 | F127: احمد عبد الوهاب فريد ابو حمر | G127: 0003 | H127: البنك الاهلي المصري | I127: 0378 | J127: بسيون
A128: 27712011603035 | B128: 3-مرتب تحويلات بنكية | D128: عيسوىفايد ع | E128: 3337 | F128: احمد على عبد القادر الاعمى | G128: 1009 | H128: البنك الرئيسي للتنميه والائتمان الزراعى | I128: 0804 | J128: بسيون
A129: 26104201600314 | B129: 3-مرتب تحويلات بنكية | D129: كتامة ث مشتركة | E129: 5501 | F129: احمد على على ابو طالب | G129: 0003 | H129: البنك الاهلي المصري | I129: 0378 | J129: بسيون
A130: 26105051601518 | B130: 3-مرتب تحويلات بنكية | D130: رجائى حتاتة ب | E130: 4251 | F130: احمد متولى بسيونى عبد الوهاب | G130: 0003 | H130: البنك الاهلي المصري | I130: 0378 | J130: بسيون
A131: 26506301600592 | B131: 3-مرتب تحويلات بنكية | D131: عزبة رزق ب | E131: 3935 | F131: احمد محمد شحاته غلاب | G131: 0004 | H131: بنك القاهرة | I131: 4130 | J131: طنطا
A132: 27012151600271 | B132: 3-مرتب تحويلات بنكية | D132: بسيون ث صناعى | E132: 5254 | F132: احمد محمد فتح الله عبد الله | G132: 0004 | H132: بنك القاهرة | I132: 4150 | J132: سوق ناصر
A133: 26002061600354 | B133: 3-مرتب تحويلات بنكية | D133: الشهيد عزت هلال ب | E133: 661 | F133: احمد محمد فتح الله فايد | G133: 0004 | H133: بنك القاهرة | I133: 4140 | J133: كفر الزيات
A134: 27209151600539 | B134: 3-مرتب تحويلات بنكية | D134: مصطفى كامل بكفر نصير ب | E134: 1861 | F134: احمد يوسف احمد | G134: 0003 | H134: البنك الاهلي المصري | I134: 0378 | J134: بسيون
A135: 28107011602546 | B135: 3-مرتب تحويلات بنكية | D135: صلاح سالم ب | E135: 4962 | F135: اسماء ابراهيم حسين عيد | G135: 0038 | H135: بنك التعمير و الاسكان | I135: 0031 | J135: كفر الشيخ
A136: 28903031600583 | B136: 3-مرتب تحويلات بنكية | D136: مصطفى قاسم ت ا | E136: 6310 | F136: اسماء حسانين عبدالمطلب | G136: 0038 | H136: بنك التعمير و الاسكان | I136: 0031 | J136: كفر الشيخ
A137: 25909221600331 | B137: 3-مرتب تحويلات بنكية | D137: عيسوىفايد ث | E137: 1433 | F137: اسماعيل ابراهيم البشة | G137: 0003 | H137: البنك الاهلي المصري | I137: 0378 | J137: بسيون
A138: 26404241600914 | B138: 3-مرتب تحويلات بنكية | D138: مصطفى قاسم ت ا ع | E138: 863 | F138: اسماعيل حسين حسين الكردى | G138: 0004 | H138: بنك القاهرة | I138: 4130 | J138: طنطا
A139: 26401271601959 | B139: 3-مرتب تحويلات بنكية | D139: الديوان | E139: 4979 | F139: اسماعيل رضوان رضوان محمد شنيشن | G139: 0098 | H139: بنك مصر | I139: 0257 | J139: بسيون
A140: 26102081500237 | B140: 3-مرتب تحويلات بنكية | D140: بسيون ث بنات | E140: 5585 | F140: اسماعيل طه قطب ابو على | G140: 1009 | H140: البنك الرئيسي للتنميه والائتمان الزراعى | I140: 0804 | J140: بسيون
A141: 26008211601379 | B141: 3-مرتب تحويلات بنكية | D141: كفر نصير ع | E141: 1669 | F141: اسماعيل فتوح اسماعيل شعير | G141: 0098 | H141: بنك مصر | I141: 0257 | J141: بسيون
A142: 26808221601373 | B142: 3-مرتب تحويلات بنكية | D142: الكمال ب بقرنشو | E142: 748 | F142: اسماعيل محمد عبدالله الأقرع | G142: 0003 | H142: البنك الاهلي المصري | I142: 0378 | J142: بسيون
A143: 27003201600929 | B143: 3-مرتب تحويلات بنكية | D143: الحداد ع ت ا | E143: 507 | F143: اسمهان على بعيبر | G143: 0003 | H143: البنك الاهلي المصري | I143: 0378 | J143: بسيون
A144: 27302271601458 | B144: 3-مرتب تحويلات بنكية | D144: بسيون ث صناعى | E144: 5108 | F144: اشرف اسماعيل محمود محمد الدش | G144: 0005 | H144: بنك الإسكندرية | I144: 3009 | J144: فرع شبين الكوم
A145: 28401111601771 | B145: 3-مرتب تحويلات بنكية | D145: صفية الصناعية بنات | E145: 4507 | F145: اشرف محمد عبد الله الوجاب | G145: 0003 | H145: البنك الاهلي المصري | I145: 0378 | J145: بسيون
A146: 26309031602261 | B146: 3-مرتب تحويلات بنكية | D146: نهضة مصر بابو حمر ب | E146: 6374 | F146: افراج مصطفى عبد المنعم الدقاق | G146: 0098 | H146: بنك مصر | I146: 0257 | J146: بسيون
A147: 27311011602301 | B147: 3-مرتب تحويلات بنكية | D147: التحرير ب | E147: 5454 | F147: اكرام سعد الدين بسيونى الدخاخنى | G147: 0098 | H147: بنك مصر | I147: 0257 | J147: بسيون
A148: 26409271600953 | B148: 3-مرتب تحويلات بنكية | D148: عبد النبى خمخم بسلامون ب | E148: 6455 | F148: البدرى على محمد ابوزيد | G148: 0003 | H148: البنك الاهلي المصري | I148: 0378 | J148: بسيون
A149: 26811061601135 | B149: 3-مرتب تحويلات بنكية | D149: كتامة ث مشتركة | E149: 5500 | F149: السباعى مصطفى السباعى الجندى | G149: 0003 | H149: البنك الاهلي المصري | I149: 0378 | J149: بسيون
A150: 26402201601311 | B150: 3-مرتب تحويلات بنكية | D150: الديوان | E150: 5362 | F150: السيد ابراهيم احمد الملاح | G150: 0003 | H150: البنك الاهلي المصري | I150: 0378 | J150: بسيون
A151: 26409221601193 | B151: 3-مرتب تحويلات بنكية | D151: كفر الدوار ب | E151: 4562 | F151: السيد احمد السيد النحراوى | G151: 0003 | H151: البنك الاهلي المصري | I151: 0378 | J151: بسيون
A152: 26112011602291 | B152: 3-مرتب تحويلات بنكية | D152: خالد ابن الوليد ت ا ب | E152: 3658 | F152: السيد احمد حتاتة | G152: 0003 | H152: البنك الاهلي المصري | I152: 0378 | J152: بسيون
A153: 26412091601456 | B153: 3-مرتب تحويلات بنكية | D153: كفر جعفر ع مهنى | E153: 3483 | F153: السيد احمد متولى الخيوطى | G153: 1009 | H153: البنك الرئيسي للتنميه والائتمان الزراعى | I153: 0804 | J153: بسيون
A154: 27910211601556 | B154: 3-مرتب تحويلات بنكية | D154: عوض العيسوى ب | E154: 2260 | F154: السيد رمضان اسماعيل غباشى | G154: 0098 | H154: بنك مصر | I154: 0257 | J154: بسيون
A155: 25905111601736 | B155: 3-مرتب تحويلات بنكية | D155: الشهيد عبد المنعم رياض بكتامة | E155: 4434 | F155: السيد عبد العظيم احمد السعودى | G155: 0098 | H155: بنك مصر | I155: 0216 | J155: طنطا
A156: 26511271601096 | B156: 3-مرتب تحويلات بنكية | D156: صفية الصناعية بنات | E156: 5061 | F156: السيد عبد المنعم عبد السلام النحراوى | G156: 0003 | H156: البنك الاهلي المصري | I156: 0378 | J156: بسيون
A157: 26503301601212 | B157: 3-مرتب تحويلات بنكية | D157: عيسوىفايد ع | E157: 3348 | F157: السيد عبد النبى عبد المجيد مقلاش | G157: 0003 | H157: البنك الاهلي المصري | I157: 0378 | J157: بسيون
A158: 26011031602157 | B158: 3-مرتب تحويلات بنكية | D158: الديوان | E158: 5357 | F158: السيد مساعد على ملا | G158: 0098 | H158: بنك مصر | I158: 0257 | J158: بسيون
A159: 26306231600817 | B159: 3-مرتب تحويلات بنكية | D159: كفر سالم ت ا ب | E159: 2946 | F159: الشحات السيد خطاب خطاب | G159: 0003 | H159: البنك الاهلي المصري | I159: 0378 | J159: بسيون
A160: 26611051600972 | B160: 3-مرتب تحويلات بنكية | D160: مصطفى كامل بكفر نصير ب | E160: 1862 | F160: الشوادفي محمد راغب عبدالبر | G160: 0098 | H160: بنك مصر | I160: 0257 | J160: بسيون
A161: 26404261601054 | B161: 3-مرتب تحويلات بنكية | D161: بسيون ث صناعى | E161: 4277 | F161: الصاوى شعبان الصاوى ابورواش | G161: 1009 | H161: البنك الرئيسي للتنميه والائتمان الزراعى | I161: 0804 | J161: بسيون
A162: 27104101601899 | B162: 3-مرتب تحويلات بنكية | D162: شبراتنا ت ا | E162: 6367 | F162: الوردانى سعد محمد الوردانى | G162: 1009 | H162: البنك الرئيسي للتنميه والائتمان الزراعى | I162: 0804 | J162: بسيون
A163: 25812121602147 | B163: 3-مرتب تحويلات بنكية | D163: قسم بسيون 2 | E163: 6701 | F163: امال احمد على محمد دكوس | G163: 0003 | H163: البنك الاهلي المصري | I163: 0378 | J163: بسيون
A164: 25810021602082 | B164: 3-مرتب تحويلات بنكية | D164: ابو بكر الصديق ب | E164: 2648 | F164: امال محمود ابراهيم بدوى | G164: 0098 | H164: بنك مصر | I164: 0257 | J164: بسيون
A165: 26804071601242 | B165: 3-مرتب تحويلات بنكية | D165: الثورة ب | E165: 4850 | F165: اميمة محمد سيد احمد عبد البر | G165: 0003 | H165: البنك الاهلي المصري | I165: 0378 | J165: بسيون
A166: 26912271601643 | B166: 3-مرتب تحويلات بنكية | D166: صلاح سالم ب | E166: 4748 | F166: اميمة محمود محمد جاد الله رجب | G166: 0003 | H166: البنك الاهلي المصري | I166: 0378 | J166: بسيون
A167: 26309021600724 | B167: 3-مرتب تحويلات بنكية | D167: الديوان | E167: 6432 | F167: امينه صلاح كيلانى كيلانى | G167: 0003 | H167: البنك الاهلي المصري | I167: 0378 | J167: بسيون
A168: 26408071600626 | B168: 3-مرتب تحويلات بنكية | D168: قسم بسيون 2 | E168: 6734 | F168: امينه قطب احمد البريه | G168: 0003 | H168: البنك الاهلي المصري | I168: 0378 | J168: بسيون
A169: 26112091600383 | B169: 3-مرتب تحويلات بنكية | D169: كفر سليمان ب | E169: 5808 | F169: امينه محمد ابراهيم السيسى | G169: 0003 | H169: البنك الاهلي المصري | I169: 0378 | J169: بسيون
A170: 27410051601209 | B170: 3-مرتب تحويلات بنكية | D170: الفرستق ع مشتركة | E170: 6456 | F170: انتصاراحمد السيد عبد القادر | G170: 0003 | H170: البنك الاهلي المصري | I170: 0378 | J170: بسيون
A171: 26711081601218 | B171: 3-مرتب تحويلات بنكية | D171: صلاح حتاتة ع | E171: 1243 | F171: انور محمود محمد احمد طه | G171: 0003 | H171: البنك الاهلي المصري | I171: 0378 | J171: بسيون
A172: 28910231602242 | B172: 3-مرتب تحويلات بنكية | D172: حلمى انيس ت ا | E172: 5918 | F172: اية ابراهيم عبد الدايم | G172: 0003 | H172: البنك الاهلي المصري | I172: 0380 | J172: المحلة الكبرى
A173: 27601041602541 | B173: 3-مرتب تحويلات بنكية | D173: ناصر ث بنين | E173: 3803 | F173: ايماان بسيونى احمد عوض | G173: 0003 | H173: البنك الاهلي المصري | I173: 0378 | J173: بسيون
A174: 27201101600529 | B174: 3-مرتب تحويلات بنكية | D174: الديوان | E174: 2102 | F174: ايمان ابراهيم محمد الدهبى | G174: 0098 | H174: بنك مصر | I174: 0257 | J174: بسيون
A175: 26401281600047 | B175: 3-مرتب تحويلات بنكية | D175: بسيون ث صناعى | E175: 5022 | F175: ايمان فهمى رضوان يونس | G175: 0003 | H175: البنك الاهلي المصري | I175: 0378 | J175: بسيون
A176: 27907111601302 | B176: 3-مرتب تحويلات بنكية | D176: رجائى حتاتة ب | E176: 5672 | F176: ايمان ماهر عبد الرحيم عطا | G176: 0003 | H176: البنك الاهلي المصري | I176: 0378 | J176: بسيون
A177: 27404090201544 | B177: 3-مرتب تحويلات بنكية | D177: الفرستق ع مشتركة | E177: 945 | F177: ايمان محروس السيد ايوب | G177: 0003 | H177: البنك الاهلي المصري | I177: 0378 | J177: بسيون
A178: 26310031600984 | B178: 3-مرتب تحويلات بنكية | D178: بسيون ع بنات | E178: 885 | F178: ايمان محمد حلمى محمد وفا | G178: 0003 | H178: البنك الاهلي المصري | I178: 0378 | J178: بسيون
A179: 28303121601727 | B179: 3-مرتب تحويلات بنكية | D179: عزبة رزق ب | E179: 3949 | F179: ايمان نصحى ابو اليزيد محمد المغينى | G179: 0038 | H179: بنك التعمير و الاسكان | I179: 0031 | J179: كفر الشيخ
A180: 26805151601479 | B180: 3-مرتب تحويلات بنكية | D180: ميت شريف ث | E180: 3848 | F180: ايمن انصارى محمد السخاوى | G180: 0003 | H180: البنك الاهلي المصري | I180: 0378 | J180: بسيون
A181: 26409191601118 | B181: 3-مرتب تحويلات بنكية | D181: نجريج ب ت ا | E181: 3218 | F181: ايمن بسيونى محمد عثمان | G181: 0098 | H181: بنك مصر | I181: 0257 | J181: بسيون
A182: 27112271601993 | B182: 3-مرتب تحويلات بنكية | D182: الديوان | E182: 3137 | F182: ايمن محمد عبد الرسول احمد فايد | G182: 0098 | H182: بنك مصر | I182: 0257 | J182: بسيون
A183: 27508011601061 | B183: 3-مرتب تحويلات بنكية | D183: على بن ابى طالب المهنى ع | E183: 2368 | F183: ايناس عزت توفيق بدوى | G183: 0098 | H183: بنك مصر | I183: 0257 | J183: بسيون
A184: 28709051602565 | B184: 3-مرتب تحويلات بنكية | D184: الامام الشافعى بقرنشو ب | E184: 6383 | F184: ايناس محمد زكى جبر | G184: 0003 | H184: البنك الاهلي المصري | I184: 0378 | J184: بسيون
A185: 28112071601119 | B185: 3-مرتب تحويلات بنكية | D185: خالد ابن الوليد ت ا ب | E185: 6378 | F185: ايهاب محمود على الضو | G185: 0003 | H185: البنك الاهلي المصري | I185: 0378 | J185: بسيون
A186: 27205100101095 | B186: 3-مرتب تحويلات بنكية | D186: كفر جعفر ب ر | E186: 6540 | F186: ايهاب نصر عبدالنبى | G186: 0004 | H186: بنك القاهرة | I186: 2010 | J186: سيزوستريس
A187: 27101161603433 | B187: 3-مرتب تحويلات بنكية | D187: كفر جعفر ع بنات | E187: 1598 | F187: إبراهيم عبد الحميد احمد بريش | G187: 0003 | H187: البنك الاهلي المصري | I187: 0378 | J187: بسيون
A188: 26701151601959 | B188: 3-مرتب تحويلات بنكية | D188: صالحجر ع بنات | E188: 203 | F188: إسماعيل ناجى فايد | G188: 0003 | H188: البنك الاهلي المصري | I188: 0378 | J188: بسيون
A189: 27207231601703 | B189: 3-مرتب تحويلات بنكية | D189: مدرسة الجمهورية التجريبية | E189: 6510 | F189: إكرام محمود محمد بدرة | G189: 0098 | H189: بنك مصر | I189: 0216 | J189: طنطا
A190: 26102010201182 | B190: 3-مرتب تحويلات بنكية | D190: محمد حسنى مبارك ب | E190: 1740 | F190: إيمان محمد محمد الدقدوقى | G190: 0004 | H190: بنك القاهرة | I190: 4150 | J190: سوق ناصر
A191: 27702091601466 | B191: 3-مرتب تحويلات بنكية | D191: الشهيد حسن حجازى ب | E191: 2241 | F191: إيمان مصطفى راغب العسكرى | G191: 0003 | H191: البنك الاهلي المصري | I191: 0378 | J191: بسيون
A192: 26704151601231 | B192: 3-مرتب تحويلات بنكية | D192: بسيون ث صناعى | E192: 5896 | F192: أحمد الصاوى أبو اليزيد شواطه | G192: 0003 | H192: البنك الاهلي المصري | I192: 0378 | J192: بسيون
A193: 27303031601473 | B193: 3-مرتب تحويلات بنكية | D193: الديوان | E193: 197 | F193: أحمد عبدة فراج فايد | G193: 0003 | H193: البنك الاهلي المصري | I193: 0378 | J193: بسيون
A194: 25905091600339 | B194: 3-مرتب تحويلات بنكية | D194: الشهيد ابراهيم صالح ع | E194: 1904 | F194: أحمد محمد عبد العزيز خاطر | G194: 0004 | H194: بنك القاهرة | I194: 4130 | J194: طنطا
A195: 27204201600975 | B195: 3-مرتب تحويلات بنكية | D195: كتامة ث تجارية | E195: 1479 | F195: أشرف ابو اليزيد قطب ابو طالب | G195: 0004 | H195: بنك القاهرة | I195: 4130 | J195: طنطا
A196: 27102131602455 | B196: 3-مرتب تحويلات بنكية | D196: عبد اللطيف فايد بصالحجر ب | E196: 1298 | F196: أشرف عبد ه محمد عسكر | G196: 0003 | H196: البنك الاهلي المصري | I196: 0378 | J196: بسيون
A197: 26710101601574 | B197: 3-مرتب تحويلات بنكية | D197: عبد اللطيف فايد بصالحجر ب | E197: 1297 | F197: أمين أحمد مصطفى عمرو | G197: 0003 | H197: البنك الاهلي المصري | I197: 0378 | J197: بسيون
A198: 26007151500482 | B198: 3-مرتب تحويلات بنكية | D198: عبد النبى خمخم بسلامون ع مشترك | E198: 1125 | F198: أنوار جمال الدين عبد الرؤوف عتمان | G198: 0003 | H198: البنك الاهلي المصري | I198: 0378 | J198: بسيون
A199: 26406031600884 | B199: 3-مرتب تحويلات بنكية | D199: قسم بسيون 2 | E199: 6725 | F199: بثينه عبد الرءوف محمد داود | G199: 1009 | H199: البنك الرئيسي للتنميه والائتمان الزراعى | I199: 0804 | J199: بسيون
A200: 26212121603565 | B200: 3-مرتب تحويلات بنكية | D200: قسم بسيون 2 | E200: 6772 | F200: بديعه مصطفى عبد الحليم المراسى | G200: 0003 | H200: البنك الاهلي المصري | I200: 0378 | J200: بسيون
... 531 more rows
